{"text_format":"1","workbook":"xlsx","n_sheets":4,"sheets":["Sverigeranking","Regler","Miniorranking","Seriespelsranking"],"not_rendered":{"charts":0,"images":0,"macros":1,"external_links":0,"defined_names":5,"comments":0,"pivot_tables":0},"unopened":[],"bounds":{"document_bytes":16777216,"sheet_cells":100000,"rows_first":2000,"rows_last":500,"rows_between":2000,"halvings":0,"cell_chars":16384,"cell_head_chars":4096},"cells_cut":0,"cells_raw":0,"read":"whole","date_system":"1900"}

{"sheet":"Sverigeranking","index":0,"n_rows":491,"n_cols":149,"rows_kept":491,"cut":false,"hidden":false,"merged":[]}
[null,"Svenska Hästskokastarförbundets Sverigeranking",null,null,null,null,null,null,null,null,null,null,null,null,null,null,null,null,null,null,null,null,null,"Antal kastare som deltagit i samtliga tävlingar senaste 12 månaderna:",{"$f":"COUNTIF(F5:F199,9)","v":2},null,null,null,null,null,null,null,"Antal starter senaste 12 månaderna föruton DM:",{"$f":"SUM(I2:AB2)+(AJ1)-(N2+O2+Q2+X2+W2)","v":496},null,{"$f":"Miniorranking!$AE$1","v":7}]
[null,"SLUTSTÄLLNING",null,null,null,null,null,null,{"$f":"COUNT(I5:I220)","v":0},{"$f":"COUNT(J5:J220)","v":0},76,73,43,28,38,81,22,57,27,51,81,0,{"$f":"COUNT(W5:W220)","v":0},0,0,0,0,0]
[null,"Säsong 2020 / 2021",null,null,null,null,null,null,{"$f":"IF(SUM(I5:I400)>100,1,\"\")","v":""},"",1,1,1,{"$f":"IF(SUM(N5:N400)>-1,1,\"\")","v":1},1,1,1,1,1,1,1,"",{"$f":"IF(SUM(W5:W400)>100,1,\"\")","v":""},"","","","","",null,null,null,null,"Snitt / tävling förutom DM :",{"$f":"SUM(AH1/8)","v":62}]
["Plac.","Kastare ","Klubb","Rankingpoäng",null,"Antal tävlingar","Snitt per serie",null,"Jämjö Open","Björkenäs Open","Utomhus-SM Dag 1","Utomhus-SM Dag 2","Vaxholm Open","Utomhus Smålandsmästaren","Blekinge-DM Ute","Dynapac Open","Stockholms-DM ute","Åseda Open","Färsna Cup","Höstskon Nybro","Carlskrona Cup","Sibbamåla Open","Stockholms-DM","Blekinge DM inne","Inomhus-SM","Värendspokalen","Tingsryds Open",null,"Antal arrangerade tävlingar","Ej medräknat resultat","Ej medräknat resultat","Ej medräknat resultat",null,null,null,null,null,null,null,null,null,null,null,null,null,null,null,null,null,null,null,null,null,null,null,null,null,null,null,null,null,1,2,3,4,5,6,7,8,9,10,11,12,13,14,15,16,"ej medräknad",null,null,"missade tävlingar"]
[{"$f":"IF(BG5>1,AH5&\" (\"&AG5&\")\",AH5&\" (\"&AI5&\")\")","v":"1 (1)"},"Kent Sundahl","Carlskrona",{"$f":"SUM(BJ5:BU5)","v":3269},null,{"$f":"COUNT(I5:AB5)","v":9},{"$f":"SUM((CE5)/(F5*2))","v":181.61111111111111},null,null,null,438,426,366,null,339,372,null,452,250,263,363,null,null,null,null,null,null,null,{"$f":"SUM($I$3:$AB$3)","v":11},{"$f":"BZ5","v":"-"},{"$f":"CA5","v":"-"},{"$f":"CB5","v":"-"},1,{"$f":"IF(D5<D4,AJ5,AH4)","v":1},{"$f":"IF(F5>1,ROW(1:1),\"-\")","v":1},1,null,null,{"$f":"COUNT($I$3,I5,H5)","v":0},{"$f":"COUNT($J$3,J5,I5)","v":0},{"$f":"COUNT($K$3,K5,J5)","v":2},{"$f":"COUNT($L$3,L5,K5)","v":3},{"$f":"COUNT($M$3,M5,L5)","v":3},{"$f":"COUNT($N$3,N5,M5)","v":2},{"$f":"COUNT($O$3,O5,N5)","v":2},{"$f":"COUNT($P$3,P5,O5)","v":3},{"$f":"COUNT($R$3,R5,P5)","v":3},{"$f":"COUNT($S$3,S5,R5)","v":3},{"$f":"COUNT($T$3,T5,S5)","v":3},{"$f":"COUNT($U$3,U5,T5)","v":3},{"$f":"COUNT($V$3,V5,U5)","v":1},{"$f":"COUNT($W$3,W5,V5)","v":0},{"$f":"COUNT($X$3,X5,W5)","v":0},{"$f":"COUNT($Y$3,Y5,X5)","v":0},{"$f":"COUNT($AA$3,AA5,Y5)","v":0},{"$f":"COUNT($AB$3,AB5,AA5)","v":0},null,null,{"$f":"IF(H5=\"x\",1,2)","v":2},null,null,{"$f":"IF($F5>0,LARGE($I5:$AB5,1),\"\")","v":452},{"$f":"IF($F5>1,LARGE($I5:$AB5,2),\"\")","v":438},{"$f":"IF($F5>2,LARGE($I5:$AB5,3),\"\")","v":426},{"$f":"IF($F5>3,LARGE($I5:$AB5,4),\"\")","v":372},{"$f":"IF($F5>4,LARGE($I5:$AB5,5),\"\")","v":366},{"$f":"IF($F5>5,LARGE($I5:$AB5,6),\"\")","v":363},{"$f":"IF($F5>6,LARGE($I5:$AB5,7),\"\")","v":339},{"$f":"IF($F5>7,LARGE($I5:$AB5,8),\"\")","v":263},{"$f":"IF($F5>8,LARGE($I5:$AB5,9),\"\")","v":250},{"$f":"IF($F5>9,LARGE($I5:$AB5,10),\"\")","v":""},{"$f":"IF($F5>10,LARGE($I5:$AB5,11),\"\")","v":""},{"$f":"IF($F5>11,LARGE($I5:$AB5,12),\"\")","v":""},{"$f":"IF($F5>12,LARGE($I5:$AB5,13),\"\")","v":""},{"$f":"IF($F5>13,LARGE($I5:$AB5,14),\"\")","v":""},{"$f":"IF($F5>14,LARGE($I5:$AB5,15),\"\")","v":""},{"$f":"IF($F5>15,LARGE($I5:$AB5,16),\"\")","v":""},{"$f":"IF($F5>12,LARGE($I5:$AB5,13),\"-\")","v":"-"},{"$f":"IF($F5>13,LARGE($I5:$AB5,14),\"-\")","v":"-"},{"$f":"IF($F5>14,LARGE($I5:$AB5,15),\"-\")","v":"-"},{"$f":"SUM(AC5-F5)-2","v":0},null,{"$f":"SUM(BJ5:BY5)","v":3269},null,null,null,null,null,null,null,null,null,null,null,null,null,null,null,null,null,null,null,null,null,null,null,null,null,null,null,null,null,null,null,null,null,null,null,null,null,null,null,null,null,null,null,null,null,null,null,null,null,null,null,null,null,null,null,null,null,null,null,null,null,null,1,null,{"$f":"IF(BG5>=1,AH5,\"\")","v":1},{"$f":"IF(BG5>1,\"(\"&AG5&\")\",\"(\"&AI5&\")\")","v":"(1)"}]
["2 (2)","Sandor Bodi","Växjö Hsk",2602,null,7,185.85714285714286,null,null,null,422,418,325,478,null,null,null,374,null,279,306,null,null,null,null,null,null,null,11,"-","-","-",2,2,2,2,null,null,0,0,2,3,3,3,2,1,2,2,2,3,1,0,0,0,0,0,null,null,2,null,null,478,422,418,374,325,306,279,"","","","","","","","","","-","-","-",2,null,2602,null,null,null,null,null,null,null,null,null,null,null,null,null,null,null,null,null,null,null,null,null,null,null,null,null,null,null,null,null,null,null,null,null,null,null,null,null,null,null,null,null,null,null,null,null,null,null,null,null,null,null,null,null,null,null,null,null,null,null,null,null,null,2,null,2,"(2)"]
["3 (5)","Sandra Widlund","Växjö Hsk",2478,null,7,177,null,null,null,375,476,null,356,null,316,null,273,null,337,345,null,null,null,null,null,null,null,11,"-","-","-",5,3,3,3,null,null,0,0,2,3,2,2,2,2,3,2,2,3,1,0,0,0,0,0,null,null,2,null,null,476,375,356,345,337,316,273,"","","","","","","","","","-","-","-",2,null,2478,null,null,null,null,null,null,null,null,null,null,null,null,null,null,null,null,null,null,null,null,null,null,null,null,null,null,null,null,null,null,null,null,null,null,null,null,null,null,null,null,null,null,null,null,null,null,null,null,null,null,null,null,null,null,null,null,null,null,null,null,null,null,3,null,3,"(5)"]
["4 (6)","Matz Karlsson","Korpen Åseda",2410,null,7,172.14285714285714,null,null,null,221,384,null,414,null,346,null,354,null,348,343,null,null,null,null,null,null,null,11,"-","-","-",6,4,4,4,null,null,0,0,2,3,2,2,2,2,3,2,2,3,1,0,0,0,0,0,null,null,2,null,null,414,384,354,348,346,343,221,"","","","","","","","","","-","-","-",2,null,2410,null,null,null,null,null,null,null,null,null,null,null,null,null,null,null,null,null,null,null,null,null,null,null,null,null,null,null,null,null,null,null,null,null,null,null,null,null,null,null,null,null,null,null,null,null,null,null,null,null,null,null,null,null,null,null,null,null,null,null,null,null,null,4,null,4,"(6)"]
["5 (9)","Gert Karlsson","Korpen Åseda",2295,null,7,163.92857142857142,null,null,null,374,null,null,431,null,343,null,332,209,308,298,null,null,null,null,null,null,null,11,"-","-","-",9,5,5,5,null,null,0,0,2,2,1,2,2,2,3,3,3,3,1,0,0,0,0,0,null,null,2,null,null,431,374,343,332,308,298,209,"","","","","","","","","","-","-","-",2,null,2295,null,null,null,null,null,null,null,null,null,null,null,null,null,null,null,null,null,null,null,null,null,null,null,null,null,null,null,null,null,null,null,null,null,null,null,null,null,null,null,null,null,null,null,null,null,null,null,null,null,null,null,null,null,null,null,null,null,null,null,null,null,null,5,null,5,"(9)"]
["6 (3)","Ingvar Eriksson","Carlskrona",2215,null,7,158.21428571428572,null,null,null,301,343,null,null,335,344,null,223,null,275,394,null,null,null,null,null,null,null,11,"-","-","-",3,6,6,6,null,null,0,0,2,3,2,1,2,3,3,2,2,3,1,0,0,0,0,0,null,null,2,null,null,394,344,343,335,301,275,223,"","","","","","","","","","-","-","-",2,null,2215,null,null,null,null,null,null,null,null,null,null,null,null,null,null,null,null,null,null,null,null,null,null,null,null,null,null,null,null,null,null,null,null,null,null,null,null,null,null,null,null,null,null,null,null,null,null,null,null,null,null,null,null,null,null,null,null,null,null,null,null,null,null,6,null,6,"(3)"]
["7 (4)","Leo Andersson","Carlskrona",2144,null,7,153.14285714285714,null,null,null,256,273,null,null,297,331,null,398,null,334,255,null,null,null,null,null,null,null,11,"-","-","-",4,7,7,7,null,null,0,0,2,3,2,1,2,3,3,2,2,3,1,0,0,0,0,0,null,null,2,null,null,398,334,331,297,273,256,255,"","","","","","","","","","-","-","-",2,null,2144,null,null,null,null,null,null,null,null,null,null,null,null,null,null,null,null,null,null,null,null,null,null,null,null,null,null,null,null,null,null,null,null,null,null,null,null,null,null,null,null,null,null,null,null,null,null,null,null,null,null,null,null,null,null,null,null,null,null,null,null,null,null,7,null,7,"(4)"]
["8 (10)","Hathaichonlanee Phaengphui","Växjö Hsk",2128,null,7,152,null,null,null,271,329,null,271,null,254,null,280,null,297,426,null,null,null,null,null,null,null,11,"-","-","-",10,8,8,8,null,null,0,0,2,3,2,2,2,2,3,2,2,3,1,0,0,0,0,0,null,null,2,null,null,426,329,297,280,271,271,254,"","","","","","","","","","-","-","-",2,null,2128,null,null,null,null,null,null,null,null,null,null,null,null,null,null,null,null,null,null,null,null,null,null,null,null,null,null,null,null,null,null,null,null,null,null,null,null,null,null,null,null,null,null,null,null,null,null,null,null,null,null,null,null,null,null,null,null,null,null,null,null,null,null,8,null,8,"(10)"]
["9 (8)","Peter Olsson","Dynapac ",1974,null,7,141,null,null,null,290,309,148,null,224,287,null,366,null,null,350,null,null,null,null,null,null,null,11,"-","-","-",8,9,9,9,null,null,0,0,2,3,3,2,2,3,3,2,1,2,1,0,0,0,0,0,null,null,2,null,null,366,350,309,290,287,224,148,"","","","","","","","","","-","-","-",2,null,1974,null,null,null,null,null,null,null,null,null,null,null,null,null,null,null,null,null,null,null,null,null,null,null,null,null,null,null,null,null,null,null,null,null,null,null,null,null,null,null,null,null,null,null,null,null,null,null,null,null,null,null,null,null,null,null,null,null,null,null,null,null,null,9,null,9,"(8)"]
["10 (7)","Tobias Gneupel","Sibbamåla",1958,null,5,195.8,null,null,null,278,384,null,null,null,401,null,null,null,455,440,null,null,null,null,null,null,null,11,"-","-","-",7,10,10,10,null,null,0,0,2,3,2,1,1,2,2,1,2,3,1,0,0,0,0,0,null,null,2,null,null,455,440,401,384,278,"","","","","","","","","","","","-","-","-",4,null,1958,null,null,null,null,null,null,null,null,null,null,null,null,null,null,null,null,null,null,null,null,null,null,null,null,null,null,null,null,null,null,null,null,null,null,null,null,null,null,null,null,null,null,null,null,null,null,null,null,null,null,null,null,null,null,null,null,null,null,null,null,null,null,10,null,10,"(7)"]
["11 (16)","Yamolada Damnoegam","Växjö Hsk",1795,null,7,128.21428571428572,null,null,null,252,259,null,305,null,186,null,263,null,360,170,null,null,null,null,null,null,null,11,"-","-","-",16,11,11,11,null,null,0,0,2,3,2,2,2,2,3,2,2,3,1,0,0,0,0,0,null,null,2,null,null,360,305,263,259,252,186,170,"","","","","","","","","","-","-","-",2,null,1795,null,null,null,null,null,null,null,null,null,null,null,null,null,null,null,null,null,null,null,null,null,null,null,null,null,null,null,null,null,null,null,null,null,null,null,null,null,null,null,null,null,null,null,null,null,null,null,null,null,null,null,null,null,null,null,null,null,null,null,null,null,null,11,null,11,"(16)"]
["12 (17)","Lennart Karlsson","Tingsryd",1718,null,6,143.16666666666666,null,null,null,200,357,null,320,null,263,null,345,null,null,233,null,null,null,null,null,null,null,11,"-","-","-",17,12,12,12,null,null,0,0,2,3,2,2,2,2,3,2,1,2,1,0,0,0,0,0,null,null,2,null,null,357,345,320,263,233,200,"","","","","","","","","","","-","-","-",3,null,1718,null,null,null,null,null,null,null,null,null,null,null,null,null,null,null,null,null,null,null,null,null,null,null,null,null,null,null,null,null,null,null,null,null,null,null,null,null,null,null,null,null,null,null,null,null,null,null,null,null,null,null,null,null,null,null,null,null,null,null,null,null,null,12,null,12,"(17)"]
["13 (18)","Lasse Brincner","Värends Hsk",1705,null,9,94.722222222222229,null,null,null,245,156,160,213,null,180,null,119,193,194,245,null,null,null,null,null,null,null,11,"-","-","-",18,13,13,13,null,null,0,0,2,3,3,3,2,2,3,3,3,3,1,0,0,0,0,0,null,null,2,null,null,245,245,213,194,193,180,160,156,119,"","","","","","","","-","-","-",0,null,1705,null,null,null,null,null,null,null,null,null,null,null,null,null,null,null,null,null,null,null,null,null,null,null,null,null,null,null,null,null,null,null,null,null,null,null,null,null,null,null,null,null,null,null,null,null,null,null,null,null,null,null,null,null,null,null,null,null,null,null,null,null,null,13,null,13,"(18)"]
["14 (19)","Tomas Lindahl","Korpen Åseda",1665,null,7,118.92857142857143,null,null,null,230,235,null,272,null,189,null,257,null,279,203,null,null,null,null,null,null,null,11,"-","-","-",19,14,14,14,null,null,0,0,2,3,2,2,2,2,3,2,2,3,1,0,0,0,0,0,null,null,2,null,null,279,272,257,235,230,203,189,"","","","","","","","","","-","-","-",2,null,1665,null,null,null,null,null,null,null,null,null,null,null,null,null,null,null,null,null,null,null,null,null,null,null,null,null,null,null,null,null,null,null,null,null,null,null,null,null,null,null,null,null,null,null,null,null,null,null,null,null,null,null,null,null,null,null,null,null,null,null,null,null,null,14,null,14,"(19)"]
["15 (12)","Anita Fabbeke","Dynapac ",1650,null,6,137.5,null,null,null,209,292,null,null,212,335,null,343,null,null,259,null,null,null,null,null,null,null,11,"-","-","-",12,15,15,15,null,null,0,0,2,3,2,1,2,3,3,2,1,2,1,0,0,0,0,0,null,null,2,null,null,343,335,292,259,212,209,"","","","","","","","","","","-","-","-",3,null,1650,null,null,null,null,null,null,null,null,null,null,null,null,null,null,null,null,null,null,null,null,null,null,null,null,null,null,null,null,null,null,null,null,null,null,null,null,null,null,null,null,null,null,null,null,null,null,null,null,null,null,null,null,null,null,null,null,null,null,null,null,null,null,15,null,15,"(12)"]
["16 (14)","Nathalie Sundahl","Carlskrona",1604,null,8,100.25,null,null,null,250,192,null,null,194,199,null,125,170,248,226,null,null,null,null,null,null,null,11,"-","-","-",14,16,16,16,null,null,0,0,2,3,2,1,2,3,3,3,3,3,1,0,0,0,0,0,null,null,2,null,null,250,248,226,199,194,192,170,125,"","","","","","","","","-","-","-",1,null,1604,null,null,null,null,null,null,null,null,null,null,null,null,null,null,null,null,null,null,null,null,null,null,null,null,null,null,null,null,null,null,null,null,null,null,null,null,null,null,null,null,null,null,null,null,null,null,null,null,null,null,null,null,null,null,null,null,null,null,null,null,null,null,16,null,16,"(14)"]
["17 (11)","Joel Sundahl","Carlskrona",1594,null,5,159.4,null,null,null,334,299,null,null,386,281,null,null,null,null,294,null,null,null,null,null,null,null,11,"-","-","-",11,17,17,17,null,null,0,0,2,3,2,1,2,3,2,1,1,2,1,0,0,0,0,0,null,null,2,null,null,386,334,299,294,281,"","","","","","","","","","","","-","-","-",4,null,1594,null,null,null,null,null,null,null,null,null,null,null,null,null,null,null,null,null,null,null,null,null,null,null,null,null,null,null,null,null,null,null,null,null,null,null,null,null,null,null,null,null,null,null,null,null,null,null,null,null,null,null,null,null,null,null,null,null,null,null,null,null,null,17,null,17,"(11)"]
["18 (13)","Mattias Gneupel","Sibbamåla",1582,null,7,113,null,null,null,220,223,252,null,null,218,null,null,147,219,303,null,null,null,null,null,null,null,11,"-","-","-",13,18,18,18,null,null,0,0,2,3,3,2,1,2,2,2,3,3,1,0,0,0,0,0,null,null,2,null,null,303,252,223,220,219,218,147,"","","","","","","","","","-","-","-",2,null,1582,null,null,null,null,null,null,null,null,null,null,null,null,null,null,null,null,null,null,null,null,null,null,null,null,null,null,null,null,null,null,null,null,null,null,null,null,null,null,null,null,null,null,null,null,null,null,null,null,null,null,null,null,null,null,null,null,null,null,null,null,null,null,18,null,18,"(13)"]
["19 (24)","Dan Hallstan","Växjö",1567,null,8,97.9375,null,null,null,218,239,116,203,null,190,null,206,null,224,171,null,null,null,null,null,null,null,11,"-","-","-",24,19,19,19,null,null,0,0,2,3,3,3,2,2,3,2,2,3,1,0,0,0,0,0,null,null,2,null,null,239,224,218,206,203,190,171,116,"","","","","","","","","-","-","-",1,null,1567,null,null,null,null,null,null,null,null,null,null,null,null,null,null,null,null,null,null,null,null,null,null,null,null,null,null,null,null,null,null,null,null,null,null,null,null,null,null,null,null,null,null,null,null,null,null,null,null,null,null,null,null,null,null,null,null,null,null,null,null,null,null,19,null,19,"(24)"]
["20 (27)","Stefan Olofsson","Korpen Nybro",1520,null,7,108.57142857142857,null,null,null,254,217,null,306,null,139,null,188,null,182,234,null,null,null,null,null,null,null,11,"-","-","-",27,20,20,20,null,null,0,0,2,3,2,2,2,2,3,2,2,3,1,0,0,0,0,0,null,null,2,null,null,306,254,234,217,188,182,139,"","","","","","","","","","-","-","-",2,null,1520,null,null,null,null,null,null,null,null,null,null,null,null,null,null,null,null,null,null,null,null,null,null,null,null,null,null,null,null,null,null,null,null,null,null,null,null,null,null,null,null,null,null,null,null,null,null,null,null,null,null,null,null,null,null,null,null,null,null,null,null,null,null,20,null,20,"(27)"]
["21 (21)","Björn Landberg","Vaxholm Hsk",1474,null,6,122.83333333333333,null,null,null,198,245,223,null,null,null,323,null,244,null,241,null,null,null,null,null,null,null,11,"-","-","-",21,21,21,21,null,null,0,0,2,3,3,2,1,1,1,2,2,2,1,0,0,0,0,0,null,null,2,null,null,323,245,244,241,223,198,"","","","","","","","","","","-","-","-",3,null,1474,null,null,null,null,null,null,null,null,null,null,null,null,null,null,null,null,null,null,null,null,null,null,null,null,null,null,null,null,null,null,null,null,null,null,null,null,null,null,null,null,null,null,null,null,null,null,null,null,null,null,null,null,null,null,null,null,null,null,null,null,null,null,21,null,21,"(21)"]
["22 (15)","Olle Ottosson","Dynapac ",1443,null,5,144.30000000000001,null,null,null,305,278,null,null,360,225,null,null,null,null,275,null,null,null,null,null,null,null,11,"-","-","-",15,22,22,22,null,null,0,0,2,3,2,1,2,3,2,1,1,2,1,0,0,0,0,0,null,null,2,null,null,360,305,278,275,225,"","","","","","","","","","","","-","-","-",4,null,1443,null,null,null,null,null,null,null,null,null,null,null,null,null,null,null,null,null,null,null,null,null,null,null,null,null,null,null,null,null,null,null,null,null,null,null,null,null,null,null,null,null,null,null,null,null,null,null,null,null,null,null,null,null,null,null,null,null,null,null,null,null,null,22,null,22,"(15)"]
["23 (29)","Kerstin Svensson","Växjö Hsk",1419,null,8,88.6875,null,null,null,146,179,136,224,null,217,null,184,null,186,147,null,null,null,null,null,null,null,11,"-","-","-",29,23,23,23,null,null,0,0,2,3,3,3,2,2,3,2,2,3,1,0,0,0,0,0,null,null,2,null,null,224,217,186,184,179,147,146,136,"","","","","","","","","-","-","-",1,null,1419,null,null,null,null,null,null,null,null,null,null,null,null,null,null,null,null,null,null,null,null,null,null,null,null,null,null,null,null,null,null,null,null,null,null,null,null,null,null,null,null,null,null,null,null,null,null,null,null,null,null,null,null,null,null,null,null,null,null,null,null,null,null,23,null,23,"(29)"]
["24 (31)","Ronny Lundberg","Lanternan",1402,null,7,100.14285714285714,null,null,null,236,249,null,null,217,122,null,203,null,192,183,null,null,null,null,null,null,null,11,"-","-","-",31,24,24,24,null,null,0,0,2,3,2,1,2,3,3,2,2,3,1,0,0,0,0,0,null,null,2,null,null,249,236,217,203,192,183,122,"","","","","","","","","","-","-","-",2,null,1402,null,null,null,null,null,null,null,null,null,null,null,null,null,null,null,null,null,null,null,null,null,null,null,null,null,null,null,null,null,null,null,null,null,null,null,null,null,null,null,null,null,null,null,null,null,null,null,null,null,null,null,null,null,null,null,null,null,null,null,null,null,null,24,null,24,"(31)"]
["25 (32)","Dan Madayang","Korpen Åseda",1395,null,5,139.5,null,null,null,null,null,null,285,null,230,null,288,null,276,316,null,null,null,null,null,null,null,11,"-","-","-",32,25,25,25,null,null,0,0,1,1,1,2,2,2,3,2,2,3,1,0,0,0,0,0,null,null,2,null,null,316,288,285,276,230,"","","","","","","","","","","","-","-","-",4,null,1395,null,null,null,null,null,null,null,null,null,null,null,null,null,null,null,null,null,null,null,null,null,null,null,null,null,null,null,null,null,null,null,null,null,null,null,null,null,null,null,null,null,null,null,null,null,null,null,null,null,null,null,null,null,null,null,null,null,null,null,null,null,null,25,null,25,"(32)"]
["26 (33)","Johan Johansson","Tingsryd",1386,null,5,138.6,null,null,null,228,371,null,291,null,277,null,219,null,null,null,null,null,null,null,null,null,null,11,"-","-","-",33,26,26,26,null,null,0,0,2,3,2,2,2,2,3,2,1,1,0,0,0,0,0,0,null,null,2,null,null,371,291,277,228,219,"","","","","","","","","","","","-","-","-",4,null,1386,null,null,null,null,null,null,null,null,null,null,null,null,null,null,null,null,null,null,null,null,null,null,null,null,null,null,null,null,null,null,null,null,null,null,null,null,null,null,null,null,null,null,null,null,null,null,null,null,null,null,null,null,null,null,null,null,null,null,null,null,null,null,26,null,26,"(33)"]
["27 (34)","Bengt Andersson","Växjö Hsk",1376,null,6,114.66666666666667,null,null,null,184,203,null,null,null,251,null,317,null,200,221,null,null,null,null,null,null,null,11,"-","-","-",34,27,27,27,null,null,0,0,2,3,2,1,1,2,3,2,2,3,1,0,0,0,0,0,null,null,2,null,null,317,251,221,203,200,184,"","","","","","","","","","","-","-","-",3,null,1376,null,null,null,null,null,null,null,null,null,null,null,null,null,null,null,null,null,null,null,null,null,null,null,null,null,null,null,null,null,null,null,null,null,null,null,null,null,null,null,null,null,null,null,null,null,null,null,null,null,null,null,null,null,null,null,null,null,null,null,null,null,null,27,null,27,"(34)"]
["28 (22)","Berndt Pettersson","Lanternan",1371,null,7,97.928571428571431,null,null,null,250,195,null,null,156,176,null,219,null,186,189,null,null,null,null,null,null,null,11,"-","-","-",22,28,28,28,null,null,0,0,2,3,2,1,2,3,3,2,2,3,1,0,0,0,0,0,null,null,2,null,null,250,219,195,189,186,176,156,"","","","","","","","","","-","-","-",2,null,1371,null,null,null,null,null,null,null,null,null,null,null,null,null,null,null,null,null,null,null,null,null,null,null,null,null,null,null,null,null,null,null,null,null,null,null,null,null,null,null,null,null,null,null,null,null,null,null,null,null,null,null,null,null,null,null,null,null,null,null,null,null,null,28,null,28,"(22)"]
["29 (35)","Göran Olofsson","Korpen Nybro",1360,null,7,97.142857142857139,null,null,null,217,230,null,145,null,192,null,157,null,278,141,null,null,null,null,null,null,null,11,"-","-","-",35,29,29,29,null,null,0,0,2,3,2,2,2,2,3,2,2,3,1,0,0,0,0,0,null,null,2,null,null,278,230,217,192,157,145,141,"","","","","","","","","","-","-","-",2,null,1360,null,null,null,null,null,null,null,null,null,null,null,null,null,null,null,null,null,null,null,null,null,null,null,null,null,null,null,null,null,null,null,null,null,null,null,null,null,null,null,null,null,null,null,null,null,null,null,null,null,null,null,null,null,null,null,null,null,null,null,null,null,null,29,null,29,"(35)"]
["30 (25)","Kristian Jältsäter","Vaxholm Hsk",1345,null,6,112.08333333333333,null,null,null,169,252,242,null,null,null,254,null,229,null,199,null,null,null,null,null,null,null,11,"-","-","-",25,30,30,30,null,null,0,0,2,3,3,2,1,1,1,2,2,2,1,0,0,0,0,0,null,null,2,null,null,254,252,242,229,199,169,"","","","","","","","","","","-","-","-",3,null,1345,null,null,null,null,null,null,null,null,null,null,null,null,null,null,null,null,null,null,null,null,null,null,null,null,null,null,null,null,null,null,null,null,null,null,null,null,null,null,null,null,null,null,null,null,null,null,null,null,null,null,null,null,null,null,null,null,null,null,null,null,null,null,30,null,30,"(25)"]
["31 (20)","Mathias Karlberg","Jämjö Hsk",1310,null,5,131,null,null,null,232,178,null,null,424,205,null,null,null,null,271,null,null,null,null,null,null,null,11,"-","-","-",20,31,31,31,null,null,0,0,2,3,2,1,2,3,2,1,1,2,1,0,0,0,0,0,null,null,2,null,null,424,271,232,205,178,"","","","","","","","","","","","-","-","-",4,null,1310,null,null,null,null,null,null,null,null,null,null,null,null,null,null,null,null,null,null,null,null,null,null,null,null,null,null,null,null,null,null,null,null,null,null,null,null,null,null,null,null,null,null,null,null,null,null,null,null,null,null,null,null,null,null,null,null,null,null,null,null,null,null,31,null,31,"(20)"]
["32 (23)","Lars-Erik Ottosson","Lanternan",1288,null,5,128.80000000000001,null,null,null,270,209,null,null,324,271,null,null,null,null,214,null,null,null,null,null,null,null,11,"-","-","-",23,32,32,32,null,null,0,0,2,3,2,1,2,3,2,1,1,2,1,0,0,0,0,0,null,null,2,null,null,324,271,270,214,209,"","","","","","","","","","","","-","-","-",4,null,1288,null,null,null,null,null,null,null,null,null,null,null,null,null,null,null,null,null,null,null,null,null,null,null,null,null,null,null,null,null,null,null,null,null,null,null,null,null,null,null,null,null,null,null,null,null,null,null,null,null,null,null,null,null,null,null,null,null,null,null,null,null,null,32,null,32,"(23)"]
["33 (26)","Göran Mårtensson","Jämjö Hsk",1273,null,6,106.08333333333333,null,null,null,231,233,null,null,241,142,null,null,null,235,191,null,null,null,null,null,null,null,11,"-","-","-",26,33,33,33,null,null,{"$f":"COUNT($I$3,I37,H37)","v":0},{"$f":"COUNT($J$3,J37,I37)","v":0},{"$f":"COUNT($K$3,K37,J37)","v":2},{"$f":"COUNT($L$3,L37,K37)","v":3},{"$f":"COUNT($M$3,M37,L37)","v":2},{"$f":"COUNT($N$3,N37,M37)","v":1},{"$f":"COUNT($O$3,O37,N37)","v":2},{"$f":"COUNT($P$3,P37,O37)","v":3},{"$f":"COUNT($R$3,R37,P37)","v":2},{"$f":"COUNT($S$3,S37,R37)","v":1},{"$f":"COUNT($T$3,T37,S37)","v":2},{"$f":"COUNT($U$3,U37,T37)","v":3},{"$f":"COUNT($V$3,V37,U37)","v":1},{"$f":"COUNT($W$3,W37,V37)","v":0},{"$f":"COUNT($X$3,X37,W37)","v":0},{"$f":"COUNT($Y$3,Y37,X37)","v":0},{"$f":"COUNT($AA$3,AA37,Y37)","v":0},{"$f":"COUNT($AB$3,AB37,AA37)","v":0},null,null,{"$f":"IF(H37=\"x\",1,2)","v":2},null,null,{"$f":"IF($F37>0,LARGE($I37:$AB37,1),\"\")","v":241},{"$f":"IF($F37>1,LARGE($I37:$AB37,2),\"\")","v":235},{"$f":"IF($F37>2,LARGE($I37:$AB37,3),\"\")","v":233},{"$f":"IF($F37>3,LARGE($I37:$AB37,4),\"\")","v":231},{"$f":"IF($F37>4,LARGE($I37:$AB37,5),\"\")","v":191},{"$f":"IF($F37>5,LARGE($I37:$AB37,6),\"\")","v":142},{"$f":"IF($F37>6,LARGE($I37:$AB37,7),\"\")","v":""},{"$f":"IF($F37>7,LARGE($I37:$AB37,8),\"\")","v":""},{"$f":"IF($F37>8,LARGE($I37:$AB37,9),\"\")","v":""},{"$f":"IF($F37>9,LARGE($I37:$AB37,10),\"\")","v":""},{"$f":"IF($F37>10,LARGE($I37:$AB37,11),\"\")","v":""},{"$f":"IF($F37>11,LARGE($I37:$AB37,12),\"\")","v":""},{"$f":"IF($F37>12,LARGE($I37:$AB37,13),\"\")","v":""},{"$f":"IF($F37>13,LARGE($I37:$AB37,14),\"\")","v":""},{"$f":"IF($F37>14,LARGE($I37:$AB37,15),\"\")","v":""},{"$f":"IF($F37>15,LARGE($I37:$AB37,16),\"\")","v":""},{"$f":"IF($F37>12,LARGE($I37:$AB37,13),\"-\")","v":"-"},{"$f":"IF($F37>13,LARGE($I37:$AB37,14),\"-\")","v":"-"},{"$f":"IF($F37>14,LARGE($I37:$AB37,15),\"-\")","v":"-"},{"$f":"SUM(AC37-F37)-2","v":3},null,1273,null,null,null,null,null,null,null,null,null,null,null,null,null,null,null,null,null,null,null,null,null,null,null,null,null,null,null,null,null,null,null,null,null,null,null,null,null,null,null,null,null,null,null,null,null,null,null,null,null,null,null,null,null,null,null,null,null,null,null,null,null,null,33,null,{"$f":"IF(BG37>=1,AH37,\"\")","v":33},"(26)"]
["34 (39)","Björn Gabrielsson","Vaxholm Hsk",1259,null,6,104.91666666666667,null,null,null,205,183,195,null,null,null,219,null,222,null,235,null,null,null,null,null,null,null,11,"-","-","-",39,34,34,34,null,null,0,0,2,3,3,2,1,1,1,2,2,2,1,0,0,0,0,0,null,null,2,null,null,235,222,219,205,195,183,"","","","","","","","","","","-","-","-",3,null,1259,null,null,null,null,null,null,null,null,null,null,null,null,null,null,null,null,null,null,null,null,null,null,null,null,null,null,null,null,null,null,null,null,null,null,null,null,null,null,null,null,null,null,null,null,null,null,null,null,null,null,null,null,null,null,null,null,null,null,null,null,null,null,34,null,34,"(39)"]
["35 (28)","Ingegerd Pettersson","Lanternan",1247,null,7,89.071428571428569,null,null,null,134,76,null,null,258,154,null,193,null,228,204,null,null,null,null,null,null,null,11,"-","-","-",28,35,35,35,null,null,0,0,2,3,2,1,2,3,3,2,2,3,1,0,0,0,0,0,null,null,2,null,null,258,228,204,193,154,134,76,"","","","","","","","","","-","-","-",2,null,1247,null,null,null,null,null,null,null,null,null,null,null,null,null,null,null,null,null,null,null,null,null,null,null,null,null,null,null,null,null,null,null,null,null,null,null,null,null,null,null,null,null,null,null,null,null,null,null,null,null,null,null,null,null,null,null,null,null,null,null,null,null,null,35,null,35,"(28)"]
["36 (40)","Sebastian Israelsson","Sibbamåla",1244,null,5,124.4,null,null,null,213,159,null,null,null,352,null,null,null,236,284,null,null,null,null,null,null,null,11,"-","-","-",40,36,36,36,null,null,0,0,2,3,2,1,1,2,2,1,2,3,1,0,0,0,0,0,null,null,2,null,null,352,284,236,213,159,"","","","","","","","","","","","-","-","-",4,null,1244,null,null,null,null,null,null,null,null,null,null,null,null,null,null,null,null,null,null,null,null,null,null,null,null,null,null,null,null,null,null,null,null,null,null,null,null,null,null,null,null,null,null,null,null,null,null,null,null,null,null,null,null,null,null,null,null,null,null,null,null,null,null,36,null,36,"(40)"]
["37 (44)","Lisbeth Nygaard-Karlsson","Tingsryd",1192,null,6,99.333333333333329,null,null,null,257,169,null,200,null,216,null,232,null,null,118,null,null,null,null,null,null,null,11,"-","-","-",44,37,37,37,null,null,0,0,2,3,2,2,2,2,3,2,1,2,1,0,0,0,0,0,null,null,2,null,null,257,232,216,200,169,118,"","","","","","","","","","","-","-","-",3,null,1192,null,null,null,null,null,null,null,null,null,null,null,null,null,null,null,null,null,null,null,null,null,null,null,null,null,null,null,null,null,null,null,null,null,null,null,null,null,null,null,null,null,null,null,null,null,null,null,null,null,null,null,null,null,null,null,null,null,null,null,null,null,null,37,null,37,"(44)"]
["38 (36)","Bengt Fabbeke","Dynapac ",1170,null,6,97.5,null,null,null,191,231,null,null,150,187,null,247,null,null,164,null,null,null,null,null,null,null,11,"-","-","-",36,38,38,38,null,null,0,0,2,3,2,1,2,3,3,2,1,2,1,0,0,0,0,0,null,null,2,null,null,247,231,191,187,164,150,"","","","","","","","","","","-","-","-",3,null,1170,null,null,null,null,null,null,null,null,null,null,null,null,null,null,null,null,null,null,null,null,null,null,null,null,null,null,null,null,null,null,null,null,null,null,null,null,null,null,null,null,null,null,null,null,null,null,null,null,null,null,null,null,null,null,null,null,null,null,null,null,null,null,38,null,38,"(36)"]
["39 (46)","Maria Andersson","Team Småland ",1167,null,8,72.9375,null,null,null,163,132,140,132,null,165,null,99,null,160,176,null,null,null,null,null,null,null,11,"-","-","-",46,39,39,39,null,null,0,0,2,3,3,3,2,2,3,2,2,3,1,0,0,0,0,0,null,null,2,null,null,176,165,163,160,140,132,132,99,"","","","","","","","","-","-","-",1,null,1167,null,null,null,null,null,null,null,null,null,null,null,null,null,null,null,null,null,null,null,null,null,null,null,null,null,null,null,null,null,null,null,null,null,null,null,null,null,null,null,null,null,null,null,null,null,null,null,null,null,null,null,null,null,null,null,null,null,null,null,null,null,null,39,null,39,"(46)"]
["40 (47)","Bela Bodi","Växjö",1129,null,6,94.083333333333329,null,null,null,153,181,154,null,null,null,null,161,null,210,270,null,null,null,null,null,null,null,11,"-","-","-",47,40,40,40,null,null,0,0,2,3,3,2,1,1,2,2,2,3,1,0,0,0,0,0,null,null,2,null,null,270,210,181,161,154,153,"","","","","","","","","","","-","-","-",3,null,1129,null,null,null,null,null,null,null,null,null,null,null,null,null,null,null,null,null,null,null,null,null,null,null,null,null,null,null,null,null,null,null,null,null,null,null,null,null,null,null,null,null,null,null,null,null,null,null,null,null,null,null,null,null,null,null,null,null,null,null,null,null,null,40,null,40,"(47)"]
["41 (48)","Janne Johansson","Tingsryd",1105,null,5,110.5,null,null,null,211,261,null,null,null,228,null,null,null,211,194,null,null,null,null,null,null,null,11,"-","-","-",48,41,41,41,null,null,0,0,2,3,2,1,1,2,2,1,2,3,1,0,0,0,0,0,null,null,2,null,null,261,228,211,211,194,"","","","","","","","","","","","-","-","-",4,null,1105,null,null,null,null,null,null,null,null,null,null,null,null,null,null,null,null,null,null,null,null,null,null,null,null,null,null,null,null,null,null,null,null,null,null,null,null,null,null,null,null,null,null,null,null,null,null,null,null,null,null,null,null,null,null,null,null,null,null,null,null,null,null,41,null,41,"(48)"]
["42 (30)","Carina Gneupel","Sibbamåla",1100,null,5,110,null,null,null,222,239,null,null,null,201,null,null,189,null,249,null,null,null,null,null,null,null,11,"-","-","-",30,42,42,42,null,null,0,0,2,3,2,1,1,2,2,2,2,2,1,0,0,0,0,0,null,null,2,null,null,249,239,222,201,189,"","","","","","","","","","","","-","-","-",4,null,1100,null,null,null,null,null,null,null,null,null,null,null,null,null,null,null,null,null,null,null,null,null,null,null,null,null,null,null,null,null,null,null,null,null,null,null,null,null,null,null,null,null,null,null,null,null,null,null,null,null,null,null,null,null,null,null,null,null,null,null,null,null,null,42,null,42,"(30)"]
["43 (51)","Maire Johansson","Växjö",1096,null,5,109.6,null,null,null,null,null,null,182,null,223,null,231,null,241,219,null,null,null,null,null,null,null,11,"-","-","-",51,43,43,43,null,null,0,0,1,1,1,2,2,2,3,2,2,3,1,0,0,0,0,0,null,null,2,null,null,241,231,223,219,182,"","","","","","","","","","","","-","-","-",4,null,1096,null,null,null,null,null,null,null,null,null,null,null,null,null,null,null,null,null,null,null,null,null,null,null,null,null,null,null,null,null,null,null,null,null,null,null,null,null,null,null,null,null,null,null,null,null,null,null,null,null,null,null,null,null,null,null,null,null,null,null,null,null,null,43,null,43,"(51)"]
["44 (38)","Pascal Letter","Balders HSK",1078,null,5,107.8,null,null,null,251,161,168,null,null,null,268,null,230,null,null,null,null,null,null,null,null,null,11,"-","-","-",38,44,44,44,null,null,0,0,2,3,3,2,1,1,1,2,2,1,0,0,0,0,0,0,null,null,2,null,null,268,251,230,168,161,"","","","","","","","","","","","-","-","-",4,null,1078,null,null,null,null,null,null,null,null,null,null,null,null,null,null,null,null,null,null,null,null,null,null,null,null,null,null,null,null,null,null,null,null,null,null,null,null,null,null,null,null,null,null,null,null,null,null,null,null,null,null,null,null,null,null,null,null,null,null,null,null,null,null,44,null,44,"(38)"]
["45 (37)","Mattias Olsson","Dynapac ",1054,null,4,131.75,null,null,null,303,220,null,null,null,194,null,null,null,null,337,null,null,null,null,null,null,null,11,"-","-","-",37,45,45,45,null,null,0,0,2,3,2,1,1,2,2,1,1,2,1,0,0,0,0,0,null,null,2,null,null,337,303,220,194,"","","","","","","","","","","","","-","-","-",5,null,1054,null,null,null,null,null,null,null,null,null,null,null,null,null,null,null,null,null,null,null,null,null,null,null,null,null,null,null,null,null,null,null,null,null,null,null,null,null,null,null,null,null,null,null,null,null,null,null,null,null,null,null,null,null,null,null,null,null,null,null,null,null,null,45,null,45,"(37)"]
["46 (42)","Elin Olsson","Dynapac ",1050,null,5,105,null,null,null,162,160,null,null,null,199,null,283,null,null,246,null,null,null,null,null,null,null,11,"-","-","-",42,46,46,46,null,null,0,0,2,3,2,1,1,2,3,2,1,2,1,0,0,0,0,0,null,null,2,null,null,283,246,199,162,160,"","","","","","","","","","","","-","-","-",4,null,1050,null,null,null,null,null,null,null,null,null,null,null,null,null,null,null,null,null,null,null,null,null,null,null,null,null,null,null,null,null,null,null,null,null,null,null,null,null,null,null,null,null,null,null,null,null,null,null,null,null,null,null,null,null,null,null,null,null,null,null,null,null,null,46,null,46,"(42)"]
["47 (45)","Hernan Hernandez","Jämjö Hsk",1036,null,6,86.333333333333329,null,null,null,165,159,null,null,203,134,null,null,null,228,147,null,null,null,null,null,null,null,11,"-","-","-",45,47,47,47,null,null,0,0,2,3,2,1,2,3,2,1,2,3,1,0,0,0,0,0,null,null,2,null,null,228,203,165,159,147,134,"","","","","","","","","","","-","-","-",3,null,1036,null,null,null,null,null,null,null,null,null,null,null,null,null,null,null,null,null,null,null,null,null,null,null,null,null,null,null,null,null,null,null,null,null,null,null,null,null,null,null,null,null,null,null,null,null,null,null,null,null,null,null,null,null,null,null,null,null,null,null,null,null,null,47,null,47,"(45)"]
["48 (41)","Louise Tollstam","Dynapac ",1025,null,5,102.5,null,null,null,179,218,null,null,199,149,null,null,null,null,280,null,null,null,null,null,null,null,11,"-","-","-",41,48,48,48,null,null,0,0,2,3,2,1,2,3,2,1,1,2,1,0,0,0,0,0,null,null,2,null,null,280,218,199,179,149,"","","","","","","","","","","","-","-","-",4,null,1025,null,null,null,null,null,null,null,null,null,null,null,null,null,null,null,null,null,null,null,null,null,null,null,null,null,null,null,null,null,null,null,null,null,null,null,null,null,null,null,null,null,null,null,null,null,null,null,null,null,null,null,null,null,null,null,null,null,null,null,null,null,null,48,null,48,"(41)"]
["49 (57)","Bo Petersson","Korpen Nybro",1017,null,5,101.7,null,null,null,null,187,null,null,null,214,null,148,null,231,237,null,null,null,null,null,null,null,11,"-","-","-",57,49,49,49,null,null,0,0,1,2,2,1,1,2,3,2,2,3,1,0,0,0,0,0,null,null,2,null,null,237,231,214,187,148,"","","","","","","","","","","","-","-","-",4,null,1017,null,null,null,null,null,null,null,null,null,null,null,null,null,null,null,null,null,null,null,null,null,null,null,null,null,null,null,null,null,null,null,null,null,null,null,null,null,null,null,null,null,null,null,null,null,null,null,null,null,null,null,null,null,null,null,null,null,null,null,null,null,null,49,null,49,"(57)"]
["50 (58)","Fredrik Sandelius","Balders HSK",1006,null,5,100.6,null,null,null,181,230,173,null,null,null,258,null,164,null,null,null,null,null,null,null,null,null,11,"-","-","-",58,50,50,50,null,null,0,0,2,3,3,2,1,1,1,2,2,1,0,0,0,0,0,0,null,null,2,null,null,258,230,181,173,164,"","","","","","","","","","","","-","-","-",4,null,1006,null,null,null,null,null,null,null,null,null,null,null,null,null,null,null,null,null,null,null,null,null,null,null,null,null,null,null,null,null,null,null,null,null,null,null,null,null,null,null,null,null,null,null,null,null,null,null,null,null,null,null,null,null,null,null,null,null,null,null,null,null,null,50,null,50,"(58)"]
["51 (59)","Gilbert Pettersson","Lanternan",968,null,5,96.8,null,null,null,null,226,null,null,170,155,null,240,null,null,177,null,null,null,null,null,null,null,11,"-","-","-",59,51,51,51,null,null,0,0,1,2,2,1,2,3,3,2,1,2,1,0,0,0,0,0,null,null,2,null,null,240,226,177,170,155,"","","","","","","","","","","","-","-","-",4,null,968,null,null,null,null,null,null,null,null,null,null,null,null,null,null,null,null,null,null,null,null,null,null,null,null,null,null,null,null,null,null,null,null,null,null,null,null,null,null,null,null,null,null,null,null,null,null,null,null,null,null,null,null,null,null,null,null,null,null,null,null,null,null,51,null,51,"(59)"]
["52 (60)","Thomas Dahl","Växjö",965,null,7,68.928571428571431,null,null,null,201,106,null,173,null,61,null,140,null,175,109,null,null,null,null,null,null,null,11,"-","-","-",60,52,52,52,null,null,0,0,2,3,2,2,2,2,3,2,2,3,1,0,0,0,0,0,null,null,2,null,null,201,175,173,140,109,106,61,"","","","","","","","","","-","-","-",2,null,965,null,null,null,null,null,null,null,null,null,null,null,null,null,null,null,null,null,null,null,null,null,null,null,null,null,null,null,null,null,null,null,null,null,null,null,null,null,null,null,null,null,null,null,null,null,null,null,null,null,null,null,null,null,null,null,null,null,null,null,null,null,null,52,null,52,"(60)"]
["53 (50)","Roy Dahlén","Dynapac ",945,null,5,94.5,null,null,null,130,225,179,null,225,186,null,null,null,null,null,null,null,null,null,null,null,null,11,"-","-","-",50,53,53,53,null,null,0,0,2,3,3,2,2,3,2,1,1,1,0,0,0,0,0,0,null,null,2,null,null,225,225,186,179,130,"","","","","","","","","","","","-","-","-",4,null,945,null,null,null,null,null,null,null,null,null,null,null,null,null,null,null,null,null,null,null,null,null,null,null,null,null,null,null,null,null,null,null,null,null,null,null,null,null,null,null,null,null,null,null,null,null,null,null,null,null,null,null,null,null,null,null,null,null,null,null,null,null,null,53,null,53,"(50)"]
["54 (61)","Jonas Klarström","Team Småland ",928,null,8,58,null,null,null,88,111,78,113,null,203,null,92,null,133,110,null,null,null,null,null,null,null,11,"-","-","-",61,54,54,54,null,null,0,0,2,3,3,3,2,2,3,2,2,3,1,0,0,0,0,0,null,null,2,null,null,203,133,113,111,110,92,88,78,"","","","","","","","","-","-","-",1,null,928,null,null,null,null,null,null,null,null,null,null,null,null,null,null,null,null,null,null,null,null,null,null,null,null,null,null,null,null,null,null,null,null,null,null,null,null,null,null,null,null,null,null,null,null,null,null,null,null,null,null,null,null,null,null,null,null,null,null,null,null,null,null,54,null,54,"(61)"]
["55 (62)","Astrid Martinez","Jämjö Hsk",900,null,6,75,null,null,null,156,166,null,null,196,123,null,null,null,130,129,null,null,null,null,null,null,null,11,"-","-","-",62,55,55,55,null,null,0,0,2,3,2,1,2,3,2,1,2,3,1,0,0,0,0,0,null,null,2,null,null,196,166,156,130,129,123,"","","","","","","","","","","-","-","-",3,null,900,null,null,null,null,null,null,null,null,null,null,null,null,null,null,null,null,null,null,null,null,null,null,null,null,null,null,null,null,null,null,null,null,null,null,null,null,null,null,null,null,null,null,null,null,null,null,null,null,null,null,null,null,null,null,null,null,null,null,null,null,null,null,55,null,55,"(62)"]
["56 (43)","Daniel Mårtensson","Jämjö Hsk",894,null,5,89.4,null,null,null,163,119,null,null,207,197,null,null,null,208,null,null,null,null,null,null,null,null,11,"-","-","-",43,56,56,56,null,null,0,0,2,3,2,1,2,3,2,1,2,2,0,0,0,0,0,0,null,null,2,null,null,208,207,197,163,119,"","","","","","","","","","","","-","-","-",4,null,894,null,null,null,null,null,null,null,null,null,null,null,null,null,null,null,null,null,null,null,null,null,null,null,null,null,null,null,null,null,null,null,null,null,null,null,null,null,null,null,null,null,null,null,null,null,null,null,null,null,null,null,null,null,null,null,null,null,null,null,null,null,null,56,null,56,"(43)"]
["56 (63)","Günther Iraschko","Växjö Hsk",894,null,5,89.4,null,null,null,205,104,null,195,null,152,null,238,null,null,null,null,null,null,null,null,null,null,11,"-","-","-",63,56,57,57,null,null,0,0,2,3,2,2,2,2,3,2,1,1,0,0,0,0,0,0,null,null,2,null,null,238,205,195,152,104,"","","","","","","","","","","","-","-","-",4,null,894,null,null,null,null,null,null,null,null,null,null,null,null,null,null,null,null,null,null,null,null,null,null,null,null,null,null,null,null,null,null,null,null,null,null,null,null,null,null,null,null,null,null,null,null,null,null,null,null,null,null,null,null,null,null,null,null,null,null,null,null,null,null,57,null,56,"(63)"]
["58 (54)","Ewa Malmqvist","Jämjö Hsk",888,null,4,111,null,null,null,183,null,null,null,194,335,null,176,null,null,null,null,null,null,null,null,null,null,11,"-","-","-",54,58,58,58,null,null,0,0,2,2,1,1,2,3,3,2,1,1,0,0,0,0,0,0,null,null,2,null,null,335,194,183,176,"","","","","","","","","","","","","-","-","-",5,null,888,null,null,null,null,null,null,null,null,null,null,null,null,null,null,null,null,null,null,null,null,null,null,null,null,null,null,null,null,null,null,null,null,null,null,null,null,null,null,null,null,null,null,null,null,null,null,null,null,null,null,null,null,null,null,null,null,null,null,null,null,null,null,58,null,58,"(54)"]
["59 (64)","Solveig Axelsson","Växjö Hsk",844,null,6,70.333333333333329,null,null,null,132,82,null,153,null,113,null,164,null,200,null,null,null,null,null,null,null,null,11,"-","-","-",64,59,59,59,null,null,0,0,2,3,2,2,2,2,3,2,2,2,0,0,0,0,0,0,null,null,2,null,null,200,164,153,132,113,82,"","","","","","","","","","","-","-","-",3,null,844,null,null,null,null,null,null,null,null,null,null,null,null,null,null,null,null,null,null,null,null,null,null,null,null,null,null,null,null,null,null,null,null,null,null,null,null,null,null,null,null,null,null,null,null,null,null,null,null,null,null,null,null,null,null,null,null,null,null,null,null,null,null,59,null,59,"(64)"]
["60 (52)","Erik Smiding","Vaxholm Hsk",837,null,5,83.7,null,null,null,230,134,131,null,null,null,192,null,150,null,null,null,null,null,null,null,null,null,11,"-","-","-",52,60,60,60,null,null,0,0,2,3,3,2,1,1,1,2,2,1,0,0,0,0,0,0,null,null,2,null,null,230,192,150,134,131,"","","","","","","","","","","","-","-","-",4,null,837,null,null,null,null,null,null,null,null,null,null,null,null,null,null,null,null,null,null,null,null,null,null,null,null,null,null,null,null,null,null,null,null,null,null,null,null,null,null,null,null,null,null,null,null,null,null,null,null,null,null,null,null,null,null,null,null,null,null,null,null,null,null,60,null,60,"(52)"]
["61 (55)","Lars Johanesson","Jämjö Hsk",826,null,5,82.6,null,null,null,109,194,null,null,193,140,null,null,null,190,null,null,null,null,null,null,null,null,11,"-","-","-",55,61,61,61,null,null,0,0,2,3,2,1,2,3,2,1,2,2,0,0,0,0,0,0,null,null,2,null,null,194,193,190,140,109,"","","","","","","","","","","","-","-","-",4,null,826,null,null,null,null,null,null,null,null,null,null,null,null,null,null,null,null,null,null,null,null,null,null,null,null,null,null,null,null,null,null,null,null,null,null,null,null,null,null,null,null,null,null,null,null,null,null,null,null,null,null,null,null,null,null,null,null,null,null,null,null,null,null,61,null,61,"(55)"]
["62 (49)","Bernt Olsson","Jämjö Hsk",821,null,4,102.625,null,null,null,212,null,null,null,174,193,null,242,null,null,null,null,null,null,null,null,null,null,11,"-","-","-",49,62,62,62,null,null,0,0,2,2,1,1,2,3,3,2,1,1,0,0,0,0,0,0,null,null,2,null,null,242,212,193,174,"","","","","","","","","","","","","-","-","-",5,null,821,null,null,null,null,null,null,null,null,null,null,null,null,null,null,null,null,null,null,null,null,null,null,null,null,null,null,null,null,null,null,null,null,null,null,null,null,null,null,null,null,null,null,null,null,null,null,null,null,null,null,null,null,null,null,null,null,null,null,null,null,null,null,62,null,62,"(49)"]
["63 (56)","Inge Skoglöv","Jämjö Hsk",817,null,4,102.125,null,null,null,239,194,null,null,null,null,null,null,null,183,201,null,null,null,null,null,null,null,11,"-","-","-",56,63,63,63,null,null,0,0,2,3,2,1,1,1,1,1,2,3,1,0,0,0,0,0,null,null,2,null,null,239,201,194,183,"","","","","","","","","","","","","-","-","-",5,null,817,null,null,null,null,null,null,null,null,null,null,null,null,null,null,null,null,null,null,null,null,null,null,null,null,null,null,null,null,null,null,null,null,null,null,null,null,null,null,null,null,null,null,null,null,null,null,null,null,null,null,null,null,null,null,null,null,null,null,null,null,null,null,63,null,63,"(56)"]
["64 (53)","Jan Petersson","Lanternan",811,null,5,81.099999999999994,null,null,null,150,151,null,null,168,169,null,173,null,null,null,null,null,null,null,null,null,null,11,"-","-","-",53,64,64,64,null,null,0,0,2,3,2,1,2,3,3,2,1,1,0,0,0,0,0,0,null,null,2,null,null,173,169,168,151,150,"","","","","","","","","","","","-","-","-",4,null,811,null,null,null,null,null,null,null,null,null,null,null,null,null,null,null,null,null,null,null,null,null,null,null,null,null,null,null,null,null,null,null,null,null,null,null,null,null,null,null,null,null,null,null,null,null,null,null,null,null,null,null,null,null,null,null,null,null,null,null,null,null,null,64,null,64,"(53)"]
[{"$f":"IF(BG69>1,AH69&\" (\"&AG69&\")\",AH69&\" (\"&AI69&\")\")","v":"65 (65)"},"Åke Bergqvist","Tingsryd",{"$f":"SUM(BJ69:BU69)","v":771},null,{"$f":"COUNT(I69:AB69)","v":4},{"$f":"SUM((CE69)/(F69*2))","v":96.375},null,null,null,null,null,null,null,null,207,null,169,null,131,264,null,null,null,null,null,null,null,{"$f":"SUM($I$3:$AB$3)","v":11},{"$f":"BZ69","v":"-"},{"$f":"CA69","v":"-"},{"$f":"CB69","v":"-"},65,{"$f":"IF(D69<D68,AJ69,AH68)","v":65},{"$f":"IF(F69>1,ROW(65:65),\"-\")","v":65},65,null,null,{"$f":"COUNT($I$3,I69,H69)","v":0},{"$f":"COUNT($J$3,J69,I69)","v":0},{"$f":"COUNT($K$3,K69,J69)","v":1},{"$f":"COUNT($L$3,L69,K69)","v":1},{"$f":"COUNT($M$3,M69,L69)","v":1},{"$f":"COUNT($N$3,N69,M69)","v":1},{"$f":"COUNT($O$3,O69,N69)","v":1},{"$f":"COUNT($P$3,P69,O69)","v":2},{"$f":"COUNT($R$3,R69,P69)","v":3},{"$f":"COUNT($S$3,S69,R69)","v":2},{"$f":"COUNT($T$3,T69,S69)","v":2},{"$f":"COUNT($U$3,U69,T69)","v":3},{"$f":"COUNT($V$3,V69,U69)","v":1},{"$f":"COUNT($W$3,W69,V69)","v":0},{"$f":"COUNT($X$3,X69,W69)","v":0},{"$f":"COUNT($Y$3,Y69,X69)","v":0},{"$f":"COUNT($AA$3,AA69,Y69)","v":0},{"$f":"COUNT($AB$3,AB69,AA69)","v":0},null,null,{"$f":"IF(H69=\"x\",1,2)","v":2},null,null,{"$f":"IF($F69>0,LARGE($I69:$AB69,1),\"\")","v":264},{"$f":"IF($F69>1,LARGE($I69:$AB69,2),\"\")","v":207},{"$f":"IF($F69>2,LARGE($I69:$AB69,3),\"\")","v":169},{"$f":"IF($F69>3,LARGE($I69:$AB69,4),\"\")","v":131},{"$f":"IF($F69>4,LARGE($I69:$AB69,5),\"\")","v":""},{"$f":"IF($F69>5,LARGE($I69:$AB69,6),\"\")","v":""},{"$f":"IF($F69>6,LARGE($I69:$AB69,7),\"\")","v":""},{"$f":"IF($F69>7,LARGE($I69:$AB69,8),\"\")","v":""},{"$f":"IF($F69>8,LARGE($I69:$AB69,9),\"\")","v":""},{"$f":"IF($F69>9,LARGE($I69:$AB69,10),\"\")","v":""},{"$f":"IF($F69>10,LARGE($I69:$AB69,11),\"\")","v":""},{"$f":"IF($F69>11,LARGE($I69:$AB69,12),\"\")","v":""},{"$f":"IF($F69>12,LARGE($I69:$AB69,13),\"\")","v":""},{"$f":"IF($F69>13,LARGE($I69:$AB69,14),\"\")","v":""},{"$f":"IF($F69>14,LARGE($I69:$AB69,15),\"\")","v":""},{"$f":"IF($F69>15,LARGE($I69:$AB69,16),\"\")","v":""},{"$f":"IF($F69>12,LARGE($I69:$AB69,13),\"-\")","v":"-"},{"$f":"IF($F69>13,LARGE($I69:$AB69,14),\"-\")","v":"-"},{"$f":"IF($F69>14,LARGE($I69:$AB69,15),\"-\")","v":"-"},{"$f":"SUM(AC69-F69)-2","v":5},null,{"$f":"SUM(BJ69:BY69)","v":771},null,null,null,null,null,null,null,null,null,null,null,null,null,null,null,null,null,null,null,null,null,null,null,null,null,null,null,null,null,null,null,null,null,null,null,null,null,null,null,null,null,null,null,null,null,null,null,null,null,null,null,null,null,null,null,null,null,null,null,null,null,null,65,null,{"$f":"IF(BG69>=1,AH69,\"\")","v":65},{"$f":"IF(BG69>1,\"(\"&AG69&\")\",\"(\"&AI69&\")\")","v":"(65)"}]
["66 (68)","Gebriela Kostantinos","Korpen Åseda",675,null,2,168.75,null,null,null,null,null,null,291,null,null,null,384,null,null,null,null,null,null,null,null,null,null,11,"-","-","-",68,66,66,66,null,null,0,0,1,1,1,2,2,1,2,2,1,1,0,0,0,0,0,0,null,null,2,null,null,384,291,"","","","","","","","","","","","","","","-","-","-",7,null,675,null,null,null,null,null,null,null,null,null,null,null,null,null,null,null,null,null,null,null,null,null,null,null,null,null,null,null,null,null,null,null,null,null,null,null,null,null,null,null,null,null,null,null,null,null,null,null,null,null,null,null,null,null,null,null,null,null,null,null,null,null,null,66,null,66,"(68)"]
["67 (71)","Malira Eriksson","Balders HSK",652,null,3,108.66666666666667,null,null,null,null,null,null,null,null,null,268,null,190,null,194,null,null,null,null,null,null,null,11,"-","-","-",71,67,67,67,null,null,0,0,1,1,1,1,1,1,1,2,2,2,1,0,0,0,0,0,null,null,2,null,null,268,194,190,"","","","","","","","","","","","","","-","-","-",6,null,652,null,null,null,null,null,null,null,null,null,null,null,null,null,null,null,null,null,null,null,null,null,null,null,null,null,null,null,null,null,null,null,null,null,null,null,null,null,null,null,null,null,null,null,null,null,null,null,null,null,null,null,null,null,null,null,null,null,null,null,null,null,null,67,null,67,"(71)"]
["68 (75)","Alf Svensson","Korpen Åseda",621,null,3,103.5,null,null,null,120,null,null,215,null,null,null,286,null,null,null,null,null,null,null,null,null,null,11,"-","-","-",75,68,68,68,null,null,0,0,2,2,1,2,2,1,2,2,1,1,0,0,0,0,0,0,null,null,2,null,null,286,215,120,"","","","","","","","","","","","","","-","-","-",6,null,621,null,null,null,null,null,null,null,null,null,null,null,null,null,null,null,null,null,null,null,null,null,null,null,null,null,null,null,null,null,null,null,null,null,null,null,null,null,null,null,null,null,null,null,null,null,null,null,null,null,null,null,null,null,null,null,null,null,null,null,null,null,null,68,null,68,"(75)"]
["69 (78)","Anders Karlsson","Värends Hsk",598,null,4,74.75,null,null,null,null,111,null,null,null,79,null,202,null,null,206,null,null,null,null,null,null,null,11,"-","-","-",78,69,69,69,null,null,0,0,1,2,2,1,1,2,3,2,1,2,1,0,0,0,0,0,null,null,2,null,null,206,202,111,79,"","","","","","","","","","","","","-","-","-",5,null,598,null,null,null,null,null,null,null,null,null,null,null,null,null,null,null,null,null,null,null,null,null,null,null,null,null,null,null,null,null,null,null,null,null,null,null,null,null,null,null,null,null,null,null,null,null,null,null,null,null,null,null,null,null,null,null,null,null,null,null,null,null,null,69,null,69,"(78)"]
["70 (80)","Gunnar Lundbeck","Tingsryd",568,null,4,71,null,null,null,null,null,null,155,null,113,null,140,null,160,null,null,null,null,null,null,null,null,11,"-","-","-",80,70,70,70,null,null,0,0,1,1,1,2,2,2,3,2,2,2,0,0,0,0,0,0,null,null,2,null,null,160,155,140,113,"","","","","","","","","","","","","-","-","-",5,null,568,null,null,null,null,null,null,null,null,null,null,null,null,null,null,null,null,null,null,null,null,null,null,null,null,null,null,null,null,null,null,null,null,null,null,null,null,null,null,null,null,null,null,null,null,null,null,null,null,null,null,null,null,null,null,null,null,null,null,null,null,null,null,70,null,70,"(80)"]
["71 (81)","Mats Mårtensson","Jämjö Hsk",567,null,3,94.5,null,null,null,214,204,null,null,null,null,null,null,null,null,149,null,null,null,null,null,null,null,11,"-","-","-",81,71,71,71,null,null,0,0,2,3,2,1,1,1,1,1,1,2,1,0,0,0,0,0,null,null,2,null,null,214,204,149,"","","","","","","","","","","","","","-","-","-",6,null,567,null,null,null,null,null,null,null,null,null,null,null,null,null,null,null,null,null,null,null,null,null,null,null,null,null,null,null,null,null,null,null,null,null,null,null,null,null,null,null,null,null,null,null,null,null,null,null,null,null,null,null,null,null,null,null,null,null,null,null,null,null,null,71,null,71,"(81)"]
["72 (67)","Leif Sundahl","Carlskrona",559,null,3,93.166666666666671,null,null,null,null,null,null,null,null,224,null,154,null,null,181,null,null,null,null,null,null,null,11,"-","-","-",67,72,72,72,null,null,0,0,1,1,1,1,1,2,3,2,1,2,1,0,0,0,0,0,null,null,2,null,null,224,181,154,"","","","","","","","","","","","","","-","-","-",6,null,559,null,null,null,null,null,null,null,null,null,null,null,null,null,null,null,null,null,null,null,null,null,null,null,null,null,null,null,null,null,null,null,null,null,null,null,null,null,null,null,null,null,null,null,null,null,null,null,null,null,null,null,null,null,null,null,null,null,null,null,null,null,null,72,null,72,"(67)"]
["73 (82)","Klara Larsson","Värends Hsk",544,null,3,90.666666666666671,null,null,null,null,null,null,null,null,null,null,217,null,209,118,null,null,null,null,null,null,null,11,"-","-","-",82,73,73,73,null,null,0,0,1,1,1,1,1,1,2,2,2,3,1,0,0,0,0,0,null,null,2,null,null,217,209,118,"","","","","","","","","","","","","","-","-","-",6,null,544,null,null,null,null,null,null,null,null,null,null,null,null,null,null,null,null,null,null,null,null,null,null,null,null,null,null,null,null,null,null,null,null,null,null,null,null,null,null,null,null,null,null,null,null,null,null,null,null,null,null,null,null,null,null,null,null,null,null,null,null,null,null,73,null,73,"(82)"]
["74 (83)","Laila Johansson","Tingsryd",538,null,3,89.666666666666671,null,null,null,118,181,null,null,null,null,null,null,null,null,239,null,null,null,null,null,null,null,11,"-","-","-",83,74,74,74,null,null,0,0,2,3,2,1,1,1,1,1,1,2,1,0,0,0,0,0,null,null,2,null,null,239,181,118,"","","","","","","","","","","","","","-","-","-",6,null,538,null,null,null,null,null,null,null,null,null,null,null,null,null,null,null,null,null,null,null,null,null,null,null,null,null,null,null,null,null,null,null,null,null,null,null,null,null,null,null,null,null,null,null,null,null,null,null,null,null,null,null,null,null,null,null,null,null,null,null,null,null,null,74,null,74,"(83)"]
["75 (85)","Anton Alexandersson","Sibbamåla",527,null,2,131.75,null,null,null,null,null,null,null,null,228,null,null,null,null,299,null,null,null,null,null,null,null,11,"-","-","-",85,75,75,75,null,null,0,0,1,1,1,1,1,2,2,1,1,2,1,0,0,0,0,0,null,null,2,null,null,299,228,"","","","","","","","","","","","","","","-","-","-",7,null,527,null,null,null,null,null,null,null,null,null,null,null,null,null,null,null,null,null,null,null,null,null,null,null,null,null,null,null,null,null,null,null,null,null,null,null,null,null,null,null,null,null,null,null,null,null,null,null,null,null,null,null,null,null,null,null,null,null,null,null,null,null,null,75,null,75,"(85)"]
["76 (86)","Julius Gneupel","Sibbamåla",525,null,3,87.5,null,null,null,182,136,null,null,null,207,null,null,null,null,null,null,null,null,null,null,null,null,11,"-","-","-",86,76,76,76,null,null,0,0,2,3,2,1,1,2,2,1,1,1,0,0,0,0,0,0,null,null,2,null,null,207,182,136,"","","","","","","","","","","","","","-","-","-",6,null,525,null,null,null,null,null,null,null,null,null,null,null,null,null,null,null,null,null,null,null,null,null,null,null,null,null,null,null,null,null,null,null,null,null,null,null,null,null,null,null,null,null,null,null,null,null,null,null,null,null,null,null,null,null,null,null,null,null,null,null,null,null,null,76,null,76,"(86)"]
["77 (87)","Jonas Bergqvist","Balders HSK",524,null,5,52.4,null,null,null,57,131,107,null,null,null,null,null,136,null,93,null,null,null,null,null,null,null,11,"-","-","-",87,77,77,77,null,null,0,0,2,3,3,2,1,1,1,2,2,2,1,0,0,0,0,0,null,null,2,null,null,136,131,107,93,57,"","","","","","","","","","","","-","-","-",4,null,524,null,null,null,null,null,null,null,null,null,null,null,null,null,null,null,null,null,null,null,null,null,null,null,null,null,null,null,null,null,null,null,null,null,null,null,null,null,null,null,null,null,null,null,null,null,null,null,null,null,null,null,null,null,null,null,null,null,null,null,null,null,null,77,null,77,"(87)"]
["78 (88)","Hans Johansson","Tingsryd",521,null,2,130.25,null,null,null,null,null,null,274,null,null,null,null,null,null,247,null,null,null,null,null,null,null,11,"-","-","-",88,78,78,78,null,null,0,0,1,1,1,2,2,1,1,1,1,2,1,0,0,0,0,0,null,null,2,null,null,274,247,"","","","","","","","","","","","","","","-","-","-",7,null,521,null,null,null,null,null,null,null,null,null,null,null,null,null,null,null,null,null,null,null,null,null,null,null,null,null,null,null,null,null,null,null,null,null,null,null,null,null,null,null,null,null,null,null,null,null,null,null,null,null,null,null,null,null,null,null,null,null,null,null,null,null,null,78,null,78,"(88)"]
["79 (89)","Billy Klarström","Team Småland ",511,null,3,85.166666666666671,null,null,null,null,null,null,180,null,null,null,167,null,164,null,null,null,null,null,null,null,null,11,"-","-","-",89,79,79,79,null,null,0,0,1,1,1,2,2,1,2,2,2,2,0,0,0,0,0,0,null,null,2,null,null,180,167,164,"","","","","","","","","","","","","","-","-","-",6,null,511,null,null,null,null,null,null,null,null,null,null,null,null,null,null,null,null,null,null,null,null,null,null,null,null,null,null,null,null,null,null,null,null,null,null,null,null,null,null,null,null,null,null,null,null,null,null,null,null,null,null,null,null,null,null,null,null,null,null,null,null,null,null,79,null,79,"(89)"]
["80 (90)","Karin Gullbrand","Värends Hsk",508,null,5,50.8,null,null,null,86,71,140,null,null,null,null,100,null,111,null,null,null,null,null,null,null,null,11,"-","-","-",90,80,80,80,null,null,0,0,2,3,3,2,1,1,2,2,2,2,0,0,0,0,0,0,null,null,2,null,null,140,111,100,86,71,"","","","","","","","","","","","-","-","-",4,null,508,null,null,null,null,null,null,null,null,null,null,null,null,null,null,null,null,null,null,null,null,null,null,null,null,null,null,null,null,null,null,null,null,null,null,null,null,null,null,null,null,null,null,null,null,null,null,null,null,null,null,null,null,null,null,null,null,null,null,null,null,null,null,80,null,80,"(90)"]
["81 (72)","Lisbeth Blihd","Lanternan",497,null,3,82.833333333333329,null,null,null,null,null,null,null,148,126,null,null,null,null,223,null,null,null,null,null,null,null,11,"-","-","-",72,81,81,81,null,null,0,0,1,1,1,1,2,3,2,1,1,2,1,0,0,0,0,0,null,null,2,null,null,223,148,126,"","","","","","","","","","","","","","-","-","-",6,null,497,null,null,null,null,null,null,null,null,null,null,null,null,null,null,null,null,null,null,null,null,null,null,null,null,null,null,null,null,null,null,null,null,null,null,null,null,null,null,null,null,null,null,null,null,null,null,null,null,null,null,null,null,null,null,null,null,null,null,null,null,null,null,81,null,81,"(72)"]
["82 (92)","Thomas Marklund","Värends Hsk",496,null,4,62,null,null,null,null,122,null,null,null,null,null,91,null,151,132,null,null,null,null,null,null,null,11,"-","-","-",92,82,82,82,null,null,0,0,1,2,2,1,1,1,2,2,2,3,1,0,0,0,0,0,null,null,2,null,null,151,132,122,91,"","","","","","","","","","","","","-","-","-",5,null,496,null,null,null,null,null,null,null,null,null,null,null,null,null,null,null,null,null,null,null,null,null,null,null,null,null,null,null,null,null,null,null,null,null,null,null,null,null,null,null,null,null,null,null,null,null,null,null,null,null,null,null,null,null,null,null,null,null,null,null,null,null,null,82,null,82,"(92)"]
["83 (94)","Emil Rehn","Korpen Åseda",486,null,2,121.5,null,null,null,null,228,null,258,null,null,null,null,null,null,null,null,null,null,null,null,null,null,11,"-","-","-",94,83,83,83,null,null,0,0,1,2,2,2,2,1,1,1,1,1,0,0,0,0,0,0,null,null,2,null,null,258,228,"","","","","","","","","","","","","","","-","-","-",7,null,486,null,null,null,null,null,null,null,null,null,null,null,null,null,null,null,null,null,null,null,null,null,null,null,null,null,null,null,null,null,null,null,null,null,null,null,null,null,null,null,null,null,null,null,null,null,null,null,null,null,null,null,null,null,null,null,null,null,null,null,null,null,null,83,null,83,"(94)"]
["84 (95)","Magnus Israelsson","Sibbamåla",473,null,2,118.25,null,null,null,null,null,null,null,null,252,null,null,null,null,221,null,null,null,null,null,null,null,11,"-","-","-",95,84,84,84,null,null,0,0,1,1,1,1,1,2,2,1,1,2,1,0,0,0,0,0,null,null,2,null,null,252,221,"","","","","","","","","","","","","","","-","-","-",7,null,473,null,null,null,null,null,null,null,null,null,null,null,null,null,null,null,null,null,null,null,null,null,null,null,null,null,null,null,null,null,null,null,null,null,null,null,null,null,null,null,null,null,null,null,null,null,null,null,null,null,null,null,null,null,null,null,null,null,null,null,null,null,null,84,null,84,"(95)"]
["84 (96)","Tomas Lindedal","Växjö Hsk",473,null,4,59.125,null,null,null,null,null,null,null,null,33,null,121,null,175,144,null,null,null,null,null,null,null,11,"-","-","-",96,84,85,85,null,null,0,0,1,1,1,1,1,2,3,2,2,3,1,0,0,0,0,0,null,null,2,null,null,175,144,121,33,"","","","","","","","","","","","","-","-","-",5,null,473,null,null,null,null,null,null,null,null,null,null,null,null,null,null,null,null,null,null,null,null,null,null,null,null,null,null,null,null,null,null,null,null,null,null,null,null,null,null,null,null,null,null,null,null,null,null,null,null,null,null,null,null,null,null,null,null,null,null,null,null,null,null,85,null,84,"(96)"]
["86 (73)","Arne Blihd","Lanternan",459,null,3,76.5,null,null,null,null,null,null,null,211,129,null,null,null,null,119,null,null,null,null,null,null,null,11,"-","-","-",73,86,86,86,null,null,0,0,1,1,1,1,2,3,2,1,1,2,1,0,0,0,0,0,null,null,2,null,null,211,129,119,"","","","","","","","","","","","","","-","-","-",6,null,459,null,null,null,null,null,null,null,null,null,null,null,null,null,null,null,null,null,null,null,null,null,null,null,null,null,null,null,null,null,null,null,null,null,null,null,null,null,null,null,null,null,null,null,null,null,null,null,null,null,null,null,null,null,null,null,null,null,null,null,null,null,null,86,null,86,"(73)"]
["87 (66)","Marianne Karlsson","Jämjö Hsk",457,null,3,76.166666666666671,null,null,null,148,null,null,null,166,143,null,null,null,null,null,null,null,null,null,null,null,null,11,"-","-","-",66,87,87,87,null,null,0,0,2,2,1,1,2,3,2,1,1,1,0,0,0,0,0,0,null,null,2,null,null,166,148,143,"","","","","","","","","","","","","","-","-","-",6,null,457,null,null,null,null,null,null,null,null,null,null,null,null,null,null,null,null,null,null,null,null,null,null,null,null,null,null,null,null,null,null,null,null,null,null,null,null,null,null,null,null,null,null,null,null,null,null,null,null,null,null,null,null,null,null,null,null,null,null,null,null,null,null,87,null,87,"(66)"]
["88 (84)","Martin Smeds","Balders HSK",452,null,4,56.5,null,null,null,120,73,103,null,null,null,null,null,156,null,null,null,null,null,null,null,null,null,11,"-","-","-",84,88,88,88,null,null,0,0,2,3,3,2,1,1,1,2,2,1,0,0,0,0,0,0,null,null,2,null,null,156,120,103,73,"","","","","","","","","","","","","-","-","-",5,null,452,null,null,null,null,null,null,null,null,null,null,null,null,null,null,null,null,null,null,null,null,null,null,null,null,null,null,null,null,null,null,null,null,null,null,null,null,null,null,null,null,null,null,null,null,null,null,null,null,null,null,null,null,null,null,null,null,null,null,null,null,null,null,88,null,88,"(84)"]
["89 (79)","Ingegärd Holmqvist","Lanternan",448,null,3,74.666666666666671,null,null,null,115,136,null,null,197,null,null,null,null,null,null,null,null,null,null,null,null,null,11,"-","-","-",79,89,89,89,null,null,0,0,2,3,2,1,2,2,1,1,1,1,0,0,0,0,0,0,null,null,2,null,null,197,136,115,"","","","","","","","","","","","","","-","-","-",6,null,448,null,null,null,null,null,null,null,null,null,null,null,null,null,null,null,null,null,null,null,null,null,null,null,null,null,null,null,null,null,null,null,null,null,null,null,null,null,null,null,null,null,null,null,null,null,null,null,null,null,null,null,null,null,null,null,null,null,null,null,null,null,null,90,null,89,"(79)"]
["90 (98)","Johnny Åberg","Balders HSK",433,null,3,72.166666666666671,null,null,null,null,null,116,null,null,null,175,null,142,null,null,null,null,null,null,null,null,null,11,"-","-","-",98,90,90,90,null,null,0,0,1,1,2,2,1,1,1,2,2,1,0,0,0,0,0,0,null,null,2,null,null,175,142,116,"","","","","","","","","","","","","","-","-","-",6,null,433,null,null,null,null,null,null,null,null,null,null,null,null,null,null,null,null,null,null,null,null,null,null,null,null,null,null,null,null,null,null,null,null,null,null,null,null,null,null,null,null,null,null,null,null,null,null,null,null,null,null,null,null,null,null,null,null,null,null,null,null,null,null,91,null,90,"(98)"]
["91 (91)","Lotta Sundin","Vaxholm",431,null,3,71.833333333333329,null,null,null,null,null,115,null,null,null,213,null,103,null,null,null,null,null,null,null,null,null,11,"-","-","-",91,91,91,91,null,null,0,0,1,1,2,2,1,1,1,2,2,1,0,0,0,0,0,0,null,null,2,null,null,213,115,103,"","","","","","","","","","","","","","-","-","-",6,null,431,null,null,null,null,null,null,null,null,null,null,null,null,null,null,null,null,null,null,null,null,null,null,null,null,null,null,null,null,null,null,null,null,null,null,null,null,null,null,null,null,null,null,null,null,null,null,null,null,null,null,null,null,null,null,null,null,null,null,null,null,null,null,92,null,91,"(91)"]
["92 (76)","Andreas Gundersen","Vaxholm Hsk",430,null,2,107.5,null,null,null,null,null,191,null,null,null,239,null,null,null,null,null,null,null,null,null,null,null,11,"-","-","-",76,92,92,92,null,null,0,0,1,1,2,2,1,1,1,1,1,1,0,0,0,0,0,0,null,null,2,null,null,239,191,"","","","","","","","","","","","","","","-","-","-",7,null,430,null,null,null,null,null,null,null,null,null,null,null,null,null,null,null,null,null,null,null,null,null,null,null,null,null,null,null,null,null,null,null,null,null,null,null,null,null,null,null,null,null,null,null,null,null,null,null,null,null,null,null,null,null,null,null,null,null,null,null,null,null,null,93,null,92,"(76)"]
["93 (70)","Lukas Bern","Dynapac ",426,null,3,71,null,null,null,131,137,null,null,158,null,null,null,null,null,null,null,null,null,null,null,null,null,11,"-","-","-",70,93,93,93,null,null,0,0,2,3,2,1,2,2,1,1,1,1,0,0,0,0,0,0,null,null,2,null,null,158,137,131,"","","","","","","","","","","","","","-","-","-",6,null,426,null,null,null,null,null,null,null,null,null,null,null,null,null,null,null,null,null,null,null,null,null,null,null,null,null,null,null,null,null,null,null,null,null,null,null,null,null,null,null,null,null,null,null,null,null,null,null,null,null,null,null,null,null,null,null,null,null,null,null,null,null,null,89,null,93,"(70)"]
["94 (69)","Irené Pettersson","Lanternan",424,null,3,70.666666666666671,null,null,null,null,null,null,null,170,117,null,null,null,null,137,null,null,null,null,null,null,null,11,"-","-","-",69,94,94,94,null,null,0,0,1,1,1,1,2,3,2,1,1,2,1,0,0,0,0,0,null,null,2,null,null,170,137,117,"","","","","","","","","","","","","","-","-","-",6,null,424,null,null,null,null,null,null,null,null,null,null,null,null,null,null,null,null,null,null,null,null,null,null,null,null,null,null,null,null,null,null,null,null,null,null,null,null,null,null,null,null,null,null,null,null,null,null,null,null,null,null,null,null,null,null,null,null,null,null,null,null,null,null,94,null,94,"(69)"]
["95 (99)","Roger Eriksson","Balders HSK",414,null,3,69,null,null,null,null,null,null,null,null,null,145,null,120,null,149,null,null,null,null,null,null,null,11,"-","-","-",99,95,95,95,null,null,0,0,1,1,1,1,1,1,1,2,2,2,1,0,0,0,0,0,null,null,2,null,null,149,145,120,"","","","","","","","","","","","","","-","-","-",6,null,414,null,null,null,null,null,null,null,null,null,null,null,null,null,null,null,null,null,null,null,null,null,null,null,null,null,null,null,null,null,null,null,null,null,null,null,null,null,null,null,null,null,null,null,null,null,null,null,null,null,null,null,null,null,null,null,null,null,null,null,null,null,null,95,null,95,"(99)"]
["96 (77)","Mikael Klaving","Vaxholm Hsk",401,null,2,100.25,null,null,null,null,null,177,null,null,null,224,null,null,null,null,null,null,null,null,null,null,null,11,"-","-","-",77,96,96,96,null,null,0,0,1,1,2,2,1,1,1,1,1,1,0,0,0,0,0,0,null,null,2,null,null,224,177,"","","","","","","","","","","","","","","-","-","-",7,null,401,null,null,null,null,null,null,null,null,null,null,null,null,null,null,null,null,null,null,null,null,null,null,null,null,null,null,null,null,null,null,null,null,null,null,null,null,null,null,null,null,null,null,null,null,null,null,null,null,null,null,null,null,null,null,null,null,null,null,null,null,null,null,96,null,96,"(77)"]
["97 (101)","Kjell Åkesson","Lanternan",389,null,3,64.833333333333329,null,null,null,null,null,null,null,180,102,null,null,null,null,107,null,null,null,null,null,null,null,11,"-","-","-",101,97,97,97,null,null,{"$f":"COUNT($I$3,I101,H101)","v":0},{"$f":"COUNT($J$3,J101,I101)","v":0},{"$f":"COUNT($K$3,K101,J101)","v":1},{"$f":"COUNT($L$3,L101,K101)","v":1},{"$f":"COUNT($M$3,M101,L101)","v":1},{"$f":"COUNT($N$3,N101,M101)","v":1},{"$f":"COUNT($O$3,O101,N101)","v":2},{"$f":"COUNT($P$3,P101,O101)","v":3},{"$f":"COUNT($R$3,R101,P101)","v":2},{"$f":"COUNT($S$3,S101,R101)","v":1},{"$f":"COUNT($T$3,T101,S101)","v":1},{"$f":"COUNT($U$3,U101,T101)","v":2},{"$f":"COUNT($V$3,V101,U101)","v":1},{"$f":"COUNT($W$3,W101,V101)","v":0},{"$f":"COUNT($X$3,X101,W101)","v":0},{"$f":"COUNT($Y$3,Y101,X101)","v":0},{"$f":"COUNT($AA$3,AA101,Y101)","v":0},{"$f":"COUNT($AB$3,AB101,AA101)","v":0},null,null,{"$f":"IF(H101=\"x\",1,2)","v":2},null,null,{"$f":"IF($F101>0,LARGE($I101:$AB101,1),\"\")","v":180},{"$f":"IF($F101>1,LARGE($I101:$AB101,2),\"\")","v":107},{"$f":"IF($F101>2,LARGE($I101:$AB101,3),\"\")","v":102},{"$f":"IF($F101>3,LARGE($I101:$AB101,4),\"\")","v":""},{"$f":"IF($F101>4,LARGE($I101:$AB101,5),\"\")","v":""},{"$f":"IF($F101>5,LARGE($I101:$AB101,6),\"\")","v":""},{"$f":"IF($F101>6,LARGE($I101:$AB101,7),\"\")","v":""},{"$f":"IF($F101>7,LARGE($I101:$AB101,8),\"\")","v":""},{"$f":"IF($F101>8,LARGE($I101:$AB101,9),\"\")","v":""},{"$f":"IF($F101>9,LARGE($I101:$AB101,10),\"\")","v":""},{"$f":"IF($F101>10,LARGE($I101:$AB101,11),\"\")","v":""},{"$f":"IF($F101>11,LARGE($I101:$AB101,12),\"\")","v":""},{"$f":"IF($F101>12,LARGE($I101:$AB101,13),\"\")","v":""},{"$f":"IF($F101>13,LARGE($I101:$AB101,14),\"\")","v":""},{"$f":"IF($F101>14,LARGE($I101:$AB101,15),\"\")","v":""},{"$f":"IF($F101>15,LARGE($I101:$AB101,16),\"\")","v":""},{"$f":"IF($F101>12,LARGE($I101:$AB101,13),\"-\")","v":"-"},{"$f":"IF($F101>13,LARGE($I101:$AB101,14),\"-\")","v":"-"},{"$f":"IF($F101>14,LARGE($I101:$AB101,15),\"-\")","v":"-"},{"$f":"SUM(AC101-F101)-2","v":6},null,389,null,null,null,null,null,null,null,null,null,null,null,null,null,null,null,null,null,null,null,null,null,null,null,null,null,null,null,null,null,null,null,null,null,null,null,null,null,null,null,null,null,null,null,null,null,null,null,null,null,null,null,null,null,null,null,null,null,null,null,null,null,null,97,null,{"$f":"IF(BG101>=1,AH101,\"\")","v":97},"(101)"]
["98 (74)","Marcus Karlsson","Jämjö Hsk",382,null,2,95.5,null,null,null,188,null,null,null,null,194,null,null,null,null,null,null,null,null,null,null,null,null,11,"-","-","-",74,98,98,98,null,null,0,0,2,2,1,1,1,2,2,1,1,1,0,0,0,0,0,0,null,null,2,null,null,194,188,"","","","","","","","","","","","","","","-","-","-",7,null,382,null,null,null,null,null,null,null,null,null,null,null,null,null,null,null,null,null,null,null,null,null,null,null,null,null,null,null,null,null,null,null,null,null,null,null,null,null,null,null,null,null,null,null,null,null,null,null,null,null,null,null,null,null,null,null,null,null,null,null,null,null,null,98,null,98,"(74)"]
["99 (103)","Henrik Fresk","Balders HSK",355,null,2,88.75,null,null,null,null,null,156,null,null,null,null,null,199,null,null,null,null,null,null,null,null,null,11,"-","-","-",103,99,99,99,null,null,0,0,1,1,2,2,1,1,1,2,2,1,0,0,0,0,0,0,null,null,2,null,null,199,156,"","","","","","","","","","","","","","","-","-","-",7,null,355,null,null,null,null,null,null,null,null,null,null,null,null,null,null,null,null,null,null,null,null,null,null,null,null,null,null,null,null,null,null,null,null,null,null,null,null,null,null,null,null,null,null,null,null,null,null,null,null,null,null,null,null,null,null,null,null,null,null,null,null,null,null,99,null,99,"(103)"]
["100 (104)","Anders Bergqvist","Tingsryd",352,null,2,88,null,null,null,null,null,null,null,null,144,null,208,null,null,null,null,null,null,null,null,null,null,11,"-","-","-",104,100,100,100,null,null,0,0,1,1,1,1,1,2,3,2,1,1,0,0,0,0,0,0,null,null,2,null,null,208,144,"","","","","","","","","","","","","","","-","-","-",7,null,352,null,null,null,null,null,null,null,null,null,null,null,null,null,null,null,null,null,null,null,null,null,null,null,null,null,null,null,null,null,null,null,null,null,null,null,null,null,null,null,null,null,null,null,null,null,null,null,null,null,null,null,null,null,null,null,null,null,null,null,null,null,null,100,null,100,"(104)"]
["101 (106)","Sune Olsson","Korpen Nybro",345,null,2,86.25,null,null,null,null,null,null,null,null,null,null,175,null,170,null,null,null,null,null,null,null,null,11,"-","-","-",106,101,101,101,null,null,0,0,1,1,1,1,1,1,2,2,2,2,0,0,0,0,0,0,null,null,2,null,null,175,170,"","","","","","","","","","","","","","","-","-","-",7,null,345,null,null,null,null,null,null,null,null,null,null,null,null,null,null,null,null,null,null,null,null,null,null,null,null,null,null,null,null,null,null,null,null,null,null,null,null,null,null,null,null,null,null,null,null,null,null,null,null,null,null,null,null,null,null,null,null,null,null,null,null,null,null,101,null,101,"(106)"]
["102 (108)","Ulrika Rydell","Värends Hsk",332,null,2,83,null,null,null,null,null,null,null,null,null,null,null,null,175,157,null,null,null,null,null,null,null,11,"-","-","-",108,102,102,102,null,null,0,0,1,1,1,1,1,1,1,1,2,3,1,0,0,0,0,0,null,null,2,null,null,175,157,"","","","","","","","","","","","","","","-","-","-",7,null,332,null,null,null,null,null,null,null,null,null,null,null,null,null,null,null,null,null,null,null,null,null,null,null,null,null,null,null,null,null,null,null,null,null,null,null,null,null,null,null,null,null,null,null,null,null,null,null,null,null,null,null,null,null,null,null,null,null,null,null,null,null,null,103,null,102,"(108)"]
["103 (109)","Göran Örjebo","Vaxholm",330,null,3,55,null,null,null,null,null,108,null,null,null,104,null,118,null,null,null,null,null,null,null,null,null,11,"-","-","-",109,103,103,103,null,null,0,0,1,1,2,2,1,1,1,2,2,1,0,0,0,0,0,0,null,null,2,null,null,118,108,104,"","","","","","","","","","","","","","-","-","-",6,null,330,null,null,null,null,null,null,null,null,null,null,null,null,null,null,null,null,null,null,null,null,null,null,null,null,null,null,null,null,null,null,null,null,null,null,null,null,null,null,null,null,null,null,null,null,null,null,null,null,null,null,null,null,null,null,null,null,null,null,null,null,null,null,104,null,103,"(109)"]
["104 (102)","Hannah Karlberg","Jämjö Hsk",325,null,3,54.166666666666664,null,null,null,83,107,null,null,null,135,null,null,null,null,null,null,null,null,null,null,null,null,11,"-","-","-",102,104,104,104,null,null,0,0,2,3,2,1,1,2,2,1,1,1,0,0,0,0,0,0,null,null,2,null,null,135,107,83,"","","","","","","","","","","","","","-","-","-",6,null,325,null,null,null,null,null,null,null,null,null,null,null,null,null,null,null,null,null,null,null,null,null,null,null,null,null,null,null,null,null,null,null,null,null,null,null,null,null,null,null,null,null,null,null,null,null,null,null,null,null,null,null,null,null,null,null,null,null,null,null,null,null,null,105,null,104,"(102)"]
["104 (110)","Per-Olof Johansson","Dynapac ",325,null,2,81.25,null,null,null,null,null,null,null,null,139,null,null,null,null,186,null,null,null,null,null,null,null,11,"-","-","-",110,104,105,105,null,null,0,0,1,1,1,1,1,2,2,1,1,2,1,0,0,0,0,0,null,null,2,null,null,186,139,"","","","","","","","","","","","","","","-","-","-",7,null,325,null,null,null,null,null,null,null,null,null,null,null,null,null,null,null,null,null,null,null,null,null,null,null,null,null,null,null,null,null,null,null,null,null,null,null,null,null,null,null,null,null,null,null,null,null,null,null,null,null,null,null,null,null,null,null,null,null,null,null,null,null,null,106,null,104,"(110)"]
["106 (93)","Morgan Atle","Dynapac ",315,null,2,78.75,null,null,null,null,null,null,null,null,152,null,null,null,null,163,null,null,null,null,null,null,null,11,"-","-","-",93,106,106,106,null,null,0,0,1,1,1,1,1,2,2,1,1,2,1,0,0,0,0,0,null,null,2,null,null,163,152,"","","","","","","","","","","","","","","-","-","-",7,null,315,null,null,null,null,null,null,null,null,null,null,null,null,null,null,null,null,null,null,null,null,null,null,null,null,null,null,null,null,null,null,null,null,null,null,null,null,null,null,null,null,null,null,null,null,null,null,null,null,null,null,null,null,null,null,null,null,null,null,null,null,null,null,107,null,106,"(93)"]
["107 (111)","Matthias Zetterlund","Vaxholm Hsk",313,null,1,156.5,null,null,null,null,null,null,null,null,null,313,null,null,null,null,null,null,null,null,null,null,null,11,"-","-","-",111,107,"-",107,null,null,0,0,1,1,1,1,1,1,1,1,1,1,0,0,0,0,0,0,null,null,2,null,null,313,"","","","","","","","","","","","","","","","-","-","-",8,null,313,null,null,null,null,null,null,null,null,null,null,null,null,null,null,null,null,null,null,null,null,null,null,null,null,null,null,null,null,null,null,null,null,null,null,null,null,null,null,null,null,null,null,null,null,null,null,null,null,null,null,null,null,null,null,null,null,null,null,null,null,null,null,108,null,107,"(111)"]
["107 (112)","Tony Borgström","Carlskrona",313,null,2,78.25,null,null,null,null,null,null,null,185,null,null,null,null,null,128,null,null,null,null,null,null,null,11,"-","-","-",112,107,108,108,null,null,0,0,1,1,1,1,2,2,1,1,1,2,1,0,0,0,0,0,null,null,2,null,null,185,128,"","","","","","","","","","","","","","","-","-","-",7,null,313,null,null,null,null,null,null,null,null,null,null,null,null,null,null,null,null,null,null,null,null,null,null,null,null,null,null,null,null,null,null,null,null,null,null,null,null,null,null,null,null,null,null,null,null,null,null,null,null,null,null,null,null,null,null,null,null,null,null,null,null,null,null,102,null,107,"(112)"]
["109 (115)","Keyri Hernandez","Jämjö Hsk",291,null,2,72.75,null,null,null,null,null,null,null,null,135,null,null,null,null,156,null,null,null,null,null,null,null,11,"-","-","-",115,109,109,109,null,null,0,0,1,1,1,1,1,2,2,1,1,2,1,0,0,0,0,0,null,null,2,null,null,156,135,"","","","","","","","","","","","","","","-","-","-",7,null,291,null,null,null,null,null,null,null,null,null,null,null,null,null,null,null,null,null,null,null,null,null,null,null,null,null,null,null,null,null,null,null,null,null,null,null,null,null,null,null,null,null,null,null,null,null,null,null,null,null,null,null,null,null,null,null,null,null,null,null,null,null,null,109,null,109,"(115)"]
["110 (116)","Scott Brown","Sollentuna",282,null,2,70.5,null,null,null,null,null,103,null,null,null,179,null,null,null,null,null,null,null,null,null,null,null,11,"-","-","-",116,110,110,110,null,null,0,0,1,1,2,2,1,1,1,1,1,1,0,0,0,0,0,0,null,null,2,null,null,179,103,"","","","","","","","","","","","","","","-","-","-",7,null,282,null,null,null,null,null,null,null,null,null,null,null,null,null,null,null,null,null,null,null,null,null,null,null,null,null,null,null,null,null,null,null,null,null,null,null,null,null,null,null,null,null,null,null,null,null,null,null,null,null,null,null,null,null,null,null,null,null,null,null,null,null,null,110,null,110,"(116)"]
["111 (117)","Nils-Åke Hansson","Korpen Nybro",277,null,3,46.166666666666664,null,null,null,null,null,null,null,null,88,null,null,null,88,101,null,null,null,null,null,null,null,11,"-","-","-",117,111,111,111,null,null,0,0,1,1,1,1,1,2,2,1,2,3,1,0,0,0,0,0,null,null,2,null,null,101,88,88,"","","","","","","","","","","","","","-","-","-",6,null,277,null,null,null,null,null,null,null,null,null,null,null,null,null,null,null,null,null,null,null,null,null,null,null,null,null,null,null,null,null,null,null,null,null,null,null,null,null,null,null,null,null,null,null,null,null,null,null,null,null,null,null,null,null,null,null,null,null,null,null,null,null,null,116,null,111,"(117)"]
["112 (118)","Roland Andreasson","Lanternan",276,null,1,138,null,null,null,276,null,null,null,null,null,null,null,null,null,null,null,null,null,null,null,null,null,11,"-","-","-",118,112,"-",112,null,null,0,0,2,2,1,1,1,1,1,1,1,1,0,0,0,0,0,0,null,null,2,null,null,276,"","","","","","","","","","","","","","","","-","-","-",8,null,276,null,null,null,null,null,null,null,null,null,null,null,null,null,null,null,null,null,null,null,null,null,null,null,null,null,null,null,null,null,null,null,null,null,null,null,null,null,null,null,null,null,null,null,null,null,null,null,null,null,null,null,null,null,null,null,null,null,null,null,null,null,null,111,null,112,"(118)"]
["113 (97)","Mikael Grönskog","Sibbamåla",270,null,1,135,null,null,null,null,null,null,null,null,null,null,null,null,null,270,null,null,null,null,null,null,null,11,"-","-","-",97,113,"-",113,null,null,0,0,1,1,1,1,1,1,1,1,1,2,1,0,0,0,0,0,null,null,2,null,null,270,"","","","","","","","","","","","","","","","-","-","-",8,null,270,null,null,null,null,null,null,null,null,null,null,null,null,null,null,null,null,null,null,null,null,null,null,null,null,null,null,null,null,null,null,null,null,null,null,null,null,null,null,null,null,null,null,null,null,null,null,null,null,null,null,null,null,null,null,null,null,null,null,null,null,null,null,112,null,113,"(97)"]
["114 (105)","Heidi Bülmann","Vaxholm",252,null,2,63,null,null,null,null,null,116,null,null,null,136,null,null,null,null,null,null,null,null,null,null,null,11,"-","-","-",105,114,114,114,null,null,0,0,1,1,2,2,1,1,1,1,1,1,0,0,0,0,0,0,null,null,2,null,null,136,116,"","","","","","","","","","","","","","","-","-","-",7,null,252,null,null,null,null,null,null,null,null,null,null,null,null,null,null,null,null,null,null,null,null,null,null,null,null,null,null,null,null,null,null,null,null,null,null,null,null,null,null,null,null,null,null,null,null,null,null,null,null,null,null,null,null,null,null,null,null,null,null,null,null,null,null,114,null,114,"(105)"]
["114 (120)","Sandra Rydell","Värends Hsk",252,null,1,126,null,null,null,null,null,null,null,null,null,null,null,null,null,252,null,null,null,null,null,null,null,11,"-","-","-",120,114,"-",115,null,null,0,0,1,1,1,1,1,1,1,1,1,2,1,0,0,0,0,0,null,null,2,null,null,252,"","","","","","","","","","","","","","","","-","-","-",8,null,252,null,null,null,null,null,null,null,null,null,null,null,null,null,null,null,null,null,null,null,null,null,null,null,null,null,null,null,null,null,null,null,null,null,null,null,null,null,null,null,null,null,null,null,null,null,null,null,null,null,null,null,null,null,null,null,null,null,null,null,null,null,null,115,null,114,"(120)"]
["116 (121)","Anders Johansson","Dynapac ",242,null,1,121,null,null,null,null,null,null,null,242,null,null,null,null,null,null,null,null,null,null,null,null,null,11,"-","-","-",121,116,"-",116,null,null,0,0,1,1,1,1,2,2,1,1,1,1,0,0,0,0,0,0,null,null,2,null,null,242,"","","","","","","","","","","","","","","","-","-","-",8,null,242,null,null,null,null,null,null,null,null,null,null,null,null,null,null,null,null,null,null,null,null,null,null,null,null,null,null,null,null,null,null,null,null,null,null,null,null,null,null,null,null,null,null,null,null,null,null,null,null,null,null,null,null,null,null,null,null,null,null,null,null,null,null,117,null,116,"(121)"]
["117 (124)","Joakim Strand","Korpen Åseda",207,null,1,103.5,null,null,null,null,null,null,null,null,null,null,207,null,null,null,null,null,null,null,null,null,null,11,"-","-","-",124,117,"-",117,null,null,0,0,1,1,1,1,1,1,2,2,1,1,0,0,0,0,0,0,null,null,2,null,null,207,"","","","","","","","","","","","","","","","-","-","-",8,null,207,null,null,null,null,null,null,null,null,null,null,null,null,null,null,null,null,null,null,null,null,null,null,null,null,null,null,null,null,null,null,null,null,null,null,null,null,null,null,null,null,null,null,null,null,null,null,null,null,null,null,null,null,null,null,null,null,null,null,null,null,null,null,118,null,117,"(124)"]
["118 (100)","Victor Bengtsson","Vaxholm Hsk",203,null,1,101.5,null,null,null,null,null,203,null,null,null,null,null,null,null,null,null,null,null,null,null,null,null,11,"-","-","-",100,118,"-",118,null,null,0,0,1,1,2,2,1,1,1,1,1,1,0,0,0,0,0,0,null,null,2,null,null,203,"","","","","","","","","","","","","","","","-","-","-",8,null,203,null,null,null,null,null,null,null,null,null,null,null,null,null,null,null,null,null,null,null,null,null,null,null,null,null,null,null,null,null,null,null,null,null,null,null,null,null,null,null,null,null,null,null,null,null,null,null,null,null,null,null,null,null,null,null,null,null,null,null,null,null,null,119,null,118,"(100)"]
["119 (125)","Birgit Brown","Sollentuna",200,null,2,50,null,null,null,null,null,50,null,null,null,150,null,null,null,null,null,null,null,null,null,null,null,11,"-","-","-",125,119,119,119,null,null,0,0,1,1,2,2,1,1,1,1,1,1,0,0,0,0,0,0,null,null,2,null,null,150,50,"","","","","","","","","","","","","","","-","-","-",7,null,200,null,null,null,null,null,null,null,null,null,null,null,null,null,null,null,null,null,null,null,null,null,null,null,null,null,null,null,null,null,null,null,null,null,null,null,null,null,null,null,null,null,null,null,null,null,null,null,null,null,null,null,null,null,null,null,null,null,null,null,null,null,null,120,null,119,"(125)"]
["120 (126)","Johan Ullgren","Vaxholm Hsk",199,null,1,99.5,null,null,null,null,null,null,null,null,null,199,null,null,null,null,null,null,null,null,null,null,null,11,"-","-","-",126,120,"-",120,null,null,0,0,1,1,1,1,1,1,1,1,1,1,0,0,0,0,0,0,null,null,2,null,null,199,"","","","","","","","","","","","","","","","-","-","-",8,null,199,null,null,null,null,null,null,null,null,null,null,null,null,null,null,null,null,null,null,null,null,null,null,null,null,null,null,null,null,null,null,null,null,null,null,null,null,null,null,null,null,null,null,null,null,null,null,null,null,null,null,null,null,null,null,null,null,null,null,null,null,null,null,121,null,120,"(126)"]
["121 (127)","Linnea Gneupel","Sibbamåla",198,null,2,49.5,null,null,null,null,null,null,null,null,76,null,null,null,122,null,null,null,null,null,null,null,null,11,"-","-","-",127,121,121,121,null,null,0,0,1,1,1,1,1,2,2,1,2,2,0,0,0,0,0,0,null,null,2,null,null,122,76,"","","","","","","","","","","","","","","-","-","-",7,null,198,null,null,null,null,null,null,null,null,null,null,null,null,null,null,null,null,null,null,null,null,null,null,null,null,null,null,null,null,null,null,null,null,null,null,null,null,null,null,null,null,null,null,null,null,null,null,null,null,null,null,null,null,null,null,null,null,null,null,null,null,null,null,127,null,121,"(127)"]
["122 (128)","Tomas Röhl","Stadslaget",193,null,1,96.5,null,null,null,null,null,193,null,null,null,null,null,null,null,null,null,null,null,null,null,null,null,11,"-","-","-",128,122,"-",122,null,null,0,0,1,1,2,2,1,1,1,1,1,1,0,0,0,0,0,0,null,null,2,null,null,193,"","","","","","","","","","","","","","","","-","-","-",8,null,193,null,null,null,null,null,null,null,null,null,null,null,null,null,null,null,null,null,null,null,null,null,null,null,null,null,null,null,null,null,null,null,null,null,null,null,null,null,null,null,null,null,null,null,null,null,null,null,null,null,null,null,null,null,null,null,null,null,null,null,null,null,null,122,null,122,"(128)"]
["123 (129)","Christer Brincner","Värends Hsk",185,null,1,92.5,null,null,null,null,null,null,null,null,null,null,185,null,null,null,null,null,null,null,null,null,null,11,"-","-","-",129,123,"-",123,null,null,0,0,1,1,1,1,1,1,2,2,1,1,0,0,0,0,0,0,null,null,2,null,null,185,"","","","","","","","","","","","","","","","-","-","-",8,null,185,null,null,null,null,null,null,null,null,null,null,null,null,null,null,null,null,null,null,null,null,null,null,null,null,null,null,null,null,null,null,null,null,null,null,null,null,null,null,null,null,null,null,null,null,null,null,null,null,null,null,null,null,null,null,null,null,null,null,null,null,null,null,123,null,123,"(129)"]
["124 (130)","Mats Svensson","Stadslaget",182,null,1,91,null,null,null,null,null,182,null,null,null,null,null,null,null,null,null,null,null,null,null,null,null,11,"-","-","-",130,124,"-",124,null,null,0,0,1,1,2,2,1,1,1,1,1,1,0,0,0,0,0,0,null,null,2,null,null,182,"","","","","","","","","","","","","","","","-","-","-",8,null,182,null,null,null,null,null,null,null,null,null,null,null,null,null,null,null,null,null,null,null,null,null,null,null,null,null,null,null,null,null,null,null,null,null,null,null,null,null,null,null,null,null,null,null,null,null,null,null,null,null,null,null,null,null,null,null,null,null,null,null,null,null,null,124,null,124,"(130)"]
["125 (131)","Eva Åkesson","Lanternan",176,null,3,29.333333333333332,null,null,null,null,null,null,null,85,55,null,null,null,null,36,null,null,null,null,null,null,null,11,"-","-","-",131,125,125,125,null,null,0,0,1,1,1,1,2,3,2,1,1,2,1,0,0,0,0,0,null,null,2,null,null,85,55,36,"","","","","","","","","","","","","","-","-","-",6,null,176,null,null,null,null,null,null,null,null,null,null,null,null,null,null,null,null,null,null,null,null,null,null,null,null,null,null,null,null,null,null,null,null,null,null,null,null,null,null,null,null,null,null,null,null,null,null,null,null,null,null,null,null,null,null,null,null,null,null,null,null,null,null,125,null,125,"(131)"]
["125 (132)","Danny Borgström","Carlskrona",176,null,1,88,null,null,null,null,null,null,null,176,null,null,null,null,null,null,null,null,null,null,null,null,null,11,"-","-","-",132,125,"-",126,null,null,0,0,1,1,1,1,2,2,1,1,1,1,0,0,0,0,0,0,null,null,2,null,null,176,"","","","","","","","","","","","","","","","-","-","-",8,null,176,null,null,null,null,null,null,null,null,null,null,null,null,null,null,null,null,null,null,null,null,null,null,null,null,null,null,null,null,null,null,null,null,null,null,null,null,null,null,null,null,null,null,null,null,null,null,null,null,null,null,null,null,null,null,null,null,null,null,null,null,null,null,126,null,125,"(132)"]
["127 (113)","Björn Hansson","Vaxholm Hsk",173,null,1,86.5,null,null,null,null,null,173,null,null,null,null,null,null,null,null,null,null,null,null,null,null,null,11,"-","-","-",113,127,"-",127,null,null,0,0,1,1,2,2,1,1,1,1,1,1,0,0,0,0,0,0,null,null,2,null,null,173,"","","","","","","","","","","","","","","","-","-","-",8,null,173,null,null,null,null,null,null,null,null,null,null,null,null,null,null,null,null,null,null,null,null,null,null,null,null,null,null,null,null,null,null,null,null,null,null,null,null,null,null,null,null,null,null,null,null,null,null,null,null,null,null,null,null,null,null,null,null,null,null,null,null,null,null,113,null,127,"(113)"]
["128 (133)","Daniel Becker","Vaxholm",171,null,1,85.5,null,null,null,null,null,null,null,null,null,null,null,171,null,null,null,null,null,null,null,null,null,11,"-","-","-",133,128,"-",128,null,null,0,0,1,1,1,1,1,1,1,2,2,1,0,0,0,0,0,0,null,null,2,null,null,171,"","","","","","","","","","","","","","","","-","-","-",8,null,171,null,null,null,null,null,null,null,null,null,null,null,null,null,null,null,null,null,null,null,null,null,null,null,null,null,null,null,null,null,null,null,null,null,null,null,null,null,null,null,null,null,null,null,null,null,null,null,null,null,null,null,null,null,null,null,null,null,null,null,null,null,null,128,null,128,"(133)"]
[{"$f":"IF(BG133>1,AH133&\" (\"&AG133&\")\",AH133&\" (\"&AI133&\")\")","v":"129 (135)"},"Mona Andersson","Carlskrona",{"$f":"SUM(BJ133:BU133)","v":170},null,{"$f":"COUNT(I133:AB133)","v":2},{"$f":"SUM((CE133)/(F133*2))","v":42.5},null,null,null,null,null,null,null,91,null,null,null,null,null,79,null,null,null,null,null,null,null,{"$f":"SUM($I$3:$AB$3)","v":11},{"$f":"BZ133","v":"-"},{"$f":"CA133","v":"-"},{"$f":"CB133","v":"-"},135,{"$f":"IF(D133<D132,AJ133,AH132)","v":129},{"$f":"IF(F133>1,ROW(129:129),\"-\")","v":129},129,null,null,{"$f":"COUNT($I$3,I133,H133)","v":0},{"$f":"COUNT($J$3,J133,I133)","v":0},{"$f":"COUNT($K$3,K133,J133)","v":1},{"$f":"COUNT($L$3,L133,K133)","v":1},{"$f":"COUNT($M$3,M133,L133)","v":1},{"$f":"COUNT($N$3,N133,M133)","v":1},{"$f":"COUNT($O$3,O133,N133)","v":2},{"$f":"COUNT($P$3,P133,O133)","v":2},{"$f":"COUNT($R$3,R133,P133)","v":1},{"$f":"COUNT($S$3,S133,R133)","v":1},{"$f":"COUNT($T$3,T133,S133)","v":1},{"$f":"COUNT($U$3,U133,T133)","v":2},{"$f":"COUNT($V$3,V133,U133)","v":1},{"$f":"COUNT($W$3,W133,V133)","v":0},{"$f":"COUNT($X$3,X133,W133)","v":0},{"$f":"COUNT($Y$3,Y133,X133)","v":0},{"$f":"COUNT($AA$3,AA133,Y133)","v":0},{"$f":"COUNT($AB$3,AB133,AA133)","v":0},null,null,{"$f":"IF(H133=\"x\",1,2)","v":2},null,null,{"$f":"IF($F133>0,LARGE($I133:$AB133,1),\"\")","v":91},{"$f":"IF($F133>1,LARGE($I133:$AB133,2),\"\")","v":79},{"$f":"IF($F133>2,LARGE($I133:$AB133,3),\"\")","v":""},{"$f":"IF($F133>3,LARGE($I133:$AB133,4),\"\")","v":""},{"$f":"IF($F133>4,LARGE($I133:$AB133,5),\"\")","v":""},{"$f":"IF($F133>5,LARGE($I133:$AB133,6),\"\")","v":""},{"$f":"IF($F133>6,LARGE($I133:$AB133,7),\"\")","v":""},{"$f":"IF($F133>7,LARGE($I133:$AB133,8),\"\")","v":""},{"$f":"IF($F133>8,LARGE($I133:$AB133,9),\"\")","v":""},{"$f":"IF($F133>9,LARGE($I133:$AB133,10),\"\")","v":""},{"$f":"IF($F133>10,LARGE($I133:$AB133,11),\"\")","v":""},{"$f":"IF($F133>11,LARGE($I133:$AB133,12),\"\")","v":""},{"$f":"IF($F133>12,LARGE($I133:$AB133,13),\"\")","v":""},{"$f":"IF($F133>13,LARGE($I133:$AB133,14),\"\")","v":""},{"$f":"IF($F133>14,LARGE($I133:$AB133,15),\"\")","v":""},{"$f":"IF($F133>15,LARGE($I133:$AB133,16),\"\")","v":""},{"$f":"IF($F133>12,LARGE($I133:$AB133,13),\"-\")","v":"-"},{"$f":"IF($F133>13,LARGE($I133:$AB133,14),\"-\")","v":"-"},{"$f":"IF($F133>14,LARGE($I133:$AB133,15),\"-\")","v":"-"},{"$f":"SUM(AC133-F133)-2","v":7},null,{"$f":"SUM(BJ133:BY133)","v":170},null,null,null,null,null,null,null,null,null,null,null,null,null,null,null,null,null,null,null,null,null,null,null,null,null,null,null,null,null,null,null,null,null,null,null,null,null,null,null,null,null,null,null,null,null,null,null,null,null,null,null,null,null,null,null,null,null,null,null,null,null,null,129,null,{"$f":"IF(BG133>=1,AH133,\"\")","v":129},{"$f":"IF(BG133>1,\"(\"&AG133&\")\",\"(\"&AI133&\")\")","v":"(135)"}]
["130 (137)","Kjell Rydh","Korpen Nybro",169,null,1,84.5,null,null,null,null,null,null,null,null,null,null,null,null,169,null,null,null,null,null,null,null,null,11,"-","-","-",137,130,"-",130,null,null,0,0,1,1,1,1,1,1,1,1,2,2,0,0,0,0,0,0,null,null,2,null,null,169,"","","","","","","","","","","","","","","","-","-","-",8,null,169,null,null,null,null,null,null,null,null,null,null,null,null,null,null,null,null,null,null,null,null,null,null,null,null,null,null,null,null,null,null,null,null,null,null,null,null,null,null,null,null,null,null,null,null,null,null,null,null,null,null,null,null,null,null,null,null,null,null,null,null,null,null,130,null,130,"(137)"]
["131 (138)","Jimmy Carlsson","Vaxholm",166,null,1,83,null,null,null,null,null,null,null,null,null,166,null,null,null,null,null,null,null,null,null,null,null,11,"-","-","-",138,131,"-",131,null,null,0,0,1,1,1,1,1,1,1,1,1,1,0,0,0,0,0,0,null,null,2,null,null,166,"","","","","","","","","","","","","","","","-","-","-",8,null,166,null,null,null,null,null,null,null,null,null,null,null,null,null,null,null,null,null,null,null,null,null,null,null,null,null,null,null,null,null,null,null,null,null,null,null,null,null,null,null,null,null,null,null,null,null,null,null,null,null,null,null,null,null,null,null,null,null,null,null,null,null,null,131,null,131,"(138)"]
["132 (140)","Erik Isaksson","Korpen Åseda",163,null,1,81.5,null,null,null,null,163,null,null,null,null,null,null,null,null,null,null,null,null,null,null,null,null,11,"-","-","-",140,132,"-",132,null,null,0,0,1,2,2,1,1,1,1,1,1,1,0,0,0,0,0,0,null,null,2,null,null,163,"","","","","","","","","","","","","","","","-","-","-",8,null,163,null,null,null,null,null,null,null,null,null,null,null,null,null,null,null,null,null,null,null,null,null,null,null,null,null,null,null,null,null,null,null,null,null,null,null,null,null,null,null,null,null,null,null,null,null,null,null,null,null,null,null,null,null,null,null,null,null,null,null,null,null,null,132,null,132,"(140)"]
["133 (143)","Robin Malm","Balders HSK",155,null,1,77.5,null,null,null,null,null,null,null,null,null,null,null,155,null,null,null,null,null,null,null,null,null,11,"-","-","-",143,133,"-",133,null,null,0,0,1,1,1,1,1,1,1,2,2,1,0,0,0,0,0,0,null,null,2,null,null,155,"","","","","","","","","","","","","","","","-","-","-",8,null,155,null,null,null,null,null,null,null,null,null,null,null,null,null,null,null,null,null,null,null,null,null,null,null,null,null,null,null,null,null,null,null,null,null,null,null,null,null,null,null,null,null,null,null,null,null,null,null,null,null,null,null,null,null,null,null,null,null,null,null,null,null,null,133,null,133,"(143)"]
["134 (144)","Johanna Hagerman","Balders HSK",152,null,2,38,null,null,null,null,null,null,null,null,null,142,null,10,null,null,null,null,null,null,null,null,null,11,"-","-","-",144,134,134,134,null,null,0,0,1,1,1,1,1,1,1,2,2,1,0,0,0,0,0,0,null,null,2,null,null,142,10,"","","","","","","","","","","","","","","-","-","-",7,null,152,null,null,null,null,null,null,null,null,null,null,null,null,null,null,null,null,null,null,null,null,null,null,null,null,null,null,null,null,null,null,null,null,null,null,null,null,null,null,null,null,null,null,null,null,null,null,null,null,null,null,null,null,null,null,null,null,null,null,null,null,null,null,135,null,134,"(144)"]
["135 (107)","Peter Edlund","Dynapac ",147,null,1,73.5,null,null,null,null,null,null,null,null,147,null,null,null,null,null,null,null,null,null,null,null,null,11,"-","-","-",107,135,"-",135,null,null,0,0,1,1,1,1,1,2,2,1,1,1,0,0,0,0,0,0,null,null,2,null,null,147,"","","","","","","","","","","","","","","","-","-","-",8,null,147,null,null,null,null,null,null,null,null,null,null,null,null,null,null,null,null,null,null,null,null,null,null,null,null,null,null,null,null,null,null,null,null,null,null,null,null,null,null,null,null,null,null,null,null,null,null,null,null,null,null,null,null,null,null,null,null,null,null,null,null,null,null,136,null,135,"(107)"]
["136 (147)","Kent Svensson","Lanternan",140,null,2,35,null,null,null,null,null,null,null,55,85,null,null,null,null,null,null,null,null,null,null,null,null,11,"-","-","-",147,136,136,136,null,null,0,0,1,1,1,1,2,3,2,1,1,1,0,0,0,0,0,0,null,null,2,null,null,85,55,"","","","","","","","","","","","","","","-","-","-",7,null,140,null,null,null,null,null,null,null,null,null,null,null,null,null,null,null,null,null,null,null,null,null,null,null,null,null,null,null,null,null,null,null,null,null,null,null,null,null,null,null,null,null,null,null,null,null,null,null,null,null,null,null,null,null,null,null,null,null,null,null,null,null,null,137,null,136,"(147)"]
["137 (148)","Susanne Simonsson","Lanternan",137,null,1,68.5,null,null,null,137,null,null,null,null,null,null,null,null,null,null,null,null,null,null,null,null,null,11,"-","-","-",148,137,"-",137,null,null,0,0,2,2,1,1,1,1,1,1,1,1,0,0,0,0,0,0,null,null,2,null,null,137,"","","","","","","","","","","","","","","","-","-","-",8,null,137,null,null,null,null,null,null,null,null,null,null,null,null,null,null,null,null,null,null,null,null,null,null,null,null,null,null,null,null,null,null,null,null,null,null,null,null,null,null,null,null,null,null,null,null,null,null,null,null,null,null,null,null,null,null,null,null,null,null,null,null,null,null,138,null,137,"(148)"]
["138 (114)","Thomas Diedrichs","Vaxholm Hsk",134,null,1,67,null,null,null,null,null,null,null,null,null,134,null,null,null,null,null,null,null,null,null,null,null,11,"-","-","-",114,138,"-",138,null,null,0,0,1,1,1,1,1,1,1,1,1,1,0,0,0,0,0,0,null,null,2,null,null,134,"","","","","","","","","","","","","","","","-","-","-",8,null,134,null,null,null,null,null,null,null,null,null,null,null,null,null,null,null,null,null,null,null,null,null,null,null,null,null,null,null,null,null,null,null,null,null,null,null,null,null,null,null,null,null,null,null,null,null,null,null,null,null,null,null,null,null,null,null,null,null,null,null,null,null,null,167,null,167,"(114)"]
["139 (149)","Pia Brovold","Vaxholm",131,null,2,32.75,null,null,null,null,null,66,null,null,null,65,null,null,null,null,null,null,null,null,null,null,null,11,"-","-","-",149,139,139,139,null,null,0,0,1,1,2,2,1,1,1,1,1,1,0,0,0,0,0,0,null,null,2,null,null,66,65,"","","","","","","","","","","","","","","-","-","-",7,null,131,null,null,null,null,null,null,null,null,null,null,null,null,null,null,null,null,null,null,null,null,null,null,null,null,null,null,null,null,null,null,null,null,null,null,null,null,null,null,null,null,null,null,null,null,null,null,null,null,null,null,null,null,null,null,null,null,null,null,null,null,null,null,139,null,{"$f":"IF(BG143>=1,AH143,\"\")","v":139},"(149)"]
["140 (152)","Tommy Svensson","Värends Hsk",122,null,1,61,null,null,null,null,122,null,null,null,null,null,null,null,null,null,null,null,null,null,null,null,null,11,"-","-","-",152,140,"-",140,null,null,0,0,1,2,2,1,1,1,1,1,1,1,0,0,0,0,0,0,null,null,2,null,null,122,"","","","","","","","","","","","","","","","-","-","-",8,null,122,null,null,null,null,null,null,null,null,null,null,null,null,null,null,null,null,null,null,null,null,null,null,null,null,null,null,null,null,null,null,null,null,null,null,null,null,null,null,null,null,null,null,null,null,null,null,null,null,null,null,null,null,null,null,null,null,null,null,null,null,null,null,140,null,{"$f":"IF(BG144>1,AH144,\"\")","v":140},"(152)"]
["141 (134)","Sonlard Berglund","PBHSPC",118,null,1,59,null,null,null,null,null,118,null,null,null,null,null,null,null,null,null,null,null,null,null,null,null,11,"-","-","-",134,141,"-",141,null,null,0,0,1,1,2,2,1,1,1,1,1,1,0,0,0,0,0,0,null,null,2,null,null,118,"","","","","","","","","","","","","","","","-","-","-",8,null,118,null,null,null,null,null,null,null,null,null,null,null,null,null,null,null,null,null,null,null,null,null,null,null,null,null,null,null,null,null,null,null,null,null,null,null,null,null,null,null,null,null,null,null,null,null,null,null,null,null,null,null,null,null,null,null,null,null,null,null,null,null,null,141,null,{"$f":"IF(BG145>=1,AH145,\"\")","v":141},"(134)"]
["142 (155)","Roland Sjöstrand","Tingsryd",109,null,1,54.5,null,null,null,null,null,null,null,null,null,null,null,null,null,109,null,null,null,null,null,null,null,11,"-","-","-",155,142,"-",142,null,null,0,0,1,1,1,1,1,1,1,1,1,2,1,0,0,0,0,0,null,null,2,null,null,109,"","","","","","","","","","","","","","","","-","-","-",8,null,109,null,null,null,null,null,null,null,null,null,null,null,null,null,null,null,null,null,null,null,null,null,null,null,null,null,null,null,null,null,null,null,null,null,null,null,null,null,null,null,null,null,null,null,null,null,null,null,null,null,null,null,null,null,null,null,null,null,null,null,null,null,null,142,null,{"$f":"IF(BG146>=1,AH146,\"\")","v":142},"(155)"]
["143 (156)","Peter Skörd","Täby",108,null,1,54,null,null,null,null,null,108,null,null,null,null,null,null,null,null,null,null,null,null,null,null,null,11,"-","-","-",156,143,"-",143,null,null,0,0,1,1,2,2,1,1,1,1,1,1,0,0,0,0,0,0,null,null,2,null,null,108,"","","","","","","","","","","","","","","","-","-","-",8,null,108,null,null,null,null,null,null,null,null,null,null,null,null,null,null,null,null,null,null,null,null,null,null,null,null,null,null,null,null,null,null,null,null,null,null,null,null,null,null,null,null,null,null,null,null,null,null,null,null,null,null,null,null,null,null,null,null,null,null,null,null,null,null,143,null,{"$f":"IF(BG147>=1,AH147,\"\")","v":143},"(156)"]
["144 (157)","Magnus Hagerman","Balders HSK",103,null,1,51.5,null,null,null,null,null,null,null,null,null,null,null,103,null,null,null,null,null,null,null,null,null,11,"-","-","-",157,144,"-",144,null,null,0,0,1,1,1,1,1,1,1,2,2,1,0,0,0,0,0,0,null,null,2,null,null,103,"","","","","","","","","","","","","","","","-","-","-",8,null,103,null,null,null,null,null,null,null,null,null,null,null,null,null,null,null,null,null,null,null,null,null,null,null,null,null,null,null,null,null,null,null,null,null,null,null,null,null,null,null,null,null,null,null,null,null,null,null,null,null,null,null,null,null,null,null,null,null,null,null,null,null,null,144,null,{"$f":"IF(BG148>=1,AH148,\"\")","v":144},"(157)"]
["145 (158)","Saga Karlberg","Jämjö Hsk",101,null,1,50.5,null,null,null,101,null,null,null,null,null,null,null,null,null,null,null,null,null,null,null,null,null,11,"-","-","-",158,145,"-",145,null,null,0,0,2,2,1,1,1,1,1,1,1,1,0,0,0,0,0,0,null,null,2,null,null,101,"","","","","","","","","","","","","","","","-","-","-",8,null,101,null,null,null,null,null,null,null,null,null,null,null,null,null,null,null,null,null,null,null,null,null,null,null,null,null,null,null,null,null,null,null,null,null,null,null,null,null,null,null,null,null,null,null,null,null,null,null,null,null,null,null,null,null,null,null,null,null,null,null,null,null,null,145,null,{"$f":"IF(BG149>=1,AH149,\"\")","v":145},"(158)"]
["146 (161)","Kristoffer Lovén","Balders HSK",90,null,1,45,null,null,null,null,null,null,null,null,null,null,null,90,null,null,null,null,null,null,null,null,null,11,"-","-","-",161,146,"-",146,null,null,0,0,1,1,1,1,1,1,1,2,2,1,0,0,0,0,0,0,null,null,2,null,null,90,"","","","","","","","","","","","","","","","-","-","-",8,null,90,null,null,null,null,null,null,null,null,null,null,null,null,null,null,null,null,null,null,null,null,null,null,null,null,null,null,null,null,null,null,null,null,null,null,null,null,null,null,null,null,null,null,null,null,null,null,null,null,null,null,null,null,null,null,null,null,null,null,null,null,null,null,175,null,{"$f":"IF(BG150>1,AH150,\"\")","v":146},"(161)"]
["147 (163)","Lars Eriksson","Balders HSK",86,null,1,43,null,null,null,null,null,null,null,null,null,null,null,86,null,null,null,null,null,null,null,null,null,11,"-","-","-",163,147,"-",147,null,null,0,0,1,1,1,1,1,1,1,2,2,1,0,0,0,0,0,0,null,null,2,null,null,86,"","","","","","","","","","","","","","","","-","-","-",8,null,86,null,null,null,null,null,null,null,null,null,null,null,null,null,null,null,null,null,null,null,null,null,null,null,null,null,null,null,null,null,null,null,null,null,null,null,null,null,null,null,null,null,null,null,null,null,null,null,null,null,null,null,null,null,null,null,null,null,null,null,null,null,null,146,null,{"$f":"IF(BG151>=1,AH151,\"\")","v":147},"(163)"]
["148 (164)","Rebecka Fresk","Balders HSK",85,null,1,42.5,null,null,null,null,null,null,null,null,null,null,null,85,null,null,null,null,null,null,null,null,null,11,"-","-","-",164,148,"-",148,null,null,0,0,1,1,1,1,1,1,1,2,2,1,0,0,0,0,0,0,null,null,2,null,null,85,"","","","","","","","","","","","","","","","-","-","-",8,null,85,null,null,null,null,null,null,null,null,null,null,null,null,null,null,null,null,null,null,null,null,null,null,null,null,null,null,null,null,null,null,null,null,null,null,null,null,null,null,null,null,null,null,null,null,null,null,null,null,null,null,null,null,null,null,null,null,null,null,null,null,null,null,147,null,148,"(164)"]
["149 (123)","Calle Sternås","PBHSPC",84,null,1,42,null,null,null,null,null,84,null,null,null,null,null,null,null,null,null,null,null,null,null,null,null,11,"-","-","-",123,149,"-",149,null,null,0,0,1,1,2,2,1,1,1,1,1,1,0,0,0,0,0,0,null,null,2,null,null,84,"","","","","","","","","","","","","","","","-","-","-",8,null,84,null,null,null,null,null,null,null,null,null,null,null,null,null,null,null,null,null,null,null,null,null,null,null,null,null,null,null,null,null,null,null,null,null,null,null,null,null,null,null,null,null,null,null,null,null,null,null,null,null,null,null,null,null,null,null,null,null,null,null,null,null,null,148,null,149,"(123)"]
["150 (166)","Niclas Nyberg","Stadslaget",78,null,1,39,null,null,null,null,null,78,null,null,null,null,null,null,null,null,null,null,null,null,null,null,null,11,"-","-","-",166,150,"-",150,null,null,0,0,1,1,2,2,1,1,1,1,1,1,0,0,0,0,0,0,null,null,2,null,null,78,"","","","","","","","","","","","","","","","-","-","-",8,null,78,null,null,null,null,null,null,null,null,null,null,null,null,null,null,null,null,null,null,null,null,null,null,null,null,null,null,null,null,null,null,null,null,null,null,null,null,null,null,null,null,null,null,null,null,null,null,null,null,null,null,null,null,null,null,null,null,null,null,null,null,null,null,149,null,150,"(166)"]
["151 (168)","Salli Fransson","Dynapac ",68,null,1,34,null,null,null,null,null,null,null,null,68,null,null,null,null,null,null,null,null,null,null,null,null,11,"-","-","-",168,151,"-",151,null,null,0,0,1,1,1,1,1,2,2,1,1,1,0,0,0,0,0,0,null,null,2,null,null,68,"","","","","","","","","","","","","","","","-","-","-",8,null,68,null,null,null,null,null,null,null,null,null,null,null,null,null,null,null,null,null,null,null,null,null,null,null,null,null,null,null,null,null,null,null,null,null,null,null,null,null,null,null,null,null,null,null,null,null,null,null,null,null,null,null,null,null,null,null,null,null,null,null,null,null,null,150,null,151,"(168)"]
["152 (170)","Alexander Bergström","PBHSPC",66,null,1,33,null,null,null,null,null,66,null,null,null,null,null,null,null,null,null,null,null,null,null,null,null,11,"-","-","-",170,152,"-",152,null,null,0,0,1,1,2,2,1,1,1,1,1,1,0,0,0,0,0,0,null,null,2,null,null,66,"","","","","","","","","","","","","","","","-","-","-",8,null,66,null,null,null,null,null,null,null,null,null,null,null,null,null,null,null,null,null,null,null,null,null,null,null,null,null,null,null,null,null,null,null,null,null,null,null,null,null,null,null,null,null,null,null,null,null,null,null,null,null,null,null,null,null,null,null,null,null,null,null,null,null,null,151,null,152,"(170)"]
["152 (171)","Åse Larsson","Stadslaget",66,null,1,33,null,null,null,null,null,66,null,null,null,null,null,null,null,null,null,null,null,null,null,null,null,11,"-","-","-",171,152,"-",153,null,null,0,0,1,1,2,2,1,1,1,1,1,1,0,0,0,0,0,0,null,null,2,null,null,66,"","","","","","","","","","","","","","","","-","-","-",8,null,66,null,null,null,null,null,null,null,null,null,null,null,null,null,null,null,null,null,null,null,null,null,null,null,null,null,null,null,null,null,null,null,null,null,null,null,null,null,null,null,null,null,null,null,null,null,null,null,null,null,null,null,null,null,null,null,null,null,null,null,null,null,null,184,null,{"$f":"IF(BG157>1,AH157,\"\")","v":152},"(171)"]
["154 (175)","Charlotte Jacobsson","Vaxholm",57,null,1,28.5,null,null,null,null,null,57,null,null,null,null,null,null,null,null,null,null,null,null,null,null,null,11,"-","-","-",175,154,"-",154,null,null,0,0,1,1,2,2,1,1,1,1,1,1,0,0,0,0,0,0,null,null,2,null,null,57,"","","","","","","","","","","","","","","","-","-","-",8,null,57,null,null,null,null,null,null,null,null,null,null,null,null,null,null,null,null,null,null,null,null,null,null,null,null,null,null,null,null,null,null,null,null,null,null,null,null,null,null,null,null,null,null,null,null,null,null,null,null,null,null,null,null,null,null,null,null,null,null,null,null,null,null,152,null,{"$f":"IF(BG158>=1,AH158,\"\")","v":154},"(175)"]
["155 (139)","Pontus Strandell","PBHSPC",55,null,1,27.5,null,null,null,null,null,55,null,null,null,null,null,null,null,null,null,null,null,null,null,null,null,11,"-","-","-",139,155,"-",155,null,null,0,0,1,1,2,2,1,1,1,1,1,1,0,0,0,0,0,0,null,null,2,null,null,55,"","","","","","","","","","","","","","","","-","-","-",8,null,55,null,null,null,null,null,null,null,null,null,null,null,null,null,null,null,null,null,null,null,null,null,null,null,null,null,null,null,null,null,null,null,null,null,null,null,null,null,null,null,null,null,null,null,null,null,null,null,null,null,null,null,null,null,null,null,null,null,null,null,null,null,null,153,null,155,"(139)"]
["156 (177)","Anne-Marie Larsson","Tingsryd",47,null,1,23.5,null,null,null,null,null,null,null,null,null,null,47,null,null,null,null,null,null,null,null,null,null,11,"-","-","-",177,156,"-",156,null,null,0,0,1,1,1,1,1,1,2,2,1,1,0,0,0,0,0,0,null,null,2,null,null,47,"","","","","","","","","","","","","","","","-","-","-",8,null,47,null,null,null,null,null,null,null,null,null,null,null,null,null,null,null,null,null,null,null,null,null,null,null,null,null,null,null,null,null,null,null,null,null,null,null,null,null,null,null,null,null,null,null,null,null,null,null,null,null,null,null,null,null,null,null,null,null,null,null,null,null,null,154,null,156,"(177)"]
["157 (178)","Anders Möller","Balders HSK",41,null,1,20.5,null,null,null,41,null,null,null,null,null,null,null,null,null,null,null,null,null,null,null,null,null,11,"-","-","-",178,157,"-",157,null,null,0,0,2,2,1,1,1,1,1,1,1,1,0,0,0,0,0,0,null,null,2,null,null,41,"","","","","","","","","","","","","","","","-","-","-",8,null,41,null,null,null,null,null,null,null,null,null,null,null,null,null,null,null,null,null,null,null,null,null,null,null,null,null,null,null,null,null,null,null,null,null,null,null,null,null,null,null,null,null,null,null,null,null,null,null,null,null,null,null,null,null,null,null,null,null,null,null,null,null,null,156,null,157,"(178)"]
["158 (159)","Pontus Karlsson","PBHSPC",27,null,1,13.5,null,null,null,null,null,27,null,null,null,null,null,null,null,null,null,null,null,null,null,null,null,11,"-","-","-",159,158,"-",158,null,null,0,0,1,1,2,2,1,1,1,1,1,1,0,0,0,0,0,0,null,null,2,null,null,27,"","","","","","","","","","","","","","","","-","-","-",8,null,27,null,null,null,null,null,null,null,null,null,null,null,null,null,null,null,null,null,null,null,null,null,null,null,null,null,null,null,null,null,null,null,null,null,null,null,null,null,null,null,null,null,null,null,null,null,null,null,null,null,null,null,null,null,null,null,null,null,null,null,null,null,null,157,null,158,"(159)"]
["159 (182)","Mikael Sellén","Team Småland ",20,null,2,5,null,null,null,null,null,null,null,null,null,null,17,null,3,null,null,null,null,null,null,null,null,11,"-","-","-",182,159,159,159,null,null,0,0,1,1,1,1,1,1,2,2,2,2,0,0,0,0,0,0,null,null,2,null,null,17,3,"","","","","","","","","","","","","","","-","-","-",7,null,20,null,null,null,null,null,null,null,null,null,null,null,null,null,null,null,null,null,null,null,null,null,null,null,null,null,null,null,null,null,null,null,null,null,null,null,null,null,null,null,null,null,null,null,null,null,null,null,null,null,null,null,null,null,null,null,null,null,null,null,null,null,null,158,null,159,"(182)"]
["160 (119)","Karl-Axel Roos",null,0,null,1,0,null,null,null,null,null,null,null,null,0,null,null,null,null,null,null,null,null,null,null,null,null,11,"-","-","-",119,160,"-",160,null,null,0,0,1,1,1,1,1,2,2,1,1,1,0,0,0,0,0,0,null,null,2,null,null,0,"","","","","","","","","","","","","","","","-","-","-",8,null,0,null,null,null,null,null,null,null,null,null,null,null,null,null,null,null,null,null,null,null,null,null,null,null,null,null,null,null,null,null,null,null,null,null,null,null,null,null,null,null,null,null,null,null,null,null,null,null,null,null,null,null,null,null,null,null,null,null,null,null,null,null,null,159,null,160,"(119)"]
["160 (122)",null,null,0,null,0,{"$error":"#DIV/0!"},null,null,null,null,null,null,null,null,null,null,null,null,null,null,null,null,null,null,null,null,null,11,"-","-","-",122,160,"-",161,null,null,{"$f":"COUNT($I$3,I165,H165)","v":0},{"$f":"COUNT($J$3,J165,I165)","v":0},{"$f":"COUNT($K$3,K165,J165)","v":1},{"$f":"COUNT($L$3,L165,K165)","v":1},{"$f":"COUNT($M$3,M165,L165)","v":1},{"$f":"COUNT($N$3,N165,M165)","v":1},{"$f":"COUNT($O$3,O165,N165)","v":1},{"$f":"COUNT($P$3,P165,O165)","v":1},{"$f":"COUNT($R$3,R165,P165)","v":1},{"$f":"COUNT($S$3,S165,R165)","v":1},{"$f":"COUNT($T$3,T165,S165)","v":1},{"$f":"COUNT($U$3,U165,T165)","v":1},{"$f":"COUNT($V$3,V165,U165)","v":0},{"$f":"COUNT($W$3,W165,V165)","v":0},{"$f":"COUNT($X$3,X165,W165)","v":0},{"$f":"COUNT($Y$3,Y165,X165)","v":0},{"$f":"COUNT($AA$3,AA165,Y165)","v":0},{"$f":"COUNT($AB$3,AB165,AA165)","v":0},null,null,{"$f":"IF(H165=\"x\",1,2)","v":2},null,null,{"$f":"IF($F165>0,LARGE($I165:$AB165,1),\"\")","v":""},{"$f":"IF($F165>1,LARGE($I165:$AB165,2),\"\")","v":""},{"$f":"IF($F165>2,LARGE($I165:$AB165,3),\"\")","v":""},{"$f":"IF($F165>3,LARGE($I165:$AB165,4),\"\")","v":""},{"$f":"IF($F165>4,LARGE($I165:$AB165,5),\"\")","v":""},{"$f":"IF($F165>5,LARGE($I165:$AB165,6),\"\")","v":""},{"$f":"IF($F165>6,LARGE($I165:$AB165,7),\"\")","v":""},{"$f":"IF($F165>7,LARGE($I165:$AB165,8),\"\")","v":""},{"$f":"IF($F165>8,LARGE($I165:$AB165,9),\"\")","v":""},{"$f":"IF($F165>9,LARGE($I165:$AB165,10),\"\")","v":""},{"$f":"IF($F165>10,LARGE($I165:$AB165,11),\"\")","v":""},{"$f":"IF($F165>11,LARGE($I165:$AB165,12),\"\")","v":""},{"$f":"IF($F165>12,LARGE($I165:$AB165,13),\"\")","v":""},{"$f":"IF($F165>13,LARGE($I165:$AB165,14),\"\")","v":""},{"$f":"IF($F165>14,LARGE($I165:$AB165,15),\"\")","v":""},{"$f":"IF($F165>15,LARGE($I165:$AB165,16),\"\")","v":""},{"$f":"IF($F165>12,LARGE($I165:$AB165,13),\"-\")","v":"-"},{"$f":"IF($F165>13,LARGE($I165:$AB165,14),\"-\")","v":"-"},{"$f":"IF($F165>14,LARGE($I165:$AB165,15),\"-\")","v":"-"},{"$f":"SUM(AC165-F165)-2","v":9},null,0,null,null,null,null,null,null,null,null,null,null,null,null,null,null,null,null,null,null,null,null,null,null,null,null,null,null,null,null,null,null,null,null,null,null,null,null,null,null,null,null,null,null,null,null,null,null,null,null,null,null,null,null,null,null,null,null,null,null,null,null,null,null,206,null,{"$f":"IF(BG165>1,AH165,\"\")","v":160},"(122)"]
["160 (136)",null,null,0,null,0,{"$error":"#DIV/0!"},null,null,null,null,null,null,null,null,null,null,null,null,null,null,null,null,null,null,null,null,null,11,"-","-","-",136,160,"-",162,null,null,0,0,1,1,1,1,1,1,1,1,1,1,0,0,0,0,0,0,null,null,2,null,null,"","","","","","","","","","","","","","","","","-","-","-",9,null,0,null,null,null,null,null,null,null,null,null,null,null,null,null,null,null,null,null,null,null,null,null,null,null,null,null,null,null,null,null,null,null,null,null,null,null,null,null,null,null,null,null,null,null,null,null,null,null,null,null,null,null,null,null,null,null,null,null,null,null,null,null,null,160,null,{"$f":"IF(BG166>=1,AH166,\"\")","v":160},"(136)"]
["160 (141)",null,null,0,null,0,{"$error":"#DIV/0!"},null,null,null,null,null,null,null,null,null,null,null,null,null,null,null,null,null,null,null,null,null,11,"-","-","-",141,160,"-",163,null,null,0,0,1,1,1,1,1,1,1,1,1,1,0,0,0,0,0,0,null,null,2,null,null,"","","","","","","","","","","","","","","","","-","-","-",9,null,0,null,null,null,null,null,null,null,null,null,null,null,null,null,null,null,null,null,null,null,null,null,null,null,null,null,null,null,null,null,null,null,null,null,null,null,null,null,null,null,null,null,null,null,null,null,null,null,null,null,null,null,null,null,null,null,null,null,null,null,null,null,null,161,null,161,"(141)"]
["160 (142)",null,null,0,null,0,{"$error":"#DIV/0!"},null,null,null,null,null,null,null,null,null,null,null,null,null,null,null,null,null,null,null,null,null,11,"-","-","-",142,160,"-",164,null,null,0,0,1,1,1,1,1,1,1,1,1,1,0,0,0,0,0,0,null,null,2,null,null,"","","","","","","","","","","","","","","","","-","-","-",9,null,0,null,null,null,null,null,null,null,null,null,null,null,null,null,null,null,null,null,null,null,null,null,null,null,null,null,null,null,null,null,null,null,null,null,null,null,null,null,null,null,null,null,null,null,null,null,null,null,null,null,null,null,null,null,null,null,null,null,null,null,null,null,null,162,null,{"$f":"IF(BG168>1,AH168,\"\")","v":160},"(142)"]
["160 (145)",null,null,0,null,0,{"$error":"#DIV/0!"},null,null,null,null,null,null,null,null,null,null,null,null,null,null,null,null,null,null,null,null,null,11,"-","-","-",145,160,"-",165,null,null,0,0,1,1,1,1,1,1,1,1,1,1,0,0,0,0,0,0,null,null,2,null,null,"","","","","","","","","","","","","","","","","-","-","-",9,null,0,null,null,null,null,null,null,null,null,null,null,null,null,null,null,null,null,null,null,null,null,null,null,null,null,null,null,null,null,null,null,null,null,null,null,null,null,null,null,null,null,null,null,null,null,null,null,null,null,null,null,null,null,null,null,null,null,null,null,null,null,null,null,163,null,{"$f":"IF(BG169>1,AH169,\"\")","v":160},"(145)"]
["160 (146)",null,null,0,null,0,{"$error":"#DIV/0!"},null,null,null,null,null,null,null,null,null,null,null,null,null,null,null,null,null,null,null,null,null,11,"-","-","-",146,160,"-",166,null,null,0,0,1,1,1,1,1,1,1,1,1,1,0,0,0,0,0,0,null,null,2,null,null,"","","","","","","","","","","","","","","","","-","-","-",9,null,0,null,null,null,null,null,null,null,null,null,null,null,null,null,null,null,null,null,null,null,null,null,null,null,null,null,null,null,null,null,null,null,null,null,null,null,null,null,null,null,null,null,null,null,null,null,null,null,null,null,null,null,null,null,null,null,null,null,null,null,null,null,null,164,null,{"$f":"IF(BG170>1,AH170,\"\")","v":160},"(146)"]
["160 (150)",null,null,0,null,0,{"$error":"#DIV/0!"},null,null,null,null,null,null,null,null,null,null,null,null,null,null,null,null,null,null,null,null,null,11,"-","-","-",150,160,"-",167,null,null,0,0,1,1,1,1,1,1,1,1,1,1,0,0,0,0,0,0,null,null,2,null,null,"","","","","","","","","","","","","","","","","-","-","-",9,null,0,null,null,null,null,null,null,null,null,null,null,null,null,null,null,null,null,null,null,null,null,null,null,null,null,null,null,null,null,null,null,null,null,null,null,null,null,null,null,null,null,null,null,null,null,null,null,null,null,null,null,null,null,null,null,null,null,null,null,null,null,null,null,165,null,{"$f":"IF(BG171>1,AH171,\"\")","v":160},"(150)"]
["160 (151)",null,null,0,null,0,{"$error":"#DIV/0!"},null,null,null,null,null,null,null,null,null,null,null,null,null,null,null,null,null,null,null,null,null,11,"-","-","-",151,160,"-",168,null,null,0,0,1,1,1,1,1,1,1,1,1,1,0,0,0,0,0,0,null,null,2,null,null,"","","","","","","","","","","","","","","","","-","-","-",9,null,0,null,null,null,null,null,null,null,null,null,null,null,null,null,null,null,null,null,null,null,null,null,null,null,null,null,null,null,null,null,null,null,null,null,null,null,null,null,null,null,null,null,null,null,null,null,null,null,null,null,null,null,null,null,null,null,null,null,null,null,null,null,null,195,null,{"$f":"IF(BG172>1,AH172,\"\")","v":160},"(151)"]
["160 (153)",null,null,0,null,0,{"$error":"#DIV/0!"},null,null,null,null,null,null,null,null,null,null,null,null,null,null,null,null,null,null,null,null,null,11,"-","-","-",153,160,"-",169,null,null,0,0,1,1,1,1,1,1,1,1,1,1,0,0,0,0,0,0,null,null,2,null,null,"","","","","","","","","","","","","","","","","-","-","-",9,null,0,null,null,null,null,null,null,null,null,null,null,null,null,null,null,null,null,null,null,null,null,null,null,null,null,null,null,null,null,null,null,null,null,null,null,null,null,null,null,null,null,null,null,null,null,null,null,null,null,null,null,null,null,null,null,null,null,null,null,null,null,null,null,134,null,{"$f":"IF(BG173>=1,AH173,\"\")","v":160},"(153)"]
["160 (154)",null,null,0,null,0,{"$error":"#DIV/0!"},null,null,null,null,null,null,null,null,null,null,null,null,null,null,null,null,null,null,null,null,null,11,"-","-","-",154,160,"-",170,null,null,0,0,1,1,1,1,1,1,1,1,1,1,0,0,0,0,0,0,null,null,2,null,null,"","","","","","","","","","","","","","","","","-","-","-",9,null,0,null,null,null,null,null,null,null,null,null,null,null,null,null,null,null,null,null,null,null,null,null,null,null,null,null,null,null,null,null,null,null,null,null,null,null,null,null,null,null,null,null,null,null,null,null,null,null,null,null,null,null,null,null,null,null,null,null,null,null,null,null,null,166,null,{"$f":"IF(BG174>1,AH174,\"\")","v":160},"(154)"]
["160 (160)",null,null,0,null,0,{"$error":"#DIV/0!"},null,null,null,null,null,null,null,null,null,null,null,null,null,null,null,null,null,null,null,null,null,11,"-","-","-",160,160,"-",171,null,null,0,0,1,1,1,1,1,1,1,1,1,1,0,0,0,0,0,0,null,null,2,null,null,"","","","","","","","","","","","","","","","","-","-","-",9,null,0,null,null,null,null,null,null,null,null,null,null,null,null,null,null,null,null,null,null,null,null,null,null,null,null,null,null,null,null,null,null,null,null,null,null,null,null,null,null,null,null,null,null,null,null,null,null,null,null,null,null,null,null,null,null,null,null,null,null,null,null,null,null,168,null,168,"(160)"]
["160 (162)",null,null,0,null,0,{"$error":"#DIV/0!"},null,null,null,null,null,null,null,null,null,null,null,null,null,null,null,null,null,null,null,null,null,11,"-","-","-",162,160,"-",172,null,null,0,0,1,1,1,1,1,1,1,1,1,1,0,0,0,0,0,0,null,null,2,null,null,"","","","","","","","","","","","","","","","","-","-","-",9,null,0,null,null,null,null,null,null,null,null,null,null,null,null,null,null,null,null,null,null,null,null,null,null,null,null,null,null,null,null,null,null,null,null,null,null,null,null,null,null,null,null,null,null,null,null,null,null,null,null,null,null,null,null,null,null,null,null,null,null,null,null,null,null,215,null,{"$f":"IF(BG176>1,AH176,\"\")","v":160},"(162)"]
["160 (165)",null,null,0,null,0,{"$error":"#DIV/0!"},null,null,null,null,null,null,null,null,null,null,null,null,null,null,null,null,null,null,null,null,null,11,"-","-","-",165,160,"-",173,null,null,0,0,1,1,1,1,1,1,1,1,1,1,0,0,0,0,0,0,null,null,2,null,null,"","","","","","","","","","","","","","","","","-","-","-",9,null,0,null,null,null,null,null,null,null,null,null,null,null,null,null,null,null,null,null,null,null,null,null,null,null,null,null,null,null,null,null,null,null,null,null,null,null,null,null,null,null,null,null,null,null,null,null,null,null,null,null,null,null,null,null,null,null,null,null,null,null,null,null,null,188,null,188,"(165)"]
["160 (167)",null,null,0,null,0,{"$error":"#DIV/0!"},null,null,null,null,null,null,null,null,null,null,null,null,null,null,null,null,null,null,null,null,null,11,"-","-","-",167,160,"-",174,null,null,0,0,1,1,1,1,1,1,1,1,1,1,0,0,0,0,0,0,null,null,2,null,null,"","","","","","","","","","","","","","","","","-","-","-",9,null,0,null,null,null,null,null,null,null,null,null,null,null,null,null,null,null,null,null,null,null,null,null,null,null,null,null,null,null,null,null,null,null,null,null,null,null,null,null,null,null,null,null,null,null,null,null,null,null,null,null,null,null,null,null,null,null,null,null,null,null,null,null,null,170,null,{"$f":"IF(BG178>1,AH178,\"\")","v":160},"(167)"]
["160 (169)",null,null,0,null,0,{"$error":"#DIV/0!"},null,null,null,null,null,null,null,null,null,null,null,null,null,null,null,null,null,null,null,null,null,11,"-","-","-",169,160,"-",175,null,null,0,0,1,1,1,1,1,1,1,1,1,1,0,0,0,0,0,0,null,null,2,null,null,"","","","","","","","","","","","","","","","","-","-","-",9,null,0,null,null,null,null,null,null,null,null,null,null,null,null,null,null,null,null,null,null,null,null,null,null,null,null,null,null,null,null,null,null,null,null,null,null,null,null,null,null,null,null,null,null,null,null,null,null,null,null,null,null,null,null,null,null,null,null,null,null,null,null,null,null,171,null,160,"(169)"]
["160 (172)",null,null,0,null,0,{"$error":"#DIV/0!"},null,null,null,null,null,null,null,null,null,null,null,null,null,null,null,null,null,null,null,null,null,11,"-","-","-",172,160,"-",176,null,null,0,0,1,1,1,1,1,1,1,1,1,1,0,0,0,0,0,0,null,null,2,null,null,"","","","","","","","","","","","","","","","","-","-","-",9,null,0,null,null,null,null,null,null,null,null,null,null,null,null,null,null,null,null,null,null,null,null,null,null,null,null,null,null,null,null,null,null,null,null,null,null,null,null,null,null,null,null,null,null,null,null,null,null,null,null,null,null,null,null,null,null,null,null,null,null,null,null,null,null,172,null,160,"(172)"]
["160 (173)",null,null,0,null,0,{"$error":"#DIV/0!"},null,null,null,null,null,null,null,null,null,null,null,null,null,null,null,null,null,null,null,null,null,11,"-","-","-",173,160,"-",177,null,null,0,0,1,1,1,1,1,1,1,1,1,1,0,0,0,0,0,0,null,null,2,null,null,"","","","","","","","","","","","","","","","","-","-","-",9,null,0,null,null,null,null,null,null,null,null,null,null,null,null,null,null,null,null,null,null,null,null,null,null,null,null,null,null,null,null,null,null,null,null,null,null,null,null,null,null,null,null,null,null,null,null,null,null,null,null,null,null,null,null,null,null,null,null,null,null,null,null,null,null,173,null,160,"(173)"]
["160 (174)",null,null,0,null,0,{"$error":"#DIV/0!"},null,null,null,null,null,null,null,null,null,null,null,null,null,null,null,null,null,null,null,null,null,11,"-","-","-",174,160,"-",178,null,null,0,0,1,1,1,1,1,1,1,1,1,1,0,0,0,0,0,0,null,null,2,null,null,"","","","","","","","","","","","","","","","","-","-","-",9,null,0,null,null,null,null,null,null,null,null,null,null,null,null,null,null,null,null,null,null,null,null,null,null,null,null,null,null,null,null,null,null,null,null,null,null,null,null,null,null,null,null,null,null,null,null,null,null,null,null,null,null,null,null,null,null,null,null,null,null,null,null,null,null,174,null,160,"(174)"]
["160 (176)",null,null,0,null,0,{"$error":"#DIV/0!"},null,null,null,null,null,null,null,null,null,null,null,null,null,null,null,null,null,null,null,null,null,11,"-","-","-",176,160,"-",179,null,null,0,0,1,1,1,1,1,1,1,1,1,1,0,0,0,0,0,0,null,null,2,null,null,"","","","","","","","","","","","","","","","","-","-","-",9,null,0,null,null,null,null,null,null,null,null,null,null,null,null,null,null,null,null,null,null,null,null,null,null,null,null,null,null,null,null,null,null,null,null,null,null,null,null,null,null,null,null,null,null,null,null,null,null,null,null,null,null,null,null,null,null,null,null,null,null,null,null,null,null,182,null,160,"(176)"]
["160 (179)",null,null,0,null,0,{"$error":"#DIV/0!"},null,null,null,null,null,null,null,null,null,null,null,null,null,null,null,null,null,null,null,null,null,11,"-","-","-",179,160,"-",180,null,null,0,0,1,1,1,1,1,1,1,1,1,1,0,0,0,0,0,0,null,null,2,null,null,"","","","","","","","","","","","","","","","","-","-","-",9,null,0,null,null,null,null,null,null,null,null,null,null,null,null,null,null,null,null,null,null,null,null,null,null,null,null,null,null,null,null,null,null,null,null,null,null,null,null,null,null,null,null,null,null,null,null,null,null,null,null,null,null,null,null,null,null,null,null,null,null,null,null,null,null,176,null,160,"(179)"]
["160 (180)",null,null,0,null,0,{"$error":"#DIV/0!"},null,null,null,null,null,null,null,null,null,null,null,null,null,null,null,null,null,null,null,null,null,11,"-","-","-",180,160,"-",181,null,null,0,0,1,1,1,1,1,1,1,1,1,1,0,0,0,0,0,0,null,null,2,null,null,"","","","","","","","","","","","","","","","","-","-","-",9,null,0,null,null,null,null,null,null,null,null,null,null,null,null,null,null,null,null,null,null,null,null,null,null,null,null,null,null,null,null,null,null,null,null,null,null,null,null,null,null,null,null,null,null,null,null,null,null,null,null,null,null,null,null,null,null,null,null,null,null,null,null,null,null,202,null,160,"(180)"]
["160 (181)",null,null,0,null,0,{"$error":"#DIV/0!"},null,null,null,null,null,null,null,null,null,null,null,null,null,null,null,null,null,null,null,null,null,11,"-","-","-",181,160,"-",182,null,null,0,0,1,1,1,1,1,1,1,1,1,1,0,0,0,0,0,0,null,null,2,null,null,"","","","","","","","","","","","","","","","","-","-","-",9,null,0,null,null,null,null,null,null,null,null,null,null,null,null,null,null,null,null,null,null,null,null,null,null,null,null,null,null,null,null,null,null,null,null,null,null,null,null,null,null,null,null,null,null,null,null,null,null,null,null,null,null,null,null,null,null,null,null,null,null,null,null,null,null,177,null,177,"(181)"]
["160 (183)",null,null,0,null,0,{"$error":"#DIV/0!"},null,null,null,null,null,null,null,null,null,null,null,null,null,null,null,null,null,null,null,null,null,11,"-","-","-",183,160,"-",183,null,null,0,0,1,1,1,1,1,1,1,1,1,1,0,0,0,0,0,0,null,null,2,null,null,"","","","","","","","","","","","","","","","","-","-","-",9,null,0,null,null,null,null,null,null,null,null,null,null,null,null,null,null,null,null,null,null,null,null,null,null,null,null,null,null,null,null,null,null,null,null,null,null,null,null,null,null,null,null,null,null,null,null,null,null,null,null,null,null,null,null,null,null,null,null,null,null,null,null,null,null,178,null,{"$f":"IF(BG187>1,AH187,\"\")","v":160},"(183)"]
["160 (184)",null,null,0,null,0,{"$error":"#DIV/0!"},null,null,null,null,null,null,null,null,null,null,null,null,null,null,null,null,null,null,null,null,null,11,"-","-","-",184,160,"-",184,null,null,0,0,1,1,1,1,1,1,1,1,1,1,0,0,0,0,0,0,null,null,2,null,null,"","","","","","","","","","","","","","","","","-","-","-",9,null,0,null,null,null,null,null,null,null,null,null,null,null,null,null,null,null,null,null,null,null,null,null,null,null,null,null,null,null,null,null,null,null,null,null,null,null,null,null,null,null,null,null,null,null,null,null,null,null,null,null,null,null,null,null,null,null,null,null,null,null,null,null,null,179,null,179,"(184)"]
["160 (185)",null,null,0,null,0,{"$error":"#DIV/0!"},null,null,null,null,null,null,null,null,null,null,null,null,null,null,null,null,null,null,null,null,null,11,"-","-","-",185,160,"-",185,null,null,0,0,1,1,1,1,1,1,1,1,1,1,0,0,0,0,0,0,null,null,2,null,null,"","","","","","","","","","","","","","","","","-","-","-",9,null,0,null,null,null,null,null,null,null,null,null,null,null,null,null,null,null,null,null,null,null,null,null,null,null,null,null,null,null,null,null,null,null,null,null,null,null,null,null,null,null,null,null,null,null,null,null,null,null,null,null,null,null,null,null,null,null,null,null,null,null,null,null,null,180,null,{"$f":"IF(BG189>1,AH189,\"\")","v":160},"(185)"]
["160 (186)",null,null,0,null,0,{"$error":"#DIV/0!"},null,null,null,null,null,null,null,null,null,null,null,null,null,null,null,null,null,null,null,null,null,11,"-","-","-",186,160,"-",186,null,null,0,0,1,1,1,1,1,1,1,1,1,1,0,0,0,0,0,0,null,null,2,null,null,"","","","","","","","","","","","","","","","","-","-","-",9,null,0,null,null,null,null,null,null,null,null,null,null,null,null,null,null,null,null,null,null,null,null,null,null,null,null,null,null,null,null,null,null,null,null,null,null,null,null,null,null,null,null,null,null,null,null,null,null,null,null,null,null,null,null,null,null,null,null,null,null,null,null,null,null,181,null,{"$f":"IF(BG190>1,AH190,\"\")","v":160},"(186)"]
["160 (187)",null,null,0,null,0,{"$error":"#DIV/0!"},null,null,null,null,null,null,null,null,null,null,null,null,null,null,null,null,null,null,null,null,null,11,"-","-","-",187,160,"-",187,null,null,0,0,1,1,1,1,1,1,1,1,1,1,0,0,0,0,0,0,null,null,2,null,null,"","","","","","","","","","","","","","","","","-","-","-",9,null,0,null,null,null,null,null,null,null,null,null,null,null,null,null,null,null,null,null,null,null,null,null,null,null,null,null,null,null,null,null,null,null,null,null,null,null,null,null,null,null,null,null,null,null,null,null,null,null,null,null,null,null,null,null,null,null,null,null,null,null,null,null,null,155,null,{"$f":"IF(BG191>=1,AH191,\"\")","v":160},"(187)"]
["160 (188)",null,null,0,null,0,{"$error":"#DIV/0!"},null,null,null,null,null,null,null,null,null,null,null,null,null,null,null,null,null,null,null,null,null,11,"-","-","-",188,160,"-",188,null,null,0,0,1,1,1,1,1,1,1,1,1,1,0,0,0,0,0,0,null,null,2,null,null,"","","","","","","","","","","","","","","","","-","-","-",9,null,0,null,null,null,null,null,null,null,null,null,null,null,null,null,null,null,null,null,null,null,null,null,null,null,null,null,null,null,null,null,null,null,null,null,null,null,null,null,null,null,null,null,null,null,null,null,null,null,null,null,null,null,null,null,null,null,null,null,null,null,null,null,null,183,null,{"$f":"IF(BG192>1,AH192,\"\")","v":160},"(188)"]
["160 (189)",null,null,0,null,0,{"$error":"#DIV/0!"},null,null,null,null,null,null,null,null,null,null,null,null,null,null,null,null,null,null,null,null,null,11,"-","-","-",189,160,"-",189,null,null,0,0,1,1,1,1,1,1,1,1,1,1,0,0,0,0,0,0,null,null,2,null,null,"","","","","","","","","","","","","","","","","-","-","-",9,null,0,null,null,null,null,null,null,null,null,null,null,null,null,null,null,null,null,null,null,null,null,null,null,null,null,null,null,null,null,null,null,null,null,null,null,null,null,null,null,null,null,null,null,null,null,null,null,null,null,null,null,null,null,null,null,null,null,null,null,null,null,null,null,185,null,160,"(189)"]
["160 (190)",null,null,0,null,0,{"$error":"#DIV/0!"},null,null,null,null,null,null,null,null,null,null,null,null,null,null,null,null,null,null,null,null,null,11,"-","-","-",190,160,"-",190,null,null,0,0,1,1,1,1,1,1,1,1,1,1,0,0,0,0,0,0,null,null,2,null,null,"","","","","","","","","","","","","","","","","-","-","-",9,null,0,null,null,null,null,null,null,null,null,null,null,null,null,null,null,null,null,null,null,null,null,null,null,null,null,null,null,null,null,null,null,null,null,null,null,null,null,null,null,null,null,null,null,null,null,null,null,null,null,null,null,null,null,null,null,null,null,null,null,null,null,null,null,186,null,160,"(190)"]
["160 (191)",null,null,0,null,0,{"$error":"#DIV/0!"},null,null,null,null,null,null,null,null,null,null,null,null,null,null,null,null,null,null,null,null,null,11,"-","-","-",191,160,"-",191,null,null,0,0,1,1,1,1,1,1,1,1,1,1,0,0,0,0,0,0,null,null,2,null,null,"","","","","","","","","","","","","","","","","-","-","-",9,null,0,null,null,null,null,null,null,null,null,null,null,null,null,null,null,null,null,null,null,null,null,null,null,null,null,null,null,null,null,null,null,null,null,null,null,null,null,null,null,null,null,null,null,null,null,null,null,null,null,null,null,null,null,null,null,null,null,null,null,null,null,null,null,187,null,160,"(191)"]
["160 (192)",null,null,0,null,0,{"$error":"#DIV/0!"},null,null,null,null,null,null,null,null,null,null,null,null,null,null,null,null,null,null,null,null,null,11,"-","-","-",192,160,"-",192,null,null,0,0,1,1,1,1,1,1,1,1,1,1,0,0,0,0,0,0,null,null,2,null,null,"","","","","","","","","","","","","","","","","-","-","-",9,null,0,null,null,null,null,null,null,null,null,null,null,null,null,null,null,null,null,null,null,null,null,null,null,null,null,null,null,null,null,null,null,null,null,null,null,null,null,null,null,null,null,null,null,null,null,null,null,null,null,null,null,null,null,null,null,null,null,null,null,null,null,null,null,205,null,160,"(192)"]
[{"$f":"IF(BG197>1,AH197&\" (\"&AG197&\")\",AH197&\" (\"&AI197&\")\")","v":"160 (193)"},null,null,{"$f":"SUM(BJ197:BU197)","v":0},null,{"$f":"COUNT(I197:AB197)","v":0},{"$f":"SUM((CE197)/(F197*2))","v":{"$error":"#DIV/0!"}},null,null,null,null,null,null,null,null,null,null,null,null,null,null,null,null,null,null,null,null,null,{"$f":"SUM($I$3:$AB$3)","v":11},{"$f":"BZ197","v":"-"},{"$f":"CA197","v":"-"},{"$f":"CB197","v":"-"},193,{"$f":"IF(D197<D196,AJ197,AH196)","v":160},{"$f":"IF(F197>1,ROW(193:193),\"-\")","v":"-"},193,null,null,0,0,1,1,1,1,1,1,1,1,1,1,0,0,0,0,0,0,null,null,{"$f":"IF(H197=\"x\",1,2)","v":2},null,null,{"$f":"IF($F197>0,LARGE($I197:$AB197,1),\"\")","v":""},{"$f":"IF($F197>1,LARGE($I197:$AB197,2),\"\")","v":""},{"$f":"IF($F197>2,LARGE($I197:$AB197,3),\"\")","v":""},{"$f":"IF($F197>3,LARGE($I197:$AB197,4),\"\")","v":""},{"$f":"IF($F197>4,LARGE($I197:$AB197,5),\"\")","v":""},{"$f":"IF($F197>5,LARGE($I197:$AB197,6),\"\")","v":""},{"$f":"IF($F197>6,LARGE($I197:$AB197,7),\"\")","v":""},{"$f":"IF($F197>7,LARGE($I197:$AB197,8),\"\")","v":""},{"$f":"IF($F197>8,LARGE($I197:$AB197,9),\"\")","v":""},{"$f":"IF($F197>9,LARGE($I197:$AB197,10),\"\")","v":""},{"$f":"IF($F197>10,LARGE($I197:$AB197,11),\"\")","v":""},{"$f":"IF($F197>11,LARGE($I197:$AB197,12),\"\")","v":""},{"$f":"IF($F197>12,LARGE($I197:$AB197,13),\"\")","v":""},{"$f":"IF($F197>13,LARGE($I197:$AB197,14),\"\")","v":""},{"$f":"IF($F197>14,LARGE($I197:$AB197,15),\"\")","v":""},{"$f":"IF($F197>15,LARGE($I197:$AB197,16),\"\")","v":""},"-","-","-",{"$f":"SUM(AC197-F197)-2","v":9},null,{"$f":"SUM(BJ197:BY197)","v":0},null,null,null,null,null,null,null,null,null,null,null,null,null,null,null,null,null,null,null,null,null,null,null,null,null,null,null,null,null,null,null,null,null,null,null,null,null,null,null,null,null,null,null,null,null,null,null,null,null,null,null,null,null,null,null,null,null,null,null,null,null,null,216,null,160,{"$f":"IF(BG197>1,\"(\"&AG197&\")\",\"(\"&AI197&\")\")","v":"(193)"}]
["160 (194)",null,null,0,null,0,{"$error":"#DIV/0!"},null,null,null,null,null,null,null,null,null,null,null,null,null,null,null,null,null,null,null,null,null,11,"-","-","-",194,160,"-",194,null,null,{"$f":"COUNT($I$3,I198,H198)","v":0},{"$f":"COUNT($J$3,J198,I198)","v":0},{"$f":"COUNT($K$3,K198,J198)","v":1},{"$f":"COUNT($L$3,L198,K198)","v":1},{"$f":"COUNT($M$3,M198,L198)","v":1},{"$f":"COUNT($N$3,N198,M198)","v":1},{"$f":"COUNT($O$3,O198,N198)","v":1},{"$f":"COUNT($P$3,P198,O198)","v":1},{"$f":"COUNT($R$3,R198,P198)","v":1},{"$f":"COUNT($S$3,S198,R198)","v":1},{"$f":"COUNT($T$3,T198,S198)","v":1},{"$f":"COUNT($U$3,U198,T198)","v":1},{"$f":"COUNT($V$3,V198,U198)","v":0},{"$f":"COUNT($W$3,W198,V198)","v":0},{"$f":"COUNT($X$3,X198,W198)","v":0},{"$f":"COUNT($Y$3,Y198,X198)","v":0},{"$f":"COUNT($AA$3,AA198,Y198)","v":0},{"$f":"COUNT($AB$3,AB198,AA198)","v":0},null,null,2,null,null,"","","","","","","","","","","","","","","","",{"$f":"IF($F198>12,LARGE($I198:$AB198,13),\"-\")","v":"-"},{"$f":"IF($F198>13,LARGE($I198:$AB198,14),\"-\")","v":"-"},{"$f":"IF($F198>14,LARGE($I198:$AB198,15),\"-\")","v":"-"},9,null,0,null,null,null,null,null,null,null,null,null,null,null,null,null,null,null,null,null,null,null,null,null,null,null,null,null,null,null,null,null,null,null,null,null,null,null,null,null,null,null,null,null,null,null,null,null,null,null,null,null,null,null,null,null,null,null,null,null,null,null,null,null,null,189,null,160,"(194)"]
["160 (195)",null,null,0,null,0,{"$error":"#DIV/0!"},null,null,null,null,null,null,null,null,null,null,null,null,null,null,null,null,null,null,null,null,null,11,"-","-","-",195,160,"-",195,null,null,0,0,1,1,1,1,1,1,1,1,1,1,0,0,0,0,0,0,null,null,2,null,null,"","","","","","","","","","","","","","","","","-","-","-",9,null,0,null,null,null,null,null,null,null,null,null,null,null,null,null,null,null,null,null,null,null,null,null,null,null,null,null,null,null,null,null,null,null,null,null,null,null,null,null,null,null,null,null,null,null,null,null,null,null,null,null,null,null,null,null,null,null,null,null,null,null,null,null,null,190,null,160,"(195)"]
["160 (196)",null,null,0,null,0,{"$error":"#DIV/0!"},null,null,null,null,null,null,null,null,null,null,null,null,null,null,null,null,null,null,null,null,null,11,"-","-","-",196,160,"-",196,null,null,0,0,1,1,1,1,1,1,1,1,1,1,0,0,0,0,0,0,null,null,2,null,null,"","","","","","","","","","","","","","","","","-","-","-",9,null,0,null,null,null,null,null,null,null,null,null,null,null,null,null,null,null,null,null,null,null,null,null,null,null,null,null,null,null,null,null,null,null,null,null,null,null,null,null,null,null,null,null,null,null,null,null,null,null,null,null,null,null,null,null,null,null,null,null,null,null,null,null,null,191,null,160,"(196)"]
["160 (197)",null,null,0,null,0,{"$error":"#DIV/0!"},null,null,null,null,null,null,null,null,null,null,null,null,null,null,null,null,null,null,null,null,null,11,"-","-","-",197,160,"-",197,null,null,0,0,1,1,1,1,1,1,1,1,1,1,0,0,0,0,0,0,null,null,2,null,null,"","","","","","","","","","","","","","","","","-","-","-",9,null,0,null,null,null,null,null,null,null,null,null,null,null,null,null,null,null,null,null,null,null,null,null,null,null,null,null,null,null,null,null,null,null,null,null,null,null,null,null,null,null,null,null,null,null,null,null,null,null,null,null,null,null,null,null,null,null,null,null,null,null,null,null,null,192,null,160,"(197)"]
["160 (198)",null,null,0,null,0,{"$error":"#DIV/0!"},null,null,null,null,null,null,null,null,null,null,null,null,null,null,null,null,null,null,null,null,null,11,"-","-","-",198,160,"-",198,null,null,0,0,1,1,1,1,1,1,1,1,1,1,0,0,0,0,0,0,null,null,2,null,null,"","","","","","","","","","","","","","","","","-","-","-",9,null,0,null,null,null,null,null,null,null,null,null,null,null,null,null,null,null,null,null,null,null,null,null,null,null,null,null,null,null,null,null,null,null,null,null,null,null,null,null,null,null,null,null,null,null,null,null,null,null,null,null,null,null,null,null,null,null,null,null,null,null,null,null,null,193,null,160,"(198)"]
["160 (199)",null,null,0,null,0,{"$error":"#DIV/0!"},null,null,null,null,null,null,null,null,null,null,null,null,null,null,null,null,null,null,null,null,null,11,"-","-","-",199,160,"-",199,null,null,0,0,1,1,1,1,1,1,1,1,1,1,0,0,0,0,0,0,null,null,2,null,null,"","","","","","","","","","","","","","","","","-","-","-",9,null,0,null,null,null,null,null,null,null,null,null,null,null,null,null,null,null,null,null,null,null,null,null,null,null,null,null,null,null,null,null,null,null,null,null,null,null,null,null,null,null,null,null,null,null,null,null,null,null,null,null,null,null,null,null,null,null,null,null,null,null,null,null,null,169,null,160,"(199)"]
["160 (200)",null,null,0,null,0,{"$error":"#DIV/0!"},null,null,null,null,null,null,null,null,null,null,null,null,null,null,null,null,null,null,null,null,null,11,"-","-","-",200,160,"-",200,null,null,0,0,1,1,1,1,1,1,1,1,1,1,0,0,0,0,0,0,null,null,2,null,null,"","","","","","","","","","","","","","","","","-","-","-",9,null,0,null,null,null,null,null,null,null,null,null,null,null,null,null,null,null,null,null,null,null,null,null,null,null,null,null,null,null,null,null,null,null,null,null,null,null,null,null,null,null,null,null,null,null,null,null,null,null,null,null,null,null,null,null,null,null,null,null,null,null,null,null,null,194,null,160,"(200)"]
["160 (201)",null,null,0,null,0,{"$error":"#DIV/0!"},null,null,null,null,null,null,null,null,null,null,null,null,null,null,null,null,null,null,null,null,null,11,"-","-","-",201,160,"-",201,null,null,0,0,1,1,1,1,1,1,1,1,1,1,0,0,0,0,0,0,null,null,2,null,null,"","","","","","","","","","","","","","","","","-","-","-",9,null,0,null,null,null,null,null,null,null,null,null,null,null,null,null,null,null,null,null,null,null,null,null,null,null,null,null,null,null,null,null,null,null,null,null,null,null,null,null,null,null,null,null,null,null,null,null,null,null,null,null,null,null,null,null,null,null,null,null,null,null,null,null,null,196,null,160,"(201)"]
["160 (202)",null,null,0,null,0,{"$error":"#DIV/0!"},null,null,null,null,null,null,null,null,null,null,null,null,null,null,null,null,null,null,null,null,null,11,"-","-","-",202,160,"-",202,null,null,0,0,1,1,1,1,1,1,1,1,1,1,0,0,0,0,0,0,null,null,2,null,null,"","","","","","","","","","","","","","","","","-","-","-",9,null,0,null,null,null,null,null,null,null,null,null,null,null,null,null,null,null,null,null,null,null,null,null,null,null,null,null,null,null,null,null,null,null,null,null,null,null,null,null,null,null,null,null,null,null,null,null,null,null,null,null,null,null,null,null,null,null,null,null,null,null,null,null,null,197,null,160,"(202)"]
["160 (203)",null,null,0,null,0,{"$error":"#DIV/0!"},null,null,null,null,null,null,null,null,null,null,null,null,null,null,null,null,null,null,null,null,null,11,"-","-","-",203,160,"-",203,null,null,0,0,1,1,1,1,1,1,1,1,1,1,0,0,0,0,0,0,null,null,2,null,null,"","","","","","","","","","","","","","","","","-","-","-",9,null,0,null,null,null,null,null,null,null,null,null,null,null,null,null,null,null,null,null,null,null,null,null,null,null,null,null,null,null,null,null,null,null,null,null,null,null,null,null,null,null,null,null,null,null,null,null,null,null,null,null,null,null,null,null,null,null,null,null,null,null,null,null,null,207,null,160,"(203)"]
["160 (204)",null,null,0,null,0,{"$error":"#DIV/0!"},null,null,null,null,null,null,null,null,null,null,null,null,null,null,null,null,null,null,null,null,null,11,"-","-","-",204,160,"-",204,null,null,0,0,1,1,1,1,1,1,1,1,1,1,0,0,0,0,0,0,null,null,2,null,null,"","","","","","","","","","","","","","","","","-","-","-",9,null,0,null,null,null,null,null,null,null,null,null,null,null,null,null,null,null,null,null,null,null,null,null,null,null,null,null,null,null,null,null,null,null,null,null,null,null,null,null,null,null,null,null,null,null,null,null,null,null,null,null,null,null,null,null,null,null,null,null,null,null,null,null,null,198,null,160,"(204)"]
["160 (205)",null,null,0,null,0,{"$error":"#DIV/0!"},null,null,null,null,null,null,null,null,null,null,null,null,null,null,null,null,null,null,null,null,null,11,"-","-","-",205,160,"-",205,null,null,0,0,1,1,1,1,1,1,1,1,1,1,0,0,0,0,0,0,null,null,2,null,null,"","","","","","","","","","","","","","","","","-","-","-",9,null,0,null,null,null,null,null,null,null,null,null,null,null,null,null,null,null,null,null,null,null,null,null,null,null,null,null,null,null,null,null,null,null,null,null,null,null,null,null,null,null,null,null,null,null,null,null,null,null,null,null,null,null,null,null,null,null,null,null,null,null,null,null,null,199,null,160,"(205)"]
["160 (206)",null,null,0,null,0,{"$error":"#DIV/0!"},null,null,null,null,null,null,null,null,null,null,null,null,null,null,null,null,null,null,null,null,null,11,"-","-","-",206,160,"-",206,null,null,0,0,1,1,1,1,1,1,1,1,1,1,0,0,0,0,0,0,null,null,2,null,null,"","","","","","","","","","","","","","","","","-","-","-",9,null,0,null,null,null,null,null,null,null,null,null,null,null,null,null,null,null,null,null,null,null,null,null,null,null,null,null,null,null,null,null,null,null,null,null,null,null,null,null,null,null,null,null,null,null,null,null,null,null,null,null,null,null,null,null,null,null,null,null,null,null,null,null,null,200,null,160,"(206)"]
["160 (207)",null,null,0,null,0,{"$error":"#DIV/0!"},null,null,null,null,null,null,null,null,null,null,null,null,null,null,null,null,null,null,null,null,null,11,"-","-","-",207,160,"-",207,null,null,0,0,1,1,1,1,1,1,1,1,1,1,0,0,0,0,0,0,null,null,2,null,null,"","","","","","","","","","","","","","","","","-","-","-",9,null,0,null,null,null,null,null,null,null,null,null,null,null,null,null,null,null,null,null,null,null,null,null,null,null,null,null,null,null,null,null,null,null,null,null,null,null,null,null,null,null,null,null,null,null,null,null,null,null,null,null,null,null,null,null,null,null,null,null,null,null,null,null,null,201,null,160,"(207)"]
["160 (208)",null,null,0,null,0,{"$error":"#DIV/0!"},null,null,null,null,null,null,null,null,null,null,null,null,null,null,null,null,null,null,null,null,null,11,"-","-","-",208,160,"-",208,null,null,0,0,1,1,1,1,1,1,1,1,1,1,0,0,0,0,0,0,null,null,2,null,null,"","","","","","","","","","","","","","","","","-","-","-",9,null,0,null,null,null,null,null,null,null,null,null,null,null,null,null,null,null,null,null,null,null,null,null,null,null,null,null,null,null,null,null,null,null,null,null,null,null,null,null,null,null,null,null,null,null,null,null,null,null,null,null,null,null,null,null,null,null,null,null,null,null,null,null,null,203,null,160,"(208)"]
["160 (209)",null,null,0,null,0,{"$error":"#DIV/0!"},null,null,null,null,null,null,null,null,null,null,null,null,null,null,null,null,null,null,null,null,null,11,"-","-","-",209,160,"-",209,null,null,0,0,1,1,1,1,1,1,1,1,1,1,0,0,0,0,0,0,null,null,2,null,null,"","","","","","","","","","","","","","","","","-","-","-",9,null,0,null,null,null,null,null,null,null,null,null,null,null,null,null,null,null,null,null,null,null,null,null,null,null,null,null,null,null,null,null,null,null,null,null,null,null,null,null,null,null,null,null,null,null,null,null,null,null,null,null,null,null,null,null,null,null,null,null,null,null,null,null,null,204,null,160,"(209)"]
[{"$f":"IF(BG214>1,AH214&\" (\"&AG214&\")\",AH214&\" (\"&AI214&\")\")","v":"160 (210)"},null,null,0,null,0,{"$error":"#DIV/0!"},null,null,null,null,null,null,null,null,null,null,null,null,null,null,null,null,null,null,null,null,null,11,"-","-","-",210,160,"-",210,null,null,0,0,1,1,1,1,1,1,1,1,1,1,0,0,0,0,0,0,null,null,2,null,null,"","","","","","","","","","","","","","","","","-","-","-",9,null,{"$f":"SUM(BJ214:BY214)","v":0},null,null,null,null,null,null,null,null,null,null,null,null,null,null,null,null,null,null,null,null,null,null,null,null,null,null,null,null,null,null,null,null,null,null,null,null,null,null,null,null,null,null,null,null,null,null,null,null,null,null,null,null,null,null,null,null,null,null,null,null,null,null,208,null,{"$f":"IF(BG214>1,AH214,\"\")","v":160},{"$f":"IF(BG214>1,\"(\"&AG214&\")\",\"(\"&AI214&\")\")","v":"(210)"}]
["160 (211)",null,null,0,null,0,{"$error":"#DIV/0!"},null,null,null,null,null,null,null,null,null,null,null,null,null,null,null,null,null,null,null,null,null,11,"-","-","-",211,160,"-",211,null,null,0,0,1,1,1,1,1,1,1,1,1,1,0,0,0,0,0,0,null,null,2,null,null,"","","","","","","","","","","","","","","","","-","-","-",9,null,0,null,null,null,null,null,null,null,null,null,null,null,null,null,null,null,null,null,null,null,null,null,null,null,null,null,null,null,null,null,null,null,null,null,null,null,null,null,null,null,null,null,null,null,null,null,null,null,null,null,null,null,null,null,null,null,null,null,null,null,null,null,null,209,null,160,"(211)"]
["160 (212)",null,null,0,null,0,{"$error":"#DIV/0!"},null,null,null,null,null,null,null,null,null,null,null,null,null,null,null,null,null,null,null,null,null,11,"-","-","-",212,160,"-",212,null,null,0,0,1,1,1,1,1,1,1,1,1,1,0,0,0,0,0,0,null,null,2,null,null,"","","","","","","","","","","","","","","","","-","-","-",9,null,0,null,null,null,null,null,null,null,null,null,null,null,null,null,null,null,null,null,null,null,null,null,null,null,null,null,null,null,null,null,null,null,null,null,null,null,null,null,null,null,null,null,null,null,null,null,null,null,null,null,null,null,null,null,null,null,null,null,null,null,null,null,null,210,null,160,"(212)"]
["160 (213)",null,null,0,null,0,{"$error":"#DIV/0!"},null,null,null,null,null,null,null,null,null,null,null,null,null,null,null,null,null,null,null,null,null,11,"-","-","-",213,160,"-",213,null,null,0,0,1,1,1,1,1,1,1,1,1,1,0,0,0,0,0,0,null,null,2,null,null,"","","","","","","","","","","","","","","","","-","-","-",9,null,0,null,null,null,null,null,null,null,null,null,null,null,null,null,null,null,null,null,null,null,null,null,null,null,null,null,null,null,null,null,null,null,null,null,null,null,null,null,null,null,null,null,null,null,null,null,null,null,null,null,null,null,null,null,null,null,null,null,null,null,null,null,null,211,null,160,"(213)"]
["160 (214)",null,null,0,null,0,{"$error":"#DIV/0!"},null,null,null,null,null,null,null,null,null,null,null,null,null,null,null,null,null,null,null,null,null,11,"-","-","-",214,160,"-",214,null,null,0,0,1,1,1,1,1,1,1,1,1,1,0,0,0,0,0,0,null,null,2,null,null,"","","","","","","","","","","","","","","","","-","-","-",9,null,0,null,null,null,null,null,null,null,null,null,null,null,null,null,null,null,null,null,null,null,null,null,null,null,null,null,null,null,null,null,null,null,null,null,null,null,null,null,null,null,null,null,null,null,null,null,null,null,null,null,null,null,null,null,null,null,null,null,null,null,null,null,null,212,null,160,"(214)"]
["160 (215)",null,null,0,null,0,{"$error":"#DIV/0!"},null,null,null,null,null,null,null,null,null,null,null,null,null,null,null,null,null,null,null,null,null,11,"-","-","-",215,160,"-",215,null,null,0,0,1,1,1,1,1,1,1,1,1,1,0,0,0,0,0,0,null,null,2,null,null,"","","","","","","","","","","","","","","","","-","-","-",9,null,0,null,null,null,null,null,null,null,null,null,null,null,null,null,null,null,null,null,null,null,null,null,null,null,null,null,null,null,null,null,null,null,null,null,null,null,null,null,null,null,null,null,null,null,null,null,null,null,null,null,null,null,null,null,null,null,null,null,null,null,null,null,null,213,null,160,"(215)"]
["160 (216)",null,null,0,null,0,{"$error":"#DIV/0!"},null,null,null,null,null,null,null,null,null,null,null,null,null,null,null,null,null,null,null,null,null,11,"-","-","-",216,160,"-",216,null,null,0,0,1,1,1,1,1,1,1,1,1,1,0,0,0,0,0,0,null,null,2,null,null,"","","","","","","","","","","","","","","","","-","-","-",9,null,0,null,null,null,null,null,null,null,null,null,null,null,null,null,null,null,null,null,null,null,null,null,null,null,null,null,null,null,null,null,null,null,null,null,null,null,null,null,null,null,null,null,null,null,null,null,null,null,null,null,null,null,null,null,null,null,null,null,null,null,null,null,null,214,null,160,"(216)"]
[]
[]
[]
[]
[]
[]
[]
[]
[]
[]
[]
[]
[]
[]
[]
[]
[]
[]
[]
[]
[]
[]
[]
[]
[]
[]
[]
[]
[]
[]
[]
[]
[]
[]
[]
[]
[]
[]
[]
[]
[]
[]
[]
[]
[]
[]
[]
[]
[]
[]
[]
[]
[]
[]
[]
[null,null,null,null,null,null,null,null,null,null,null,null,null,null,null,null,null,null,null,null,null,null,null,null,null,null,null,null,null,null,null,null,1]
[null,null,null,null,null,null,null,null,null,null,null,null,null,null,null,null,null,null,null,null,null,null,null,null,null,null,null,null,null,null,null,null,2]
[null,null,null,null,null,null,null,null,null,null,null,null,null,null,null,null,null,null,null,null,null,null,null,null,null,null,null,null,null,null,null,null,3]
[null,null,null,null,null,null,null,null,null,null,null,null,null,null,null,null,null,null,null,null,null,null,null,null,null,null,null,null,null,null,null,null,4]
[null,null,null,null,null,null,null,null,null,null,null,null,null,null,null,null,null,null,null,null,null,null,null,null,null,null,null,null,null,null,null,null,5]
[null,null,null,null,null,null,null,null,null,null,null,null,null,null,null,null,null,null,null,null,null,null,null,null,null,null,null,null,null,null,null,null,6]
[null,null,null,null,null,null,null,null,null,null,null,null,null,null,null,null,null,null,null,null,null,null,null,null,null,null,null,null,null,null,null,null,7]
[null,null,null,null,null,null,null,null,null,null,null,null,null,null,null,null,null,null,null,null,null,null,null,null,null,null,null,null,null,null,null,null,8]
[null,null,null,null,null,null,null,null,null,null,null,null,null,null,null,null,null,null,null,null,null,null,null,null,null,null,null,null,null,null,null,null,9]
[null,null,null,null,null,null,null,null,null,null,null,null,null,null,null,null,null,null,null,null,null,null,null,null,null,null,null,null,null,null,null,null,11]
[null,null,null,null,null,null,null,null,null,null,null,null,null,null,null,null,null,null,null,null,null,null,null,null,null,null,null,null,null,null,null,null,10]
[null,null,null,null,null,null,null,null,null,null,null,null,null,null,null,null,null,null,null,null,null,null,null,null,null,null,null,null,null,null,null,null,12]
[null,null,null,null,null,null,null,null,null,null,null,null,null,null,null,null,null,null,null,null,null,null,null,null,null,null,null,null,null,null,null,null,16]
[null,null,null,null,null,null,null,null,null,null,null,null,null,null,null,null,null,null,null,null,null,null,null,null,null,null,null,null,null,null,null,null,15]
[null,null,null,null,null,null,null,null,null,null,null,null,null,null,null,null,null,null,null,null,null,null,null,null,null,null,null,null,null,null,null,null,14]
[null,null,null,null,null,null,null,null,null,null,null,null,null,null,null,null,null,null,null,null,null,null,null,null,null,null,null,null,null,null,null,null,13]
[null,null,null,null,null,null,null,null,null,null,null,null,null,null,null,null,null,null,null,null,null,null,null,null,null,null,null,null,null,null,null,null,29]
[null,null,null,null,null,null,null,null,null,null,null,null,null,null,null,null,null,null,null,null,null,null,null,null,null,null,null,null,null,null,null,null,18]
[null,null,null,null,null,null,null,null,null,null,null,null,null,null,null,null,null,null,null,null,null,null,null,null,null,null,null,null,null,null,null,null,21]
[null,null,null,null,null,null,null,null,null,null,null,null,null,null,null,null,null,null,null,null,null,null,null,null,null,null,null,null,null,null,null,null,22]
[null,null,null,null,null,null,null,null,null,null,null,null,null,null,null,null,null,null,null,null,null,null,null,null,null,null,null,null,null,null,null,null,23]
[null,null,null,null,null,null,null,null,null,null,null,null,null,null,null,null,null,null,null,null,null,null,null,null,null,null,null,null,null,null,null,null,28]
[null,null,null,null,null,null,null,null,null,null,null,null,null,null,null,null,null,null,null,null,null,null,null,null,null,null,null,null,null,null,null,null,32]
[null,null,null,null,null,null,null,null,null,null,null,null,null,null,null,null,null,null,null,null,null,null,null,null,null,null,null,null,null,null,null,null,25]
[null,null,null,null,null,null,null,null,null,null,null,null,null,null,null,null,null,null,null,null,null,null,null,null,null,null,null,null,null,null,null,null,20]
[null,null,null,null,null,null,null,null,null,null,null,null,null,null,null,null,null,null,null,null,null,null,null,null,null,null,null,null,null,null,null,null,26]
[null,null,null,null,null,null,null,null,null,null,null,null,null,null,null,null,null,null,null,null,null,null,null,null,null,null,null,null,null,null,null,null,17]
[null,null,null,null,null,null,null,null,null,null,null,null,null,null,null,null,null,null,null,null,null,null,null,null,null,null,null,null,null,null,null,null,36]
[null,null,null,null,null,null,null,null,null,null,null,null,null,null,null,null,null,null,null,null,null,null,null,null,null,null,null,null,null,null,null,null,27]
[null,null,null,null,null,null,null,null,null,null,null,null,null,null,null,null,null,null,null,null,null,null,null,null,null,null,null,null,null,null,null,null,24]
[null,null,null,null,null,null,null,null,null,null,null,null,null,null,null,null,null,null,null,null,null,null,null,null,null,null,null,null,null,null,null,null,30]
[null,null,null,null,null,null,null,null,null,null,null,null,null,null,null,null,null,null,null,null,null,null,null,null,null,null,null,null,null,null,null,null,31]
[null,null,null,null,null,null,null,null,null,null,null,null,null,null,null,null,null,null,null,null,null,null,null,null,null,null,null,null,null,null,null,null,19]
[null,null,null,null,null,null,null,null,null,null,null,null,null,null,null,null,null,null,null,null,null,null,null,null,null,null,null,null,null,null,null,null,39]
[null,null,null,null,null,null,null,null,null,null,null,null,null,null,null,null,null,null,null,null,null,null,null,null,null,null,null,null,null,null,null,null,33]
[null,null,null,null,null,null,null,null,null,null,null,null,null,null,null,null,null,null,null,null,null,null,null,null,null,null,null,null,null,null,null,null,43]
[null,null,null,null,null,null,null,null,null,null,null,null,null,null,null,null,null,null,null,null,null,null,null,null,null,null,null,null,null,null,null,null,34]
[null,null,null,null,null,null,null,null,null,null,null,null,null,null,null,null,null,null,null,null,null,null,null,null,null,null,null,null,null,null,null,null,35]
[null,null,null,null,null,null,null,null,null,null,null,null,null,null,null,null,null,null,null,null,null,null,null,null,null,null,null,null,null,null,null,null,45]
[null,null,null,null,null,null,null,null,null,null,null,null,null,null,null,null,null,null,null,null,null,null,null,null,null,null,null,null,null,null,null,null,44]
[null,null,null,null,null,null,null,null,null,null,null,null,null,null,null,null,null,null,null,null,null,null,null,null,null,null,null,null,null,null,null,null,37]
[null,null,null,null,null,null,null,null,null,null,null,null,null,null,null,null,null,null,null,null,null,null,null,null,null,null,null,null,null,null,null,null,40]
[null,null,null,null,null,null,null,null,null,null,null,null,null,null,null,null,null,null,null,null,null,null,null,null,null,null,null,null,null,null,null,null,46]
[null,null,null,null,null,null,null,null,null,null,null,null,null,null,null,null,null,null,null,null,null,null,null,null,null,null,null,null,null,null,null,null,41]
[null,null,null,null,null,null,null,null,null,null,null,null,null,null,null,null,null,null,null,null,null,null,null,null,null,null,null,null,null,null,null,null,38]
[null,null,null,null,null,null,null,null,null,null,null,null,null,null,null,null,null,null,null,null,null,null,null,null,null,null,null,null,null,null,null,null,42]
[null,null,null,null,null,null,null,null,null,null,null,null,null,null,null,null,null,null,null,null,null,null,null,null,null,null,null,null,null,null,null,null,48]
[null,null,null,null,null,null,null,null,null,null,null,null,null,null,null,null,null,null,null,null,null,null,null,null,null,null,null,null,null,null,null,null,49]
[null,null,null,null,null,null,null,null,null,null,null,null,null,null,null,null,null,null,null,null,null,null,null,null,null,null,null,null,null,null,null,null,51]
[null,null,null,null,null,null,null,null,null,null,null,null,null,null,null,null,null,null,null,null,null,null,null,null,null,null,null,null,null,null,null,null,55]
[null,null,null,null,null,null,null,null,null,null,null,null,null,null,null,null,null,null,null,null,null,null,null,null,null,null,null,null,null,null,null,null,50]
[null,null,null,null,null,null,null,null,null,null,null,null,null,null,null,null,null,null,null,null,null,null,null,null,null,null,null,null,null,null,null,null,47]
[null,null,null,null,null,null,null,null,null,null,null,null,null,null,null,null,null,null,null,null,null,null,null,null,null,null,null,null,null,null,null,null,56]
[null,null,null,null,null,null,null,null,null,null,null,null,null,null,null,null,null,null,null,null,null,null,null,null,null,null,null,null,null,null,null,null,52]
[null,null,null,null,null,null,null,null,null,null,null,null,null,null,null,null,null,null,null,null,null,null,null,null,null,null,null,null,null,null,null,null,57]
[null,null,null,null,null,null,null,null,null,null,null,null,null,null,null,null,null,null,null,null,null,null,null,null,null,null,null,null,null,null,null,null,65]
[null,null,null,null,null,null,null,null,null,null,null,null,null,null,null,null,null,null,null,null,null,null,null,null,null,null,null,null,null,null,null,null,62]
[null,null,null,null,null,null,null,null,null,null,null,null,null,null,null,null,null,null,null,null,null,null,null,null,null,null,null,null,null,null,null,null,58]
[null,null,null,null,null,null,null,null,null,null,null,null,null,null,null,null,null,null,null,null,null,null,null,null,null,null,null,null,null,null,null,null,53]
[null,null,null,null,null,null,null,null,null,null,null,null,null,null,null,null,null,null,null,null,null,null,null,null,null,null,null,null,null,null,null,null,59]
[null,null,null,null,null,null,null,null,null,null,null,null,null,null,null,null,null,null,null,null,null,null,null,null,null,null,null,null,null,null,null,null,54]
[null,null,null,null,null,null,null,null,null,null,null,null,null,null,null,null,null,null,null,null,null,null,null,null,null,null,null,null,null,null,null,null,60]
[null,null,null,null,null,null,null,null,null,null,null,null,null,null,null,null,null,null,null,null,null,null,null,null,null,null,null,null,null,null,null,null,63]
[null,null,null,null,null,null,null,null,null,null,null,null,null,null,null,null,null,null,null,null,null,null,null,null,null,null,null,null,null,null,null,null,69]
[null,null,null,null,null,null,null,null,null,null,null,null,null,null,null,null,null,null,null,null,null,null,null,null,null,null,null,null,null,null,null,null,66]
[null,null,null,null,null,null,null,null,null,null,null,null,null,null,null,null,null,null,null,null,null,null,null,null,null,null,null,null,null,null,null,null,61]
[null,null,null,null,null,null,null,null,null,null,null,null,null,null,null,null,null,null,null,null,null,null,null,null,null,null,null,null,null,null,null,null,71]
[null,null,null,null,null,null,null,null,null,null,null,null,null,null,null,null,null,null,null,null,null,null,null,null,null,null,null,null,null,null,null,null,64]
[null,null,null,null,null,null,null,null,null,null,null,null,null,null,null,null,null,null,null,null,null,null,null,null,null,null,null,null,null,null,null,null,68]
[null,null,null,null,null,null,null,null,null,null,null,null,null,null,null,null,null,null,null,null,null,null,null,null,null,null,null,null,null,null,null,null,67]
[null,null,null,null,null,null,null,null,null,null,null,null,null,null,null,null,null,null,null,null,null,null,null,null,null,null,null,null,null,null,null,null,72]
[null,null,null,null,null,null,null,null,null,null,null,null,null,null,null,null,null,null,null,null,null,null,null,null,null,null,null,null,null,null,null,null,70]
[null,null,null,null,null,null,null,null,null,null,null,null,null,null,null,null,null,null,null,null,null,null,null,null,null,null,null,null,null,null,null,null,73]
[null,null,null,null,null,null,null,null,null,null,null,null,null,null,null,null,null,null,null,null,null,null,null,null,null,null,null,null,null,null,null,null,74]
[null,null,null,null,null,null,null,null,null,null,null,null,null,null,null,null,null,null,null,null,null,null,null,null,null,null,null,null,null,null,null,null,87]
[null,null,null,null,null,null,null,null,null,null,null,null,null,null,null,null,null,null,null,null,null,null,null,null,null,null,null,null,null,null,null,null,75]
[null,null,null,null,null,null,null,null,null,null,null,null,null,null,null,null,null,null,null,null,null,null,null,null,null,null,null,null,null,null,null,null,77]
[null,null,null,null,null,null,null,null,null,null,null,null,null,null,null,null,null,null,null,null,null,null,null,null,null,null,null,null,null,null,null,null,78]
[null,null,null,null,null,null,null,null,null,null,null,null,null,null,null,null,null,null,null,null,null,null,null,null,null,null,null,null,null,null,null,null,93]
[null,null,null,null,null,null,null,null,null,null,null,null,null,null,null,null,null,null,null,null,null,null,null,null,null,null,null,null,null,null,null,null,80]
[null,null,null,null,null,null,null,null,null,null,null,null,null,null,null,null,null,null,null,null,null,null,null,null,null,null,null,null,null,null,null,null,91]
[null,null,null,null,null,null,null,null,null,null,null,null,null,null,null,null,null,null,null,null,null,null,null,null,null,null,null,null,null,null,null,null,82]
[null,null,null,null,null,null,null,null,null,null,null,null,null,null,null,null,null,null,null,null,null,null,null,null,null,null,null,null,null,null,null,null,83]
[null,null,null,null,null,null,null,null,null,null,null,null,null,null,null,null,null,null,null,null,null,null,null,null,null,null,null,null,null,null,null,null,96]
[null,null,null,null,null,null,null,null,null,null,null,null,null,null,null,null,null,null,null,null,null,null,null,null,null,null,null,null,null,null,null,null,88]
[null,null,null,null,null,null,null,null,null,null,null,null,null,null,null,null,null,null,null,null,null,null,null,null,null,null,null,null,null,null,null,null,84]
[null,null,null,null,null,null,null,null,null,null,null,null,null,null,null,null,null,null,null,null,null,null,null,null,null,null,null,null,null,null,null,null,86]
[null,null,null,null,null,null,null,null,null,null,null,null,null,null,null,null,null,null,null,null,null,null,null,null,null,null,null,null,null,null,null,null,98]
[null,null,null,null,null,null,null,null,null,null,null,null,null,null,null,null,null,null,null,null,null,null,null,null,null,null,null,null,null,null,null,null,76]
[null,null,null,null,null,null,null,null,null,null,null,null,null,null,null,null,null,null,null,null,null,null,null,null,null,null,null,null,null,null,null,null,81]
[null,null,null,null,null,null,null,null,null,null,null,null,null,null,null,null,null,null,null,null,null,null,null,null,null,null,null,null,null,null,null,null,89]
[null,null,null,null,null,null,null,null,null,null,null,null,null,null,null,null,null,null,null,null,null,null,null,null,null,null,null,null,null,null,null,null,92]
[null,null,null,null,null,null,null,null,null,null,null,null,null,null,null,null,null,null,null,null,null,null,null,null,null,null,null,null,null,null,null,null,85]
[null,null,null,null,null,null,null,null,null,null,null,null,null,null,null,null,null,null,null,null,null,null,null,null,null,null,null,null,null,null,null,null,78]
[null,null,null,null,null,null,null,null,null,null,null,null,null,null,null,null,null,null,null,null,null,null,null,null,null,null,null,null,null,null,null,null,90]
[null,null,null,null,null,null,null,null,null,null,null,null,null,null,null,null,null,null,null,null,null,null,null,null,null,null,null,null,null,null,null,null,106]
[null,null,null,null,null,null,null,null,null,null,null,null,null,null,null,null,null,null,null,null,null,null,null,null,null,null,null,null,null,null,null,null,94]
[null,null,null,null,null,null,null,null,null,null,null,null,null,null,null,null,null,null,null,null,null,null,null,null,null,null,null,null,null,null,null,null,94]
[null,null,null,null,null,null,null,null,null,null,null,null,null,null,null,null,null,null,null,null,null,null,null,null,null,null,null,null,null,null,null,null,97]
[null,null,null,null,null,null,null,null,null,null,null,null,null,null,null,null,null,null,null,null,null,null,null,null,null,null,null,null,null,null,null,null,99]
[null,null,null,null,null,null,null,null,null,null,null,null,null,null,null,null,null,null,null,null,null,null,null,null,null,null,null,null,null,null,null,null,100]
[null,null,null,null,null,null,null,null,null,null,null,null,null,null,null,null,null,null,null,null,null,null,null,null,null,null,null,null,null,null,null,null,105]
[null,null,null,null,null,null,null,null,null,null,null,null,null,null,null,null,null,null,null,null,null,null,null,null,null,null,null,null,null,null,null,null,101]
[null,null,null,null,null,null,null,null,null,null,null,null,null,null,null,null,null,null,null,null,null,null,null,null,null,null,null,null,null,null,null,null,102]
[null,null,null,null,null,null,null,null,null,null,null,null,null,null,null,null,null,null,null,null,null,null,null,null,null,null,null,null,null,null,null,null,103]
[null,null,null,null,null,null,null,null,null,null,null,null,null,null,null,null,null,null,null,null,null,null,null,null,null,null,null,null,null,null,null,null,109]
[null,null,null,null,null,null,null,null,null,null,null,null,null,null,null,null,null,null,null,null,null,null,null,null,null,null,null,null,null,null,null,null,108]
[null,null,null,null,null,null,null,null,null,null,null,null,null,null,null,null,null,null,null,null,null,null,null,null,null,null,null,null,null,null,null,null,110]
[null,null,null,null,null,null,null,null,null,null,null,null,null,null,null,null,null,null,null,null,null,null,null,null,null,null,null,null,null,null,null,null,111]
[null,null,null,null,null,null,null,null,null,null,null,null,null,null,null,null,null,null,null,null,null,null,null,null,null,null,null,null,null,null,null,null,112]
[null,null,null,null,null,null,null,null,null,null,null,null,null,null,null,null,null,null,null,null,null,null,null,null,null,null,null,null,null,null,null,null,113]
[null,null,null,null,null,null,null,null,null,null,null,null,null,null,null,null,null,null,null,null,null,null,null,null,null,null,null,null,null,null,null,null,115]
[null,null,null,null,null,null,null,null,null,null,null,null,null,null,null,null,null,null,null,null,null,null,null,null,null,null,null,null,null,null,null,null,117]
[null,null,null,null,null,null,null,null,null,null,null,null,null,null,null,null,null,null,null,null,null,null,null,null,null,null,null,null,null,null,null,null,118]
[null,null,null,null,null,null,null,null,null,null,null,null,null,null,null,null,null,null,null,null,null,null,null,null,null,null,null,null,null,null,null,null,134]
[null,null,null,null,null,null,null,null,null,null,null,null,null,null,null,null,null,null,null,null,null,null,null,null,null,null,null,null,null,null,null,null,119]
[null,null,null,null,null,null,null,null,null,null,null,null,null,null,null,null,null,null,null,null,null,null,null,null,null,null,null,null,null,null,null,null,120]
[null,null,null,null,null,null,null,null,null,null,null,null,null,null,null,null,null,null,null,null,null,null,null,null,null,null,null,null,null,null,null,null,121]
[null,null,null,null,null,null,null,null,null,null,null,null,null,null,null,null,null,null,null,null,null,null,null,null,null,null,null,null,null,null,null,null,122]
[null,null,null,null,null,null,null,null,null,null,null,null,null,null,null,null,null,null,null,null,null,null,null,null,null,null,null,null,null,null,null,null,181]
[null,null,null,null,null,null,null,null,null,null,null,null,null,null,null,null,null,null,null,null,null,null,null,null,null,null,null,null,null,null,null,null,104]
[null,null,null,null,null,null,null,null,null,null,null,null,null,null,null,null,null,null,null,null,null,null,null,null,null,null,null,null,null,null,null,null,124]
[null,null,null,null,null,null,null,null,null,null,null,null,null,null,null,null,null,null,null,null,null,null,null,null,null,null,null,null,null,null,null,null,124]
[null,null,null,null,null,null,null,null,null,null,null,null,null,null,null,null,null,null,null,null,null,null,null,null,null,null,null,null,null,null,null,null,126]
[null,null,null,null,null,null,null,null,null,null,null,null,null,null,null,null,null,null,null,null,null,null,null,null,null,null,null,null,null,null,null,null,127]
[null,null,null,null,null,null,null,null,null,null,null,null,null,null,null,null,null,null,null,null,null,null,null,null,null,null,null,null,null,null,null,null,127]
[null,null,null,null,null,null,null,null,null,null,null,null,null,null,null,null,null,null,null,null,null,null,null,null,null,null,null,null,null,null,null,null,130]
[null,null,null,null,null,null,null,null,null,null,null,null,null,null,null,null,null,null,null,null,null,null,null,null,null,null,null,null,null,null,null,null,131]
[null,null,null,null,null,null,null,null,null,null,null,null,null,null,null,null,null,null,null,null,null,null,null,null,null,null,null,null,null,null,null,null,132]
[null,null,null,null,null,null,null,null,null,null,null,null,null,null,null,null,null,null,null,null,null,null,null,null,null,null,null,null,null,null,null,null,133]
[null,null,null,null,null,null,null,null,null,null,null,null,null,null,null,null,null,null,null,null,null,null,null,null,null,null,null,null,null,null,null,null,107]
[null,null,null,null,null,null,null,null,null,null,null,null,null,null,null,null,null,null,null,null,null,null,null,null,null,null,null,null,null,null,null,null,135]
[null,null,null,null,null,null,null,null,null,null,null,null,null,null,null,null,null,null,null,null,null,null,null,null,null,null,null,null,null,null,null,null,136]
[null,null,null,null,null,null,null,null,null,null,null,null,null,null,null,null,null,null,null,null,null,null,null,null,null,null,null,null,null,null,null,null,137]
[null,null,null,null,null,null,null,null,null,null,null,null,null,null,null,null,null,null,null,null,null,null,null,null,null,null,null,null,null,null,null,null,137]
[null,null,null,null,null,null,null,null,null,null,null,null,null,null,null,null,null,null,null,null,null,null,null,null,null,null,null,null,null,null,null,null,123]
[null,null,null,null,null,null,null,null,null,null,null,null,null,null,null,null,null,null,null,null,null,null,null,null,null,null,null,null,null,null,null,null,139]
[null,null,null,null,null,null,null,null,null,null,null,null,null,null,null,null,null,null,null,null,null,null,null,null,null,null,null,null,null,null,null,null,139]
[null,null,null,null,null,null,null,null,null,null,null,null,null,null,null,null,null,null,null,null,null,null,null,null,null,null,null,null,null,null,null,null,116]
[null,null,null,null,null,null,null,null,null,null,null,null,null,null,null,null,null,null,null,null,null,null,null,null,null,null,null,null,null,null,null,null,141]
[null,null,null,null,null,null,null,null,null,null,null,null,null,null,null,null,null,null,null,null,null,null,null,null,null,null,null,null,null,null,null,null,129]
[null,null,null,null,null,null,null,null,null,null,null,null,null,null,null,null,null,null,null,null,null,null,null,null,null,null,null,null,null,null,null,null,142]
[null,null,null,null,null,null,null,null,null,null,null,null,null,null,null,null,null,null,null,null,null,null,null,null,null,null,null,null,null,null,null,null,143]
[null,null,null,null,null,null,null,null,null,null,null,null,null,null,null,null,null,null,null,null,null,null,null,null,null,null,null,null,null,null,null,null,181]
[null,null,null,null,null,null,null,null,null,null,null,null,null,null,null,null,null,null,null,null,null,null,null,null,null,null,null,null,null,null,null,null,144]
[null,null,null,null,null,null,null,null,null,null,null,null,null,null,null,null,null,null,null,null,null,null,null,null,null,null,null,null,null,null,null,null,145]
[null,null,null,null,null,null,null,null,null,null,null,null,null,null,null,null,null,null,null,null,null,null,null,null,null,null,null,null,null,null,null,null,114]
[null,null,null,null,null,null,null,null,null,null,null,null,null,null,null,null,null,null,null,null,null,null,null,null,null,null,null,null,null,null,null,null,146]
[null,null,null,null,null,null,null,null,null,null,null,null,null,null,null,null,null,null,null,null,null,null,null,null,null,null,null,null,null,null,null,null,147]
[null,null,null,null,null,null,null,null,null,null,null,null,null,null,null,null,null,null,null,null,null,null,null,null,null,null,null,null,null,null,null,null,148]
[null,null,null,null,null,null,null,null,null,null,null,null,null,null,null,null,null,null,null,null,null,null,null,null,null,null,null,null,null,null,null,null,181]
[null,null,null,null,null,null,null,null,null,null,null,null,null,null,null,null,null,null,null,null,null,null,null,null,null,null,null,null,null,null,null,null,149]
[null,null,null,null,null,null,null,null,null,null,null,null,null,null,null,null,null,null,null,null,null,null,null,null,null,null,null,null,null,null,null,null,149]
[null,null,null,null,null,null,null,null,null,null,null,null,null,null,null,null,null,null,null,null,null,null,null,null,null,null,null,null,null,null,null,null,149]
[null,null,null,null,null,null,null,null,null,null,null,null,null,null,null,null,null,null,null,null,null,null,null,null,null,null,null,null,null,null,null,null,152]
[null,null,null,null,null,null,null,null,null,null,null,null,null,null,null,null,null,null,null,null,null,null,null,null,null,null,null,null,null,null,null,null,153]
[null,null,null,null,null,null,null,null,null,null,null,null,null,null,null,null,null,null,null,null,null,null,null,null,null,null,null,null,null,null,null,null,154]
[null,null,null,null,null,null,null,null,null,null,null,null,null,null,null,null,null,null,null,null,null,null,null,null,null,null,null,null,null,null,null,null,155]
[null,null,null,null,null,null,null,null,null,null,null,null,null,null,null,null,null,null,null,null,null,null,null,null,null,null,null,null,null,null,null,null,155]
[null,null,null,null,null,null,null,null,null,null,null,null,null,null,null,null,null,null,null,null,null,null,null,null,null,null,null,null,null,null,null,null,157]
[null,null,null,null,null,null,null,null,null,null,null,null,null,null,null,null,null,null,null,null,null,null,null,null,null,null,null,null,null,null,null,null,158]
[null,null,null,null,null,null,null,null,null,null,null,null,null,null,null,null,null,null,null,null,null,null,null,null,null,null,null,null,null,null,null,null,159]
[null,null,null,null,null,null,null,null,null,null,null,null,null,null,null,null,null,null,null,null,null,null,null,null,null,null,null,null,null,null,null,null,160]
[null,null,null,null,null,null,null,null,null,null,null,null,null,null,null,null,null,null,null,null,null,null,null,null,null,null,null,null,null,null,null,null,160]
[null,null,null,null,null,null,null,null,null,null,null,null,null,null,null,null,null,null,null,null,null,null,null,null,null,null,null,null,null,null,null,null,181]
[null,null,null,null,null,null,null,null,null,null,null,null,null,null,null,null,null,null,null,null,null,null,null,null,null,null,null,null,null,null,null,null,162]
[null,null,null,null,null,null,null,null,null,null,null,null,null,null,null,null,null,null,null,null,null,null,null,null,null,null,null,null,null,null,null,null,181]
[null,null,null,null,null,null,null,null,null,null,null,null,null,null,null,null,null,null,null,null,null,null,null,null,null,null,null,null,null,null,null,null,163]
[null,null,null,null,null,null,null,null,null,null,null,null,null,null,null,null,null,null,null,null,null,null,null,null,null,null,null,null,null,null,null,null,164]
[null,null,null,null,null,null,null,null,null,null,null,null,null,null,null,null,null,null,null,null,null,null,null,null,null,null,null,null,null,null,null,null,165]
[null,null,null,null,null,null,null,null,null,null,null,null,null,null,null,null,null,null,null,null,null,null,null,null,null,null,null,null,null,null,null,null,166]
[null,null,null,null,null,null,null,null,null,null,null,null,null,null,null,null,null,null,null,null,null,null,null,null,null,null,null,null,null,null,null,null,167]
[null,null,null,null,null,null,null,null,null,null,null,null,null,null,null,null,null,null,null,null,null,null,null,null,null,null,null,null,null,null,null,null,181]
[null,null,null,null,null,null,null,null,null,null,null,null,null,null,null,null,null,null,null,null,null,null,null,null,null,null,null,null,null,null,null,null,168]
[null,null,null,null,null,null,null,null,null,null,null,null,null,null,null,null,null,null,null,null,null,null,null,null,null,null,null,null,null,null,null,null,169]
[null,null,null,null,null,null,null,null,null,null,null,null,null,null,null,null,null,null,null,null,null,null,null,null,null,null,null,null,null,null,null,null,170]
[null,null,null,null,null,null,null,null,null,null,null,null,null,null,null,null,null,null,null,null,null,null,null,null,null,null,null,null,null,null,null,null,170]
[null,null,null,null,null,null,null,null,null,null,null,null,null,null,null,null,null,null,null,null,null,null,null,null,null,null,null,null,null,null,null,null,181]
[null,null,null,null,null,null,null,null,null,null,null,null,null,null,null,null,null,null,null,null,null,null,null,null,null,null,null,null,null,null,null,null,172]
[null,null,null,null,null,null,null,null,null,null,null,null,null,null,null,null,null,null,null,null,null,null,null,null,null,null,null,null,null,null,null,null,173]
[null,null,null,null,null,null,null,null,null,null,null,null,null,null,null,null,null,null,null,null,null,null,null,null,null,null,null,null,null,null,null,null,174]
[null,null,null,null,null,null,null,null,null,null,null,null,null,null,null,null,null,null,null,null,null,null,null,null,null,null,null,null,null,null,null,null,181]
[null,null,null,null,null,null,null,null,null,null,null,null,null,null,null,null,null,null,null,null,null,null,null,null,null,null,null,null,null,null,null,null,175]
[null,null,null,null,null,null,null,null,null,null,null,null,null,null,null,null,null,null,null,null,null,null,null,null,null,null,null,null,null,null,null,null,176]
[null,null,null,null,null,null,null,null,null,null,null,null,null,null,null,null,null,null,null,null,null,null,null,null,null,null,null,null,null,null,null,null,181]
[null,null,null,null,null,null,null,null,null,null,null,null,null,null,null,null,null,null,null,null,null,null,null,null,null,null,null,null,null,null,null,null,177]
[null,null,null,null,null,null,null,null,null,null,null,null,null,null,null,null,null,null,null,null,null,null,null,null,null,null,null,null,null,null,null,null,178]
[null,null,null,null,null,null,null,null,null,null,null,null,null,null,null,null,null,null,null,null,null,null,null,null,null,null,null,null,null,null,null,null,178]
[null,null,null,null,null,null,null,null,null,null,null,null,null,null,null,null,null,null,null,null,null,null,null,null,null,null,null,null,null,null,null,null,180]
[null,null,null,null,null,null,null,null,null,null,null,null,null,null,null,null,null,null,null,null,null,null,null,null,null,null,null,null,null,null,null,null,181]
[null,null,null,null,null,null,null,null,null,null,null,null,null,null,null,null,null,null,null,null,null,null,null,null,null,null,null,null,null,null,null,null,181]
[null,null,null,null,null,null,null,null,null,null,null,null,null,null,null,null,null,null,null,null,null,null,null,null,null,null,null,null,null,null,null,null,181]
[null,null,null,null,null,null,null,null,null,null,null,null,null,null,null,null,null,null,null,null,null,null,null,null,null,null,null,null,null,null,null,null,181]
[null,null,null,null,null,null,null,null,null,null,null,null,null,null,null,null,null,null,null,null,null,null,null,null,null,null,null,null,null,null,null,null,181]
[null,null,null,null,null,null,null,null,null,null,null,null,null,null,null,null,null,null,null,null,null,null,null,null,null,null,null,null,null,null,null,null,181]
[null,null,null,null,null,null,null,null,null,null,null,null,null,null,null,null,null,null,null,null,null,null,null,null,null,null,null,null,null,null,null,null,181]
[null,null,null,null,null,null,null,null,null,null,null,null,null,null,null,null,null,null,null,null,null,null,null,null,null,null,null,null,null,null,null,null,181]
[null,null,null,null,null,null,null,null,null,null,null,null,null,null,null,null,null,null,null,null,null,null,null,null,null,null,null,null,null,null,null,null,181]
[null,null,null,null,null,null,null,null,null,null,null,null,null,null,null,null,null,null,null,null,null,null,null,null,null,null,null,null,null,null,null,null,181]
[null,null,null,null,null,null,null,null,null,null,null,null,null,null,null,null,null,null,null,null,null,null,null,null,null,null,null,null,null,null,null,null,181]
[null,null,null,null,null,null,null,null,null,null,null,null,null,null,null,null,null,null,null,null,null,null,null,null,null,null,null,null,null,null,null,null,181]
[null,null,null,null,null,null,null,null,null,null,null,null,null,null,null,null,null,null,null,null,null,null,null,null,null,null,null,null,null,null,null,null,181]
[null,null,null,null,null,null,null,null,null,null,null,null,null,null,null,null,null,null,null,null,null,null,null,null,null,null,null,null,null,null,null,null,181]
[null,null,null,null,null,null,null,null,null,null,null,null,null,null,null,null,null,null,null,null,null,null,null,null,null,null,null,null,null,null,null,null,181]
[null,null,null,null,null,null,null,null,null,null,null,null,null,null,null,null,null,null,null,null,null,null,null,null,null,null,null,null,null,null,null,null,181]
[null,null,null,null,null,null,null,null,null,null,null,null,null,null,null,null,null,null,null,null,null,null,null,null,null,null,null,null,null,null,null,null,181]
[null,null,null,null,null,null,null,null,null,null,null,null,null,null,null,null,null,null,null,null,null,null,null,null,null,null,null,null,null,null,null,null,181]
[null,null,null,null,null,null,null,null,null,null,null,null,null,null,null,null,null,null,null,null,null,null,null,null,null,null,null,null,null,null,null,null,181]
[null,null,null,null,null,null,null,null,null,null,null,null,null,null,null,null,null,null,null,null,null,null,null,null,null,null,null,null,null,null,null,null,181]
[null,null,null,null,null,null,null,null,null,null,null,null,null,null,null,null,null,null,null,null,null,null,null,null,null,null,null,null,null,null,null,null,181]
[null,null,null,null,null,null,null,null,null,null,null,null,null,null,null,null,null,null,null,null,null,null,null,null,null,null,null,null,null,null,null,null,181]
[null,null,null,null,null,null,null,null,null,null,null,null,null,null,null,null,null,null,null,null,null,null,null,null,null,null,null,null,null,null,null,null,181]
[null,null,null,null,null,null,null,null,null,null,null,null,null,null,null,null,null,null,null,null,null,null,null,null,null,null,null,null,null,null,null,null,181]
[null,null,null,null,null,null,null,null,null,null,null,null,null,null,null,null,null,null,null,null,null,null,null,null,null,null,null,null,null,null,null,null,181]
[null,null,null,null,null,null,null,null,null,null,null,null,null,null,null,null,null,null,null,null,null,null,null,null,null,null,null,null,null,null,null,null,181]
[null,null,null,null,null,null,null,null,null,null,null,null,null,null,null,null,null,null,null,null,null,null,null,null,null,null,null,null,null,null,null,null,181]

{"sheet":"Regler","index":1,"n_rows":29,"n_cols":1,"rows_kept":29,"cut":false,"hidden":false,"merged":[]}
["Regler för Sverige-,Junior- o Miniorranking"]
[]
["Rankingpoäng utgör den totala poängen från rankingtävlingar under säsongen "]
["som varje enskild kastare har fått ihop."]
["Max från 13 tävlingar kan medräknas, och då räknas de 13 med högst resultat."]
[]
["Den som har högst poäng när säsongen är över vinner."]
[]
["Skulle det vara kastare som hamnar på samma poäng när säsongen är över, och är bland de"]
["tre bästa så gäller detta för att skilja dem åt."]
[]
["1. Högst snitt per serie"]
["2. Högst poäng på en tävling, sedan näst högst osv."]
["3. Högsta poängen på senaste tävlingen, sedan den dessför innan osv.(DM-tävlingar ej inräknade) "]
["4. Skulle det fortfarande inte gå att skilja dem åt, så blir de på samma plats."]
[]
[]
["Seriespelsranking"]
[]
["Alla individuella seriespelsresultaten under säsongen räknas in."]
["Den som har högst snitt när säsongen är över vinner. "]
[]
["För att kunna vara bland de tre pristagarna, måste man spelat minst 7 serier."]
[]
["Skulle det vara kastare som hamnar på samma snitt när säsongen är över, och är bland de"]
["tre bästa så gäller detta för att skilja dem åt."]
[]
["1. Det högsta serieresultatet, sedan näst högsta osv."]
["2. Skulle det fortfarande inte gå att skilja dem åt, så blir de på samma plats."]

{"sheet":"Miniorranking","index":2,"n_rows":47,"n_cols":143,"rows_kept":47,"cut":false,"hidden":false,"merged":[]}
[null,"Svenska Hästskokastarförbundets Sverigeranking",null,null,null,null,null,null,null,null,null,null,null,null,null,null,null,null,null,null,null,null,null,null,null,null,null,null,null,null,{"$f":"COUNT(I5:AC25)-(O2+P2+W2+X2)","v":7}]
[null,null,"MINIOR",null,null,null,null,null,{"$f":"COUNT(I5:I25)","v":0},{"$f":"COUNT(J5:J25)","v":0},0,0,3,1,0,3,0,0,0,0,3,0,0,0,{"$f":"COUNT(Y5:Y25)","v":0},0,0]
[null,"SLUTSTÄLLNING","Säsong 2020 / 2021",null,null,null,null,null,{"$f":"IF(SUM(I5:I407)>70,1,\"\")","v":""},{"$f":"IF(SUM(J5:J407)>7,1,\"\")","v":""},{"$f":"IF(SUM(K5:K407)>7,1,\"\")","v":""},"",1,1,"",1,"","","","",1,"","","",{"$f":"IF(SUM(Y5:Y407)>7,1,\"\")","v":""},"","",{"$f":"IF(SUM(AB5:AB407)>100,1,\"\")","v":""},""]
["Plac.","Kastare ","Klubb","Ranking-poäng",null,"Antal täv-lingar","Snitt per serie",null,"Jämjö Open","Björkenäs Open","Utomhus-SM Dag 1","Utomhus-SM Dag 2","Vaxholm Open","Blekinge-DM Ute","Utomhus Smålandsmästaren","Dynapac Open","Stockholms-DM ute","Åseda Open","Färsna Cup","Höstskon Nybro","Carlskrona Cup","Sibbamåla Open","Blekinge DM Inne","Inomhus-SM","Värendspokalen","Tingsryds Open"]
[{"$f":"EL5&EM5","v":"1(1)"},"Albin Rydell","Värends Hsk",{"$f":"SUM(I5:AC5)","v":185},null,{"$f":"COUNT(I5:AC5)","v":1},{"$f":"SUM((D5)/(F5*2))","v":92.5},null,null,null,null,null,null,null,null,null,null,null,null,null,185,null,null,null,null,null,null,null,null,null,null,1,{"$f":"IF(D5>1,ROW(1:1),\"-\")","v":1},{"$f":"IF(F5>1,ROW(1:1),\"-\")","v":"-"},null,null,null,{"$f":"COUNT($I$3,I5,H5)","v":0},{"$f":"COUNT($J$3,J5,I5)","v":0},{"$f":"COUNT($K$3,K5,J5)","v":0},{"$f":"COUNT($L$3,L5,K5)","v":0},{"$f":"COUNT($M$3,M5,L5)","v":1},{"$f":"COUNT($N$3,N5,M5)","v":1},{"$f":"COUNT($O$3,O5,N5)","v":0},{"$f":"COUNT($P$3,P5,O5)","v":1},{"$f":"COUNT($R$3,R5,P5)","v":0},{"$f":"COUNT($S$3,S5,R5)","v":0},{"$f":"COUNT($T$3,T5,S5)","v":0},{"$f":"COUNT($U$3,U5,T5)","v":2},{"$f":"COUNT($V$3,V5,U5)","v":1},{"$f":"COUNT($W$3,W5,V5)","v":0},{"$f":"COUNT($X$3,X5,W5)","v":0},{"$f":"COUNT($Z$3,Z5,X5)","v":0},{"$f":"COUNT($AA$3,AA5,Z5)","v":0},{"$f":"COUNT($AB$3,AB5,AA5)","v":0},{"$f":"COUNT($AC$3,AC5,AB5)","v":0},null,{"$f":"COUNTIF(AK5:BE5,\">1\")","v":1},{"$f":"IF(H5=\"x\",1,2)","v":2},null,null,null,null,null,null,null,null,null,null,null,null,null,null,null,null,null,null,null,null,null,null,null,null,null,null,null,null,null,null,null,null,null,null,null,null,null,null,null,null,null,null,null,null,null,null,null,null,null,null,null,null,null,null,null,null,null,null,null,null,null,null,null,null,null,null,null,null,null,null,null,null,null,null,null,null,null,null,null,null,1,null,{"$f":"IF(BF5>=1,AG5,\"\")","v":1},{"$f":"IF(BG5>1,\"(\"&AF5&\")\",\"(\"&AH5&\")\")","v":"(1)"}]
["2(2)","Saga Karlberg","Jämjö Hsk",183,null,2,45.75,null,null,null,null,null,null,94,null,89,null,null,null,null,null,null,null,null,null,null,null,null,null,null,null,2,{"$f":"IF(AND(D6=D5,D6=D4),ROW(#REF!),IF(D6=D5,ROW(1:1),IF(D6>1,ROW(2:2),\"-\")))","v":2},2,null,null,null,0,0,0,0,1,2,1,2,1,0,0,1,0,0,0,0,0,0,0,null,2,2,null,null,null,null,null,null,null,null,null,null,null,null,null,null,null,null,null,null,null,null,null,null,null,null,null,null,null,null,null,null,null,null,null,null,null,null,null,null,null,null,null,null,null,null,null,null,null,null,null,null,null,null,null,null,null,null,null,null,null,null,null,null,null,null,null,null,null,null,null,null,null,null,null,null,null,null,null,null,null,null,3,null,2,"(2)"]
["3(3)","William Fernandez","Vaxholm",116,null,1,58,null,null,null,null,null,116,null,null,null,null,null,null,null,null,null,null,null,null,null,null,null,null,null,null,3,{"$f":"IF(AND(D7=D6,D7=D5,D7=D4),ROW(#REF!),IF(AND(D7=D6,D7=D5),ROW(1:1),IF(D7=D6,ROW(2:2),IF(D7>1,ROW(3:3),\"-\"))))","v":3},"-",null,null,null,0,0,0,0,2,2,0,1,0,0,0,1,0,0,0,0,0,0,0,null,2,2,null,null,null,null,null,null,null,null,null,null,null,null,null,null,null,null,null,null,null,null,null,null,null,null,null,null,null,null,null,null,null,null,null,null,null,null,null,null,null,null,null,null,null,null,null,null,null,null,null,null,null,null,null,null,null,null,null,null,null,null,null,null,null,null,null,null,null,null,null,null,null,null,null,null,null,null,null,null,null,null,4,null,3,"(3)"]
["4(4)","Elvin Rydell","Värends Hsk",95,null,1,47.5,null,null,null,null,null,null,null,null,null,null,null,null,null,95,null,null,null,null,null,null,null,null,null,null,4,{"$f":"IF(AND(D8=D7,D8=D6,D8=D5,D8=D4),ROW(#REF!),IF(AND(D8=D7,D8=D6,D8=D5),ROW(1:1),IF(AND(D8=D7,D8=D6),ROW(2:2),IF(D8=D7,ROW(3:3),IF(D8>1,ROW(4:4),\"-\")))))","v":4},"-",null,null,null,0,0,0,0,1,1,0,1,0,0,0,2,1,0,0,0,0,0,0,null,1,2,null,null,null,null,null,null,null,null,null,null,null,null,null,null,null,null,null,null,null,null,null,null,null,null,null,null,null,null,null,null,null,null,null,null,null,null,null,null,null,null,null,null,null,null,null,null,null,null,null,null,null,null,null,null,null,null,null,null,null,null,null,null,null,null,null,null,null,null,null,null,null,null,null,null,null,null,null,null,null,null,5,null,4,"(4)"]
["5(5)","Alex Rydell","Värends Hsk",84,null,1,42,null,null,null,null,null,null,null,null,null,null,null,null,null,84,null,null,null,null,null,null,null,null,null,null,5,{"$f":"IF(AND(D9=D8,D9=D7,D9=D6,D9=D5),ROW(1:1),IF(AND(D9=D8,D9=D7,D9=D6),ROW(2:2),IF(AND(D9=D8,D9=D7),ROW(3:3),IF(D9=D8,ROW(4:4),IF(D9>1,ROW(5:5),\"-\")))))","v":5},"-",null,null,null,0,0,0,0,1,1,0,1,0,0,0,2,1,0,0,0,0,0,0,null,1,2,null,null,null,null,null,null,null,null,null,null,null,null,null,null,null,null,null,null,null,null,null,null,null,null,null,null,null,null,null,null,null,null,null,null,null,null,null,null,null,null,null,null,null,null,null,null,null,null,null,null,null,null,null,null,null,null,null,null,null,null,null,null,null,null,null,null,null,null,null,null,null,null,null,null,null,null,null,null,null,null,6,null,5,"(5)"]
["6(6)","Gustav Svensson","Carlskrona Hsc",68,null,1,34,null,null,null,null,null,null,null,null,68,null,null,null,null,null,null,null,null,null,null,null,null,null,null,null,6,{"$f":"IF(AND(D10=D9,D10=D8,D10=D7,D10=D6),ROW(2:2),IF(AND(D10=D9,D10=D8,D10=D7),ROW(3:3),IF(AND(D10=D9,D10=D8),ROW(4:4),IF(D10=D9,ROW(5:5),IF(D10>1,ROW(6:6),\"-\")))))","v":6},"-",null,null,null,0,0,0,0,1,1,0,2,1,0,0,1,0,0,0,0,0,0,0,null,1,2,null,null,null,null,null,null,null,null,null,null,null,null,null,null,null,null,null,null,null,null,null,null,null,null,null,null,null,null,null,null,null,null,null,null,null,null,null,null,null,null,null,null,null,null,null,null,null,null,null,null,null,null,null,null,null,null,null,null,null,null,null,null,null,null,null,null,null,null,null,null,null,null,null,null,null,null,null,null,null,null,7,null,6,"(6)"]
["7(-)","Ludvig Holmgren","Carlskrona Hsc",60,null,1,30,null,null,null,null,null,null,null,null,60,null,null,null,null,null,null,null,null,null,null,null,null,null,null,null,"-",{"$f":"IF(AND(D11=D10,D11=D9,D11=D8,D11=D7),ROW(3:3),IF(AND(D11=D10,D11=D9,D11=D8),ROW(4:4),IF(AND(D11=D10,D11=D9),ROW(5:5),IF(D11=D10,ROW(6:6),IF(D11>1,ROW(7:7),\"-\")))))","v":7},"-",null,null,null,0,0,0,0,1,1,0,2,1,0,0,1,0,0,0,0,0,0,0,null,1,2,null,null,null,null,null,null,null,null,null,null,null,null,null,null,null,null,null,null,null,null,null,null,null,null,null,null,null,null,null,null,null,null,null,null,null,null,null,null,null,null,null,null,null,null,null,null,null,null,null,null,null,null,null,null,null,null,null,null,null,null,null,null,null,null,null,null,null,null,null,null,null,null,null,null,null,null,null,null,null,null,8,null,7,"(-)"]
["8(7)","Victor Fernandez","Vaxholm",50,null,1,25,null,null,null,null,null,50,null,null,null,null,null,null,null,null,null,null,null,null,null,null,null,null,null,null,7,{"$f":"IF(AND(D12=D11,D12=D10,D12=D9,D12=D8),ROW(4:4),IF(AND(D12=D11,D12=D10,D12=D9),ROW(5:5),IF(AND(D12=D11,D12=D10),ROW(6:6),IF(D12=D11,ROW(7:7),IF(D12>1,ROW(8:8),\"-\")))))","v":8},"-",null,null,null,0,0,0,0,2,2,0,1,0,0,0,1,0,0,0,0,0,0,0,null,2,2,null,null,null,null,null,null,null,null,null,null,null,null,null,null,null,null,null,null,null,null,null,null,null,null,null,null,null,null,null,null,null,null,null,null,null,null,null,null,null,null,null,null,null,null,null,null,null,null,null,null,null,null,null,null,null,null,null,null,null,null,null,null,null,null,null,null,null,null,null,null,null,null,null,null,null,null,null,null,null,null,9,null,8,"(7)"]
["9(8)","Melker Gundersen","Vaxholm",41,null,1,20.5,null,null,null,null,null,41,null,null,null,null,null,null,null,null,null,null,null,null,null,null,null,null,null,null,8,{"$f":"IF(D13=D12,ROW(8:8),IF(D13>1,ROW(9:9),\"-\"))","v":9},"-",null,null,null,0,0,0,0,2,2,0,1,0,0,0,1,0,0,0,0,0,0,0,null,2,2,null,null,null,null,null,null,null,null,null,null,null,null,null,null,null,null,null,null,null,null,null,null,null,null,null,null,null,null,null,null,null,null,null,null,null,null,null,null,null,null,null,null,null,null,null,null,null,null,null,null,null,null,null,null,null,null,null,null,null,null,null,null,null,null,null,null,null,null,null,null,null,null,null,null,null,null,null,null,null,null,2,null,9,"(8)"]
["(7)",null,null,0,null,0,{"$error":"#DIV/0!"},null,null,null,null,null,null,null,null,null,null,null,null,null,null,null,null,null,null,null,null,null,null,null,null,7,{"$f":"IF(AND(D14=D13,D14=D12,D14=D11,D14=D10),ROW(6:6),IF(AND(D14=D13,D14=D12,D14=D11),ROW(7:7),IF(AND(D14=D13,D14=D12),ROW(8:8),IF(D14=D13,ROW(9:9),IF(D14>1,ROW(10:10),\"-\")))))","v":"-"},"-",null,null,null,0,0,0,0,1,1,0,1,0,0,0,1,0,0,0,0,0,0,0,null,{"$f":"COUNTIF(AK14:BE14,\">1\")","v":0},2,null,null,null,null,null,null,null,null,null,null,null,null,null,null,null,null,null,null,null,null,null,null,null,null,null,null,null,null,null,null,null,null,null,null,null,null,null,null,null,null,null,null,null,null,null,null,null,null,null,null,null,null,null,null,null,null,null,null,null,null,null,null,null,null,null,null,null,null,null,null,null,null,null,null,null,null,null,null,null,null,10,null,{"$f":"IF(BF14>=1,AG14,\"\")","v":""},{"$f":"IF(BG14>1,\"(\"&AF14&\")\",\"(\"&AH14&\")\")","v":"(7)"}]
["(7)",null,null,0,null,0,{"$error":"#DIV/0!"},null,null,null,null,null,null,null,null,null,null,null,null,null,null,null,null,null,null,null,null,null,null,null,null,7,10,"-",null,null,null,0,0,0,0,1,1,0,1,0,0,0,1,0,0,0,0,0,0,0,null,0,2,null,null,null,null,null,null,null,null,null,null,null,null,null,null,null,null,null,null,null,null,null,null,null,null,null,null,null,null,null,null,null,null,null,null,null,null,null,null,null,null,null,null,null,null,null,null,null,null,null,null,null,null,null,null,null,null,null,null,null,null,null,null,null,null,null,null,null,null,null,null,null,null,null,null,null,null,null,null,null,null,11,null,"","(7)"]
["(8)",null,null,0,null,0,{"$error":"#DIV/0!"},null,null,null,null,null,null,null,null,null,null,null,null,null,null,null,null,null,null,null,null,null,null,null,null,8,10,"-",null,null,null,0,0,0,0,1,1,0,1,0,0,0,1,0,0,0,0,0,0,0,null,0,2,null,null,null,null,null,null,null,null,null,null,null,null,null,null,null,null,null,null,null,null,null,null,null,null,null,null,null,null,null,null,null,null,null,null,null,null,null,null,null,null,null,null,null,null,null,null,null,null,null,null,null,null,null,null,null,null,null,null,null,null,null,null,null,null,null,null,null,null,null,null,null,null,null,null,null,null,null,null,null,null,12,null,"","(8)"]
["(9)",null,null,0,null,0,{"$error":"#DIV/0!"},null,null,null,null,null,null,null,null,null,null,null,null,null,null,null,null,null,null,null,null,null,null,null,null,9,10,"-",null,null,null,0,0,0,0,1,1,0,1,0,0,0,1,0,0,0,0,0,0,0,null,0,2,null,null,null,null,null,null,null,null,null,null,null,null,null,null,null,null,null,null,null,null,null,null,null,null,null,null,null,null,null,null,null,null,null,null,null,null,null,null,null,null,null,null,null,null,null,null,null,null,null,null,null,null,null,null,null,null,null,null,null,null,null,null,null,null,null,null,null,null,null,null,null,null,null,null,null,null,null,null,null,null,13,null,"","(9)"]
["(10)",null,null,0,null,0,{"$error":"#DIV/0!"},null,null,null,null,null,null,null,null,null,null,null,null,null,null,null,null,null,null,null,null,null,null,null,null,10,10,"-",null,null,null,0,0,0,0,1,1,0,1,0,0,0,1,0,0,0,0,0,0,0,null,0,2,null,null,null,null,null,null,null,null,null,null,null,null,null,null,null,null,null,null,null,null,null,null,null,null,null,null,null,null,null,null,null,null,null,null,null,null,null,null,null,null,null,null,null,null,null,null,null,null,null,null,null,null,null,null,null,null,null,null,null,null,null,null,null,null,null,null,null,null,null,null,null,null,null,null,null,null,null,null,null,null,14,null,{"$f":"IF(BF18>=1,AG18,\"\")","v":""},"(10)"]
["(11)",null,null,0,null,0,{"$error":"#DIV/0!"},null,null,null,null,null,null,null,null,null,null,null,null,null,null,null,null,null,null,null,null,null,null,null,null,11,11,"-",null,null,null,0,0,0,0,1,1,0,1,0,0,0,1,0,0,0,0,0,0,0,null,0,2,null,null,null,null,null,null,null,null,null,null,null,null,null,null,null,null,null,null,null,null,null,null,null,null,null,null,null,null,null,null,null,null,null,null,null,null,null,null,null,null,null,null,null,null,null,null,null,null,null,null,null,null,null,null,null,null,null,null,null,null,null,null,null,null,null,null,null,null,null,null,null,null,null,null,null,null,null,null,null,null,15,null,"","(11)"]
["(12)",null,null,0,null,0,{"$error":"#DIV/0!"},null,null,null,null,null,null,null,null,null,null,null,null,null,null,null,null,null,null,null,null,null,null,null,null,12,12,"-",null,null,null,0,0,0,0,1,1,0,1,0,0,0,1,0,0,0,0,0,0,0,null,0,2,null,null,null,null,null,null,null,null,null,null,null,null,null,null,null,null,null,null,null,null,null,null,null,null,null,null,null,null,null,null,null,null,null,null,null,null,null,null,null,null,null,null,null,null,null,null,null,null,null,null,null,null,null,null,null,null,null,null,null,null,null,null,null,null,null,null,null,null,null,null,null,null,null,null,null,null,null,null,null,null,16,null,{"$f":"IF(BF20>=1,AG20,\"\")","v":""},"(12)"]
["(13)",null,null,0,null,0,{"$error":"#DIV/0!"},null,null,null,null,null,null,null,null,null,null,null,null,null,null,null,null,null,null,null,null,null,null,null,null,13,13,"-",null,null,null,0,0,0,0,1,1,0,1,0,0,0,1,0,0,0,0,0,0,0,null,0,2,null,null,null,null,null,null,null,null,null,null,null,null,null,null,null,null,null,null,null,null,null,null,null,null,null,null,null,null,null,null,null,null,null,null,null,null,null,null,null,null,null,null,null,null,null,null,null,null,null,null,null,null,null,null,null,null,null,null,null,null,null,null,null,null,null,null,null,null,null,null,null,null,null,null,null,null,null,null,null,null,17,null,"","(13)"]
["(14)",null,null,0,null,0,{"$error":"#DIV/0!"},null,null,null,null,null,null,null,null,null,null,null,null,null,null,null,null,null,null,null,null,null,null,null,null,14,14,"-",null,null,null,0,0,0,0,1,1,0,1,0,0,0,1,0,0,0,0,0,0,0,null,0,2,null,null,null,null,null,null,null,null,null,null,null,null,null,null,null,null,null,null,null,null,null,null,null,null,null,null,null,null,null,null,null,null,null,null,null,null,null,null,null,null,null,null,null,null,null,null,null,null,null,null,null,null,null,null,null,null,null,null,null,null,null,null,null,null,null,null,null,null,null,null,null,null,null,null,null,null,null,null,null,null,18,null,"","(14)"]
["(15)",null,null,0,null,0,{"$error":"#DIV/0!"},null,null,null,null,null,null,null,null,null,null,null,null,null,null,null,null,null,null,null,null,null,null,null,null,15,15,"-",null,null,null,0,0,0,0,1,1,0,1,0,0,0,1,0,0,0,0,0,0,0,null,{"$f":"COUNTIF(AK23:BE23,\">1\")","v":0},2,null,null,null,null,null,null,null,null,null,null,null,null,null,null,null,null,null,null,null,null,null,null,null,null,null,null,null,null,null,null,null,null,null,null,null,null,null,null,null,null,null,null,null,null,null,null,null,null,null,null,null,null,null,null,null,null,null,null,null,null,null,null,null,null,null,null,null,null,null,null,null,null,null,null,null,null,null,null,null,null,19,null,"",{"$f":"IF(BG23>1,\"(\"&AF23&\")\",\"(\"&AH23&\")\")","v":"(15)"}]
["(16)",null,null,0,null,0,{"$error":"#DIV/0!"},null,null,null,null,null,null,null,null,null,null,null,null,null,null,null,null,null,null,null,null,null,null,null,null,16,16,"-",null,null,null,0,0,0,0,1,1,0,1,0,0,0,1,0,0,0,0,0,0,0,null,0,2,null,null,null,null,null,null,null,null,null,null,null,null,null,null,null,null,null,null,null,null,null,null,null,null,null,null,null,null,null,null,null,null,null,null,null,null,null,null,null,null,null,null,null,null,null,null,null,null,null,null,null,null,null,null,null,null,null,null,null,null,null,null,null,null,null,null,null,null,null,null,null,null,null,null,null,null,null,null,null,null,20,null,"","(16)"]
["(17)",null,null,0,null,0,{"$error":"#DIV/0!"},null,null,null,null,null,null,null,null,null,null,null,null,null,null,null,null,null,null,null,null,null,null,null,null,17,17,"-",null,null,null,{"$f":"COUNT($I$3,I25,H25)","v":0},{"$f":"COUNT($J$3,J25,I25)","v":0},{"$f":"COUNT($K$3,K25,J25)","v":0},{"$f":"COUNT($L$3,L25,K25)","v":0},{"$f":"COUNT($M$3,M25,L25)","v":1},{"$f":"COUNT($N$3,N25,M25)","v":1},{"$f":"COUNT($O$3,O25,N25)","v":0},{"$f":"COUNT($P$3,P25,O25)","v":1},{"$f":"COUNT($R$3,R25,P25)","v":0},{"$f":"COUNT($S$3,S25,R25)","v":0},{"$f":"COUNT($T$3,T25,S25)","v":0},{"$f":"COUNT($U$3,U25,T25)","v":1},{"$f":"COUNT($V$3,V25,U25)","v":0},{"$f":"COUNT($W$3,W25,V25)","v":0},{"$f":"COUNT($X$3,X25,W25)","v":0},{"$f":"COUNT($Z$3,Z25,X25)","v":0},{"$f":"COUNT($AA$3,AA25,Z25)","v":0},{"$f":"COUNT($AB$3,AB25,AA25)","v":0},{"$f":"COUNT($AC$3,AC25,AB25)","v":0},null,{"$f":"COUNTIF(AK25:BE25,\">1\")","v":0},{"$f":"IF(H25=\"x\",1,2)","v":2},null,null,null,null,null,null,null,null,null,null,null,null,null,null,null,null,null,null,null,null,null,null,null,null,null,null,null,null,null,null,null,null,null,null,null,null,null,null,null,null,null,null,null,null,null,null,null,null,null,null,null,null,null,null,null,null,null,null,null,null,null,null,null,null,null,null,null,null,null,null,null,null,null,null,null,null,null,null,null,null,21,null,"",{"$f":"IF(BG25>1,\"(\"&AF25&\")\",\"(\"&AH25&\")\")","v":"(17)"}]
[]
[]
[null,null,null,null,null,null,null,null,null,null,null,null,null,null,null,null,null,null,null,null,null,null,null,null,null,null,null,null,null,null,null,null,null,null,null,null,null,null,null,null,null,null,null,null,null,null,null,null,null,null,null,null,null,null,null,null,null,null,null,null,null,null,null,null,null,null,null,null,null,null,null,null,null,null,null,null,null,null,null,null,null,null,null,null,null,null,null,null,null,null,null,null,null,null,null,null,null,null,null,null,null,null,null,null,null,null,null,null,null,null,null,null,null,null,null,null,null,null,null,null,null,null,null,null,null,null,null,null,null,null,null,null,null,null,null,null,null,null,null,1,null,{"$f":"IF(BF28>=1,AG28,\"\")","v":""},{"$f":"IF(BF28>1,\"(\"&AF28&\")\",\"(\"&AH28&\")\")","v":"()"}]
[null,null,null,null,null,null,null,null,null,null,null,null,null,null,null,null,null,null,null,null,null,null,null,null,null,null,null,null,null,null,null,null,null,null,null,null,null,null,null,null,null,null,null,null,null,null,null,null,null,null,null,null,null,null,null,null,null,null,null,null,null,null,null,null,null,null,null,null,null,null,null,null,null,null,null,null,null,null,null,null,null,null,null,null,null,null,null,null,null,null,null,null,null,null,null,null,null,null,null,null,null,null,null,null,null,null,null,null,null,null,null,null,null,null,null,null,null,null,null,null,null,null,null,null,null,null,null,null,null,null,null,null,null,null,null,null,null,null,null,3,null,"","()"]
[null,null,null,null,null,null,null,null,null,null,null,null,null,null,null,null,null,null,null,null,null,null,null,null,null,null,null,null,null,null,null,null,null,null,null,null,null,null,null,null,null,null,null,null,null,null,null,null,null,null,null,null,null,null,null,null,null,null,null,null,null,null,null,null,null,null,null,null,null,null,null,null,null,null,null,null,null,null,null,null,null,null,null,null,null,null,null,null,null,null,null,null,null,null,null,null,null,null,null,null,null,null,null,null,null,null,null,null,null,null,null,null,null,null,null,null,null,null,null,null,null,null,null,null,null,null,null,null,null,null,null,null,null,null,null,null,null,null,null,4,null,"","()"]
[null,null,null,null,null,null,null,null,null,null,null,null,null,null,null,null,null,null,null,null,null,null,null,null,null,null,null,null,null,null,null,null,null,null,null,null,null,null,null,null,null,null,null,null,null,null,null,null,null,null,null,null,null,null,null,null,null,null,null,null,null,null,null,null,null,null,null,null,null,null,null,null,null,null,null,null,null,null,null,null,null,null,null,null,null,null,null,null,null,null,null,null,null,null,null,null,null,null,null,null,null,null,null,null,null,null,null,null,null,null,null,null,null,null,null,null,null,null,null,null,null,null,null,null,null,null,null,null,null,null,null,null,null,null,null,null,null,null,null,5,null,"","()"]
[null,null,null,null,null,null,null,null,null,null,null,null,null,null,null,null,null,null,null,null,null,null,null,null,null,null,null,null,null,null,null,null,null,null,null,null,null,null,null,null,null,null,null,null,null,null,null,null,null,null,null,null,null,null,null,null,null,null,null,null,null,null,null,null,null,null,null,null,null,null,null,null,null,null,null,null,null,null,null,null,null,null,null,null,null,null,null,null,null,null,null,null,null,null,null,null,null,null,null,null,null,null,null,null,null,null,null,null,null,null,null,null,null,null,null,null,null,null,null,null,null,null,null,null,null,null,null,null,null,null,null,null,null,null,null,null,null,null,null,6,null,"","()"]
[null,null,null,null,null,null,null,null,null,null,null,null,null,null,null,null,null,null,null,null,null,null,null,null,null,null,null,null,null,null,null,null,null,null,null,null,null,null,null,null,null,null,null,null,null,null,null,null,null,null,null,null,null,null,null,null,null,null,null,null,null,null,null,null,null,null,null,null,null,null,null,null,null,null,null,null,null,null,null,null,null,null,null,null,null,null,null,null,null,null,null,null,null,null,null,null,null,null,null,null,null,null,null,null,null,null,null,null,null,null,null,null,null,null,null,null,null,null,null,null,null,null,null,null,null,null,null,null,null,null,null,null,null,null,null,null,null,null,null,7,null,"","()"]
[null,null,null,null,null,null,null,null,null,null,null,null,null,null,null,null,null,null,null,null,null,null,null,null,null,null,null,null,null,null,null,null,null,null,null,null,null,null,null,null,null,null,null,null,null,null,null,null,null,null,null,null,null,null,null,null,null,null,null,null,null,null,null,null,null,null,null,null,null,null,null,null,null,null,null,null,null,null,null,null,null,null,null,null,null,null,null,null,null,null,null,null,null,null,null,null,null,null,null,null,null,null,null,null,null,null,null,null,null,null,null,null,null,null,null,null,null,null,null,null,null,null,null,null,null,null,null,null,null,null,null,null,null,null,null,null,null,null,null,8,null,"","()"]
[null,null,null,null,null,null,null,null,null,null,null,null,null,null,null,null,null,null,null,null,null,null,null,null,null,null,null,null,null,null,null,null,null,null,null,null,null,null,null,null,null,null,null,null,null,null,null,null,null,null,null,null,null,null,null,null,null,null,null,null,null,null,null,null,null,null,null,null,null,null,null,null,null,null,null,null,null,null,null,null,null,null,null,null,null,null,null,null,null,null,null,null,null,null,null,null,null,null,null,null,null,null,null,null,null,null,null,null,null,null,null,null,null,null,null,null,null,null,null,null,null,null,null,null,null,null,null,null,null,null,null,null,null,null,null,null,null,null,null,9,null,"","()"]
[null,null,null,null,null,null,null,null,null,null,null,null,null,null,null,null,null,null,null,null,null,null,null,null,null,null,null,null,null,null,null,null,null,null,null,null,null,null,null,null,null,null,null,null,null,null,null,null,null,null,null,null,null,null,null,null,null,null,null,null,null,null,null,null,null,null,null,null,null,null,null,null,null,null,null,null,null,null,null,null,null,null,null,null,null,null,null,null,null,null,null,null,null,null,null,null,null,null,null,null,null,null,null,null,null,null,null,null,null,null,null,null,null,null,null,null,null,null,null,null,null,null,null,null,null,null,null,null,null,null,null,null,null,null,null,null,null,null,null,10,null,"","()"]
[null,null,null,null,null,null,null,null,null,null,null,null,null,null,null,null,null,null,null,null,null,null,null,null,null,null,null,null,null,null,null,null,null,null,null,null,null,null,null,null,null,null,null,null,null,null,null,null,null,null,null,null,null,null,null,null,null,null,null,null,null,null,null,null,null,null,null,null,null,null,null,null,null,null,null,null,null,null,null,null,null,null,null,null,null,null,null,null,null,null,null,null,null,null,null,null,null,null,null,null,null,null,null,null,null,null,null,null,null,null,null,null,null,null,null,null,null,null,null,null,null,null,null,null,null,null,null,null,null,null,null,null,null,null,null,null,null,null,null,11,null,"","()"]
[null,null,null,null,null,null,null,null,null,null,null,null,null,null,null,null,null,null,null,null,null,null,null,null,null,null,null,null,null,null,null,null,null,null,null,null,null,null,null,null,null,null,null,null,null,null,null,null,null,null,null,null,null,null,null,null,null,null,null,null,null,null,null,null,null,null,null,null,null,null,null,null,null,null,null,null,null,null,null,null,null,null,null,null,null,null,null,null,null,null,null,null,null,null,null,null,null,null,null,null,null,null,null,null,null,null,null,null,null,null,null,null,null,null,null,null,null,null,null,null,null,null,null,null,null,null,null,null,null,null,null,null,null,null,null,null,null,null,null,12,null,"","()"]
[null,null,null,null,null,null,null,null,null,null,null,null,null,null,null,null,null,null,null,null,null,null,null,null,null,null,null,null,null,null,null,null,null,null,null,null,null,null,null,null,null,null,null,null,null,null,null,null,null,null,null,null,null,null,null,null,null,null,null,null,null,null,null,null,null,null,null,null,null,null,null,null,null,null,null,null,null,null,null,null,null,null,null,null,null,null,null,null,null,null,null,null,null,null,null,null,null,null,null,null,null,null,null,null,null,null,null,null,null,null,null,null,null,null,null,null,null,null,null,null,null,null,null,null,null,null,null,null,null,null,null,null,null,null,null,null,null,null,null,13,null,"","()"]
[null,null,null,null,null,null,null,null,null,null,null,null,null,null,null,null,null,null,null,null,null,null,null,null,null,null,null,null,null,null,null,null,null,null,null,null,null,null,null,null,null,null,null,null,null,null,null,null,null,null,null,null,null,null,null,null,null,null,null,null,null,null,null,null,null,null,null,null,null,null,null,null,null,null,null,null,null,null,null,null,null,null,null,null,null,null,null,null,null,null,null,null,null,null,null,null,null,null,null,null,null,null,null,null,null,null,null,null,null,null,null,null,null,null,null,null,null,null,null,null,null,null,null,null,null,null,null,null,null,null,null,null,null,null,null,null,null,null,null,14,null,{"$f":"IF(BF40>=1,AG40,14)","v":14},"()"]
[null,null,null,null,null,null,null,null,null,null,null,null,null,null,null,null,null,null,null,null,null,null,null,null,null,null,null,null,null,null,null,null,null,null,null,null,null,null,null,null,null,null,null,null,null,null,null,null,null,null,null,null,null,null,null,null,null,null,null,null,null,null,null,null,null,null,null,null,null,null,null,null,null,null,null,null,null,null,null,null,null,null,null,null,null,null,null,null,null,null,null,null,null,null,null,null,null,null,null,null,null,null,null,null,null,null,null,null,null,null,null,null,null,null,null,null,null,null,null,null,null,null,null,null,null,null,null,null,null,null,null,null,null,null,null,null,null,null,null,15,null,{"$f":"IF(BF41>=1,AG41,\"\")","v":""},"()"]
[null,null,null,null,null,null,null,null,null,null,null,null,null,null,null,null,null,null,null,null,null,null,null,null,null,null,null,null,null,null,null,null,null,null,null,null,null,null,null,null,null,null,null,null,null,null,null,null,null,null,null,null,null,null,null,null,null,null,null,null,null,null,null,null,null,null,null,null,null,null,null,null,null,null,null,null,null,null,null,null,null,null,null,null,null,null,null,null,null,null,null,null,null,null,null,null,null,null,null,null,null,null,null,null,null,null,null,null,null,null,null,null,null,null,null,null,null,null,null,null,null,null,null,null,null,null,null,null,null,null,null,null,null,null,null,null,null,null,null,16,null,{"$f":"IF(BF42>=1,AG42,\"\")","v":""},"()"]
[null,null,null,null,null,null,null,null,null,null,null,null,null,null,null,null,null,null,null,null,null,null,null,null,null,null,null,null,null,null,null,null,null,null,null,null,null,null,null,null,null,null,null,null,null,null,null,null,null,null,null,null,null,null,null,null,null,null,null,null,null,null,null,null,null,null,null,null,null,null,null,null,null,null,null,null,null,null,null,null,null,null,null,null,null,null,null,null,null,null,null,null,null,null,null,null,null,null,null,null,null,null,null,null,null,null,null,null,null,null,null,null,null,null,null,null,null,null,null,null,null,null,null,null,null,null,null,null,null,null,null,null,null,null,null,null,null,null,null,2,null,{"$f":"IF(BF43>=1,AG43,\"\")","v":""},"()"]
[null,null,null,null,null,null,null,null,null,null,null,null,null,null,null,null,null,null,null,null,null,null,null,null,null,null,null,null,null,null,null,null,null,null,null,null,null,null,null,null,null,null,null,null,null,null,null,null,null,null,null,null,null,null,null,null,null,null,null,null,null,null,null,null,null,null,null,null,null,null,null,null,null,null,null,null,null,null,null,null,null,null,null,null,null,null,null,null,null,null,null,null,null,null,null,null,null,null,null,null,null,null,null,null,null,null,null,null,null,null,null,null,null,null,null,null,null,null,null,null,null,null,null,null,null,null,null,null,null,null,null,null,null,null,null,null,null,null,null,17,null,{"$f":"IF(BF44>=1,AG44,\"\")","v":""},{"$f":"IF(BF44>2,\"(\"&AF44&\")\",\"(\"&AH44&\")\")","v":"()"}]
[null,null,null,null,null,null,null,null,null,null,null,null,null,null,null,null,null,null,null,null,null,null,null,null,null,null,null,null,null,null,null,null,null,null,null,null,null,null,null,null,null,null,null,null,null,null,null,null,null,null,null,null,null,null,null,null,null,null,null,null,null,null,null,null,null,null,null,null,null,null,null,null,null,null,null,null,null,null,null,null,null,null,null,null,null,null,null,null,null,null,null,null,null,null,null,null,null,null,null,null,null,null,null,null,null,null,null,null,null,null,null,null,null,null,null,null,null,null,null,null,null,null,null,null,null,null,null,null,null,null,null,null,null,null,null,null,null,null,null,18,null,18,{"$f":"IF(BF45>1,\"(\"&AF45&\")\",\"(\"&AH45&\")\")","v":"()"}]
[null,null,null,null,null,null,null,null,null,null,null,null,null,null,null,null,null,null,null,null,null,null,null,null,null,null,null,null,null,null,null,null,null,null,null,null,null,null,null,null,null,null,null,null,null,null,null,null,null,null,null,null,null,null,null,null,null,null,null,null,null,null,null,null,null,null,null,null,null,null,null,null,null,null,null,null,null,null,null,null,null,null,null,null,null,null,null,null,null,null,null,null,null,null,null,null,null,null,null,null,null,null,null,null,null,null,null,null,null,null,null,null,null,null,null,null,null,null,null,null,null,null,null,null,null,null,null,null,null,null,null,null,null,null,null,null,null,null,null,19,null,19,{"$f":"IF(BF46>1,\"(\"&AF46&\")\",\"(\"&AH46&\")\")","v":"()"}]
[null,null,null,null,null,null,null,null,null,null,null,null,null,null,null,null,null,null,null,null,null,null,null,null,null,null,null,null,null,null,null,null,null,null,null,null,null,null,null,null,null,null,null,null,null,null,null,null,null,null,null,null,null,null,null,null,null,null,null,null,null,null,null,null,null,null,null,null,null,null,null,null,null,null,null,null,null,null,null,null,null,null,null,null,null,null,null,null,null,null,null,null,null,null,null,null,null,null,null,null,null,null,null,null,null,null,null,null,null,null,null,null,null,null,null,null,null,null,null,null,null,null,null,null,null,null,null,null,null,null,null,null,null,null,null,null,null,null,null,20,null,20,{"$f":"IF(BF47>1,\"(\"&AF47&\")\",\"(\"&AH47&\")\")","v":"()"}]

{"sheet":"Seriespelsranking","index":3,"n_rows":123,"n_cols":136,"rows_kept":123,"cut":false,"hidden":false,"merged":[]}
[null,"Svenska Hästskokastarförbundets Seriespelsranking"]
[null,"2020_2021"]
[null,"Seriespelet läggs ner denna säsong"]
["Plac.","Kastare ","Klubb","Ranking-snitt ",null,"Antal serie-resultat","Total-poäng serie-resultat",null,"Antal vunna dubblar","Antal förlorade dubblar","Antal vunna singlar","Antal förlorade singlar","Antal vunna matcher i %","Inskrivning resultat",null,null,null,null,null,null,null,null,null,null,null,null,null,null,null,null,null,null,null,null,null,null,null,null,null,null,null,null,null,null,null,null,null,null,null,null,null,null,null,null,null,null,null,null,null,null,null,null,null,null,null,null,null,null,"Uträkning   för","statistik vunna resp.","förlorade ","dubblar och singlar."]
[{"$f":"IF(H5=\"x\",DU5&EF5,DU5&EE5)","v":"1(1)"},"Tobias Gneupel","Sibbamåla",{"$f":"IF(F5>0.5,(G5/F5),0)","v":239.13333333333333},null,{"$f":"COUNT(N5:BO5)","v":15},{"$f":"SUM(N5:BO5)","v":3587},null,{"$f":"COUNTIF(BQ5:DR5,2)","v":0},{"$f":"COUNTIF(BQ5:DR5,-2)","v":0},{"$f":"COUNTIF(BQ5:DR5,1)","v":0},{"$f":"COUNTIF(BQ5:DR5,-1)","v":0},{"$f":"IF(F5>0,(I5+K5)/(F5),0)","v":0},218,253,259,202,185,309,200,265,282,203,284,246,228,228,225,null,null,null,null,null,null,null,null,null,null,null,null,null,null,null,null,null,null,null,null,null,null,null,null,null,null,null,null,null,null,null,null,null,null,null,null,null,null,null,null,null,null,null,null,null,null,null,null,null,null,null,null,null,null,null,null,null,null,null,null,null,null,null,null,null,null,null,null,null,null,null,null,null,null,null,null,null,null,null,null,null,null,null,null,null,null,null,null,null,null,null,null,null,null,null,1,{"$f":"IF(AND(D5=D4,D5=D3,D5=D2,D5=D1),ROW(1:1),IF(AND(D5=D4,D5=D3,D5=D2),ROW(1:1),IF(AND(D5=D4,D5=D3),ROW(1:1),IF(D5=D4,ROW(1:1),IF(D5>1,ROW(1:1),\"-\")))))","v":1},{"$f":"IF(DX5=1,ROW(1:1),\"-\")","v":1},null,1,null,null,null,11,null,{"$f":"IF(DX5=1,DU5,IF(DX5=\"\",DU5,\"\"))","v":1},{"$f":"IF(DX5=1,\"(\"&DT5&\")\",\"(\"&DV5&\")\")","v":"(1)"},"(-)"]
[{"$f":"IF(H6=\"x\",DU6&EF6,DU6&EE6)","v":"2(2)"},"Kent Sundahl","Carlskrona",206.2,null,15,3093,null,0,0,0,0,0,184,209,148,286,192,254,151,190,222,247,217,168,272,176,177,null,null,null,null,null,null,null,null,null,null,null,null,null,null,null,null,null,null,null,null,null,null,null,null,null,null,null,null,null,null,null,null,null,null,null,null,null,null,null,null,null,null,null,null,null,null,null,null,null,null,null,null,null,null,null,null,null,null,null,null,null,null,null,null,null,null,null,null,null,null,null,null,null,null,null,null,null,null,null,null,null,null,null,null,null,null,null,null,null,null,null,null,null,null,null,2,{"$f":"IF(AND(D6=D5,D6=D4,D6=D3,D6=D2),ROW(1:1),IF(AND(D6=D5,D6=D4,D6=D3),ROW(1:1),IF(AND(D6=D5,D6=D4),ROW(1:1),IF(D6=D5,ROW(1:1),IF(D6>1,ROW(2:2),\"-\")))))","v":2},2,null,1,null,null,null,16,null,2,"(2)","(-)"]
["3(3)","Matz Karlsson","Korpen Åseda",202.52941176470588,null,17,3443,null,0,0,0,0,0,167,253,187,216,297,120,152,164,155,213,205,261,199,236,192,220,206,null,null,null,null,null,null,null,null,null,null,null,null,null,null,null,null,null,null,null,null,null,null,null,null,null,null,null,null,null,null,null,null,null,null,null,null,null,null,null,null,null,null,null,null,null,null,null,null,null,null,null,null,null,null,null,null,null,null,null,null,null,null,null,null,null,null,null,null,null,null,null,null,null,null,null,null,null,null,null,null,null,null,null,null,null,null,null,null,null,null,null,null,null,3,{"$f":"IF(AND(D7=D6,D7=D5,D7=D4,D7=D3),ROW(1:1),IF(AND(D7=D6,D7=D5,D7=D4),ROW(1:1),IF(AND(D7=D6,D7=D5),ROW(1:1),IF(D7=D6,ROW(2:2),IF(D7>1,ROW(3:3),\"-\")))))","v":3},3,null,1,null,null,null,20,null,3,"(3)","(-)"]
["4(4)","Jean Fredriksson Väre","Skärgårdsalliansen",188.66666666666666,null,3,566,null,0,0,0,0,0,238,139,189,null,null,null,null,null,null,null,null,null,null,null,null,null,null,null,null,null,null,null,null,null,null,null,null,null,null,null,null,null,null,null,null,null,null,null,null,null,null,null,null,null,null,null,null,null,null,null,null,null,null,null,null,null,null,null,null,null,null,null,null,null,null,null,null,null,null,null,null,null,null,null,null,null,null,null,null,null,null,null,null,null,null,null,null,null,null,null,null,null,null,null,null,null,null,null,null,null,null,null,null,null,null,null,null,null,null,null,4,{"$f":"IF(AND(D8=D7,D8=D6,D8=D5),ROW(1:1),IF(AND(D8=D7,D8=D6),ROW(2:2),IF(D8=D7,ROW(3:3),IF(D8>1,ROW(4:4),\"-\"))))","v":4},4,null,1,null,null,null,4,null,4,"(4)","(-)"]
["5(5)","Sandor Bodi","Växjö Hsk",185.2,null,5,926,null,0,0,0,0,0,238,192,183,190,123,null,null,null,null,null,null,null,null,null,null,null,null,null,null,null,null,null,null,null,null,null,null,null,null,null,null,null,null,null,null,null,null,null,null,null,null,null,null,null,null,null,null,null,null,null,null,null,null,null,null,null,null,null,null,null,null,null,null,null,null,null,null,null,null,null,null,null,null,null,null,null,null,null,null,null,null,null,null,null,null,null,null,null,null,null,null,null,null,null,null,null,null,null,null,null,null,null,null,null,null,null,null,null,null,null,5,{"$f":"IF(D9>1,ROW(5:5),\"-\")","v":5},5,null,1,null,null,null,1,null,5,"(5)","(-)"]
["6(6)","Yamolada Damnoegam","Växjö Hsk",174.22222222222223,null,9,1568,null,0,0,0,0,0,167,262,179,172,162,134,143,142,207,null,null,null,null,null,null,null,null,null,null,null,null,null,null,null,null,null,null,null,null,null,null,null,null,null,null,null,null,null,null,null,null,null,null,null,null,null,null,null,null,null,null,null,null,null,null,null,null,null,null,null,null,null,null,null,null,null,null,null,null,null,null,null,null,null,null,null,null,null,null,null,null,null,null,null,null,null,null,null,null,null,null,null,null,null,null,null,null,null,null,null,null,null,null,null,null,null,null,null,null,null,6,{"$f":"IF(D10=D9,ROW(5:5),IF(D10>1,ROW(6:6),\"-\"))","v":6},6,null,1,null,null,null,2,null,6,"(6)","(-)"]
["7(7)","Joel Sundahl","Carlskrona",174.125,null,16,2786,null,0,0,0,0,0,165,165,211,277,198,122,199,129,179,122,155,218,179,139,156,172,null,null,null,null,null,null,null,null,null,null,null,null,null,null,null,null,null,null,null,null,null,null,null,null,null,null,null,null,null,null,null,null,null,null,null,null,null,null,null,null,null,null,null,null,null,null,null,null,null,null,null,null,null,null,null,null,null,null,null,null,null,null,null,null,null,null,null,null,null,null,null,null,null,null,null,null,null,null,null,null,null,null,null,null,null,null,null,null,null,null,null,null,null,null,7,{"$f":"IF(AND(D11=D10,D11=D9,D11=D8,D11=D7),ROW(3:3),IF(AND(D11=D10,D11=D9,D11=D8),ROW(4:4),IF(AND(D11=D10,D11=D9),ROW(5:5),IF(D11=D10,ROW(6:6),IF(D11>1,ROW(7:7),\"-\")))))","v":7},7,null,1,null,null,null,5,null,7,"(7)","(-)"]
["8(8)","Olle Ottosson","Dynapac",173.70588235294119,null,17,2953,null,0,0,0,0,0,130,183,107,160,136,125,212,187,173,211,227,199,184,172,225,137,185,null,null,null,null,null,null,null,null,null,null,null,null,null,null,null,null,null,null,null,null,null,null,null,null,null,null,null,null,null,null,null,null,null,null,null,null,null,null,null,null,null,null,null,null,null,null,null,null,null,null,null,null,null,null,null,null,null,null,null,null,null,null,null,null,null,null,null,null,null,null,null,null,null,null,null,null,null,null,null,null,null,null,null,null,null,null,null,null,null,null,null,null,null,8,8,8,null,1,null,null,null,6,null,8,"(8)","(-)"]
["9(9)","Ingvar Eriksson","Carlskrona",173.1875,null,16,2771,null,0,0,0,0,0,222,194,172,205,219,137,204,143,215,134,146,163,182,155,109,171,null,null,null,null,null,null,null,null,null,null,null,null,null,null,null,null,null,null,null,null,null,null,null,null,null,null,null,null,null,null,null,null,null,null,null,null,null,null,null,null,null,null,null,null,null,null,null,null,null,null,null,null,null,null,null,null,null,null,null,null,null,null,null,null,null,null,null,null,null,null,null,null,null,null,null,null,null,null,null,null,null,null,null,null,null,null,null,null,null,null,null,null,null,null,9,9,9,null,1,null,null,null,8,null,9,"(9)","(-)"]
["10(10)","Hathaichonlanee Phaengphui","Växjö Hsk",170.55555555555554,null,9,1535,null,0,0,0,0,0,180,198,133,198,136,235,161,132,162,null,null,null,null,null,null,null,null,null,null,null,null,null,null,null,null,null,null,null,null,null,null,null,null,null,null,null,null,null,null,null,null,null,null,null,null,null,null,null,null,null,null,null,null,null,null,null,null,null,null,null,null,null,null,null,null,null,null,null,null,null,null,null,null,null,null,null,null,null,null,null,null,null,null,null,null,null,null,null,null,null,null,null,null,null,null,null,null,null,null,null,null,null,null,null,null,null,null,null,null,null,10,10,10,null,1,null,null,null,12,null,10,"(10)","(-)"]
["11(11)","Armin Sisic","Värends Hsk",168.2,null,15,2523,null,0,0,0,0,0,178,197,163,158,125,118,155,141,148,216,153,182,211,160,218,null,null,null,null,null,null,null,null,null,null,null,null,null,null,null,null,null,null,null,null,null,null,null,null,null,null,null,null,null,null,null,null,null,null,null,null,null,null,null,null,null,null,null,null,null,null,null,null,null,null,null,null,null,null,null,null,null,null,null,null,null,null,null,null,null,null,null,null,null,null,null,null,null,null,null,null,null,null,null,null,null,null,null,null,null,null,null,null,null,null,null,null,null,null,null,11,11,11,null,1,null,null,null,15,null,11,"(11)","(-)"]
["12(12)","Sandra Widlund","Växjö Hsk",165.5,null,10,1655,null,0,0,0,0,0,188,218,202,177,146,157,170,95,132,170,null,null,null,null,null,null,null,null,null,null,null,null,null,null,null,null,null,null,null,null,null,null,null,null,null,null,null,null,null,null,null,null,null,null,null,null,null,null,null,null,null,null,null,null,null,null,null,null,null,null,null,null,null,null,null,null,null,null,null,null,null,null,null,null,null,null,null,null,null,null,null,null,null,null,null,null,null,null,null,null,null,null,null,null,null,null,null,null,null,null,null,null,null,null,null,null,null,null,null,null,12,12,12,null,1,null,null,null,21,null,12,"(12)","(-)"]
["13(13)","Anita Fabbeke","Dynapac",165,null,5,825,null,0,0,0,0,0,146,214,144,166,155,null,null,null,null,null,null,null,null,null,null,null,null,null,null,null,null,null,null,null,null,null,null,null,null,null,null,null,null,null,null,null,null,null,null,null,null,null,null,null,null,null,null,null,null,null,null,null,null,null,null,null,null,null,null,null,null,null,null,null,null,null,null,null,null,null,null,null,null,null,null,null,null,null,null,null,null,null,null,null,null,null,null,null,null,null,null,null,null,null,null,null,null,null,null,null,null,null,null,null,null,null,null,null,null,null,13,13,13,null,1,null,null,null,3,null,13,"(13)","(-)"]
["14(14)","Gert Karlsson","Korpen Åseda",158.28571428571428,null,14,2216,null,0,0,0,0,0,156,129,126,151,158,109,123,154,185,148,245,169,186,177,null,null,null,null,null,null,null,null,null,null,null,null,null,null,null,null,null,null,null,null,null,null,null,null,null,null,null,null,null,null,null,null,null,null,null,null,null,null,null,null,null,null,null,null,null,null,null,null,null,null,null,null,null,null,null,null,null,null,null,null,null,null,null,null,null,null,null,null,null,null,null,null,null,null,null,null,null,null,null,null,null,null,null,null,null,null,null,null,null,null,null,null,null,null,null,null,14,14,14,null,1,null,null,null,7,null,14,"(14)","(-)"]
["15(15)","Magnus Israelsson","Sibbamåla ",155.85714285714286,null,14,2182,null,0,0,0,0,0,179,227,124,226,137,116,160,74,132,166,183,103,211,144,null,null,null,null,null,null,null,null,null,null,null,null,null,null,null,null,null,null,null,null,null,null,null,null,null,null,null,null,null,null,null,null,null,null,null,null,null,null,null,null,null,null,null,null,null,null,null,null,null,null,null,null,null,null,null,null,null,null,null,null,null,null,null,null,null,null,null,null,null,null,null,null,null,null,null,null,null,null,null,null,null,null,null,null,null,null,null,null,null,null,null,null,null,null,null,null,15,15,15,null,1,null,null,null,17,null,15,"(15)","(-)"]
["16(16)","Johan Johansson","Tingsryd",151.83333333333334,null,12,1822,null,0,0,0,0,0,156,197,89,163,180,136,135,155,185,151,139,136,null,null,null,null,null,null,null,null,null,null,null,null,null,null,null,null,null,null,null,null,null,null,null,null,null,null,null,null,null,null,null,null,null,null,null,null,null,null,null,null,null,null,null,null,null,null,null,null,null,null,null,null,null,null,null,null,null,null,null,null,null,null,null,null,null,null,null,null,null,null,null,null,null,null,null,null,null,null,null,null,null,null,null,null,null,null,null,null,null,null,null,null,null,null,null,null,null,null,16,16,16,null,1,null,null,null,18,null,16,"(16)","(-)"]
["17(17)","Leif Danielsson","Korpen Nybro",151.19999999999999,null,10,1512,null,0,0,0,0,0,147,151,129,168,126,167,109,164,145,206,null,null,null,null,null,null,null,null,null,null,null,null,null,null,null,null,null,null,null,null,null,null,null,null,null,null,null,null,null,null,null,null,null,null,null,null,null,null,null,null,null,null,null,null,null,null,null,null,null,null,null,null,null,null,null,null,null,null,null,null,null,null,null,null,null,null,null,null,null,null,null,null,null,null,null,null,null,null,null,null,null,null,null,null,null,null,null,null,null,null,null,null,null,null,null,null,null,null,null,null,17,17,17,null,1,null,null,null,24,null,17,"(17)","(-)"]
["18(19)","Lars-Erik Ottosson","Lanternan",150.25,null,8,1202,null,0,0,0,0,0,151,197,173,127,109,149,155,141,null,null,null,null,null,null,null,null,null,null,null,null,null,null,null,null,null,null,null,null,null,null,null,null,null,null,null,null,null,null,null,null,null,null,null,null,null,null,null,null,null,null,null,null,null,null,null,null,null,null,null,null,null,null,null,null,null,null,null,null,null,null,null,null,null,null,null,null,null,null,null,null,null,null,null,null,null,null,null,null,null,null,null,null,null,null,null,null,null,null,null,null,null,null,null,null,null,null,null,null,null,null,19,18,18,null,1,null,null,null,9,null,18,"(19)","(-)"]
["19(20)","Leo Andersson","Carlskrona",149.27272727272728,null,11,1642,null,0,0,0,0,0,121,163,148,140,180,141,190,141,160,124,134,null,null,null,null,null,null,null,null,null,null,null,null,null,null,null,null,null,null,null,null,null,null,null,null,null,null,null,null,null,null,null,null,null,null,null,null,null,null,null,null,null,null,null,null,null,null,null,null,null,null,null,null,null,null,null,null,null,null,null,null,null,null,null,null,null,null,null,null,null,null,null,null,null,null,null,null,null,null,null,null,null,null,null,null,null,null,null,null,null,null,null,null,null,null,null,null,null,null,null,20,19,19,null,1,null,null,null,10,null,19,"(20)","(-)"]
["20(18)","Stefan Olofsson","Korpen Nybro",144.875,null,8,1159,null,0,0,0,0,0,133,196,162,107,156,104,139,162,null,null,null,null,null,null,null,null,null,null,null,null,null,null,null,null,null,null,null,null,null,null,null,null,null,null,null,null,null,null,null,null,null,null,null,null,null,null,null,null,null,null,null,null,null,null,null,null,null,null,null,null,null,null,null,null,null,null,null,null,null,null,null,null,null,null,null,null,null,null,null,null,null,null,null,null,null,null,null,null,null,null,null,null,null,null,null,null,null,null,null,null,null,null,null,null,null,null,null,null,null,null,18,20,20,null,1,null,null,null,22,null,20,"(18)","(-)"]
["21(21)","Peter Olsson","Dynapac ",144.70588235294119,null,17,2460,null,0,0,0,0,0,84,140,125,104,103,89,107,165,198,223,141,183,87,174,208,171,158,null,null,null,null,null,null,null,null,null,null,null,null,null,null,null,null,null,null,null,null,null,null,null,null,null,null,null,null,null,null,null,null,null,null,null,null,null,null,null,null,null,null,null,null,null,null,null,null,null,null,null,null,null,null,null,null,null,null,null,null,null,null,null,null,null,null,null,null,null,null,null,null,null,null,null,null,null,null,null,null,null,null,null,null,null,null,null,null,null,null,null,null,null,21,21,21,null,1,null,null,null,14,null,21,"(21)","(-)"]
["22(22)","Mathias Karlberg","Jämjö Hsk",144.19999999999999,null,15,2163,null,0,0,0,0,0,132,216,137,137,135,122,179,123,83,147,176,209,126,129,112,null,null,null,null,null,null,null,null,null,null,null,null,null,null,null,null,null,null,null,null,null,null,null,null,null,null,null,null,null,null,null,null,null,null,null,null,null,null,null,null,null,null,null,null,null,null,null,null,null,null,null,null,null,null,null,null,null,null,null,null,null,null,null,null,null,null,null,null,null,null,null,null,null,null,null,null,null,null,null,null,null,null,null,null,null,null,null,null,null,null,null,null,null,null,null,22,22,22,null,1,null,null,null,13,null,22,"(22)","(-)"]
["23(23)","Lisbeth Nygaard-Karlsson","Tingsryd",141.69999999999999,null,10,1417,null,0,0,0,0,0,189,141,155,100,159,153,138,106,124,152,null,null,null,null,null,null,null,null,null,null,null,null,null,null,null,null,null,null,null,null,null,null,null,null,null,null,null,null,null,null,null,null,null,null,null,null,null,null,null,null,null,null,null,null,null,null,null,null,null,null,null,null,null,null,null,null,null,null,null,null,null,null,null,null,null,null,null,null,null,null,null,null,null,null,null,null,null,null,null,null,null,null,null,null,null,null,null,null,null,null,null,null,null,null,null,null,null,null,null,null,23,23,23,null,1,null,null,null,19,null,23,"(23)","(-)"]
["24(24)","Sune Olsson","Korpen Nybro",137.875,null,8,1103,null,0,0,0,0,0,135,144,181,116,124,140,142,121,null,null,null,null,null,null,null,null,null,null,null,null,null,null,null,null,null,null,null,null,null,null,null,null,null,null,null,null,null,null,null,null,null,null,null,null,null,null,null,null,null,null,null,null,null,null,null,null,null,null,null,null,null,null,null,null,null,null,null,null,null,null,null,null,null,null,null,null,null,null,null,null,null,null,null,null,null,null,null,null,null,null,null,null,null,null,null,null,null,null,null,null,null,null,null,null,null,null,null,null,null,null,24,{"$f":"IF(AND(D28=D27,D28=D26,D28=D25,D28=D24),ROW(20:20),IF(AND(D28=D27,D28=D26,D28=D25),ROW(21:21),IF(AND(D28=D27,D28=D26),ROW(22:22),IF(D28=D27,ROW(23:23),IF(D28>1,ROW(24:24),\"-\")))))","v":24},{"$f":"IF(DX28=1,ROW(24:24),\"-\")","v":24},null,1,null,null,null,28,null,{"$f":"IF(DX28=1,DU28,IF(DX28=\"\",DU28,\"\"))","v":24},{"$f":"IF(DX28=1,\"(\"&DT28&\")\",\"(\"&DV28&\")\")","v":"(24)"},"(-)"]
["25(25)","Anton Alexandersson","Sibbamåla",137,null,3,411,null,0,0,0,0,0,111,133,167,null,null,null,null,null,null,null,null,null,null,null,null,null,null,null,null,null,null,null,null,null,null,null,null,null,null,null,null,null,null,null,null,null,null,null,null,null,null,null,null,null,null,null,null,null,null,null,null,null,null,null,null,null,null,null,null,null,null,null,null,null,null,null,null,null,null,null,null,null,null,null,null,null,null,null,null,null,null,null,null,null,null,null,null,null,null,null,null,null,null,null,null,null,null,null,null,null,null,null,null,null,null,null,null,null,null,null,25,{"$f":"IF(AND(D29=D28,D29=D27,D29=D26,D29=D25),ROW(21:21),IF(AND(D29=D28,D29=D27,D29=D26),ROW(22:22),IF(AND(D29=D28,D29=D27),ROW(23:23),IF(D29=D28,ROW(24:24),IF(D29>1,ROW(25:25),\"-\")))))","v":25},{"$f":"IF(DX29=1,ROW(25:25),\"-\")","v":25},null,1,null,null,null,23,null,{"$f":"IF(DX29=1,DU29,IF(DX29=\"\",DU29,\"\"))","v":25},{"$f":"IF(DX29=1,\"(\"&DT29&\")\",\"(\"&DV29&\")\")","v":"(25)"},"(-)"]
["26(26)","Lennart Karlsson","Tingsryd",136.36363636363637,null,11,1500,null,0,0,0,0,0,145,127,192,187,100,128,86,88,152,188,107,null,null,null,null,null,null,null,null,null,null,null,null,null,null,null,null,null,null,null,null,null,null,null,null,null,null,null,null,null,null,null,null,null,null,null,null,null,null,null,null,null,null,null,null,null,null,null,null,null,null,null,null,null,null,null,null,null,null,null,null,null,null,null,null,null,null,null,null,null,null,null,null,null,null,null,null,null,null,null,null,null,null,null,null,null,null,null,null,null,null,null,null,null,null,null,null,null,null,null,26,{"$f":"IF(AND(D30=D29,D30=D28,D30=D27,D30=D26),ROW(22:22),IF(AND(D30=D29,D30=D28,D30=D27),ROW(23:23),IF(AND(D30=D29,D30=D28),ROW(24:24),IF(D30=D29,ROW(25:25),IF(D30>1,ROW(26:26),\"-\")))))","v":26},{"$f":"IF(DX30=1,ROW(26:26),\"-\")","v":26},null,1,null,null,null,25,null,{"$f":"IF(DX30=1,DU30,IF(DX30=\"\",DU30,\"\"))","v":26},{"$f":"IF(DX30=1,\"(\"&DT30&\")\",\"(\"&DV30&\")\")","v":"(26)"},"(-)"]
["27(27)","Mattias Gneupel","Sibbamåla",136.16666666666666,null,12,1634,null,0,0,0,0,0,159,140,114,83,95,157,165,159,139,89,195,139,null,null,null,null,null,null,null,null,null,null,null,null,null,null,null,null,null,null,null,null,null,null,null,null,null,null,null,null,null,null,null,null,null,null,null,null,null,null,null,null,null,null,null,null,null,null,null,null,null,null,null,null,null,null,null,null,null,null,null,null,null,null,null,null,null,null,null,null,null,null,null,null,null,null,null,null,null,null,null,null,null,null,null,null,null,null,null,null,null,null,null,null,null,null,null,null,null,null,27,{"$f":"IF(AND(D31=D30,D31=D29,D31=D28,D31=D27),ROW(23:23),IF(AND(D31=D30,D31=D29,D31=D28),ROW(24:24),IF(AND(D31=D30,D31=D29),ROW(25:25),IF(D31=D30,ROW(26:26),IF(D31>1,ROW(27:27),\"-\")))))","v":27},{"$f":"IF(DX31=1,ROW(27:27),\"-\")","v":27},null,1,null,null,null,26,null,{"$f":"IF(DX31=1,DU31,IF(DX31=\"\",DU31,\"\"))","v":27},{"$f":"IF(DX31=1,\"(\"&DT31&\")\",\"(\"&DV31&\")\")","v":"(27)"},"(-)"]
["28(28)","Günther Iraschko","Växjö Hsk",135.83333333333334,null,6,815,null,0,0,0,0,0,123,128,123,136,163,142,null,null,null,null,null,null,null,null,null,null,null,null,null,null,null,null,null,null,null,null,null,null,null,null,null,null,null,null,null,null,null,null,null,null,null,null,null,null,null,null,null,null,null,null,null,null,null,null,null,null,null,null,null,null,null,null,null,null,null,null,null,null,null,null,null,null,null,null,null,null,null,null,null,null,null,null,null,null,null,null,null,null,null,null,null,null,null,null,null,null,null,null,null,null,null,null,null,null,null,null,null,null,null,null,28,{"$f":"IF(AND(D32=D31,D32=D30,D32=D29,D32=D28),ROW(24:24),IF(AND(D32=D31,D32=D30,D32=D29),ROW(25:25),IF(AND(D32=D31,D32=D30),ROW(26:26),IF(D32=D31,ROW(27:27),IF(D32>1,ROW(28:28),\"-\")))))","v":28},{"$f":"IF(DX32=1,ROW(28:28),\"-\")","v":28},null,1,null,null,null,27,null,{"$f":"IF(DX32=1,DU32,IF(DX32=\"\",DU32,\"\"))","v":28},{"$f":"IF(DX32=1,\"(\"&DT32&\")\",\"(\"&DV32&\")\")","v":"(28)"},"(-)"]
["29(29)","Mathias Zetterlund","Vaxholm Hsk",131.81818181818181,null,11,1450,null,0,0,0,0,0,118,122,157,132,102,101,139,189,172,138,80,null,null,null,null,null,null,null,null,null,null,null,null,null,null,null,null,null,null,null,null,null,null,null,null,null,null,null,null,null,null,null,null,null,null,null,null,null,null,null,null,null,null,null,null,null,null,null,null,null,null,null,null,null,null,null,null,null,null,null,null,null,null,null,null,null,null,null,null,null,null,null,null,null,null,null,null,null,null,null,null,null,null,null,null,null,null,null,null,null,null,null,null,null,null,null,null,null,null,null,29,29,29,null,1,null,null,null,29,null,29,"(29)","(-)"]
["30(-)","Julia Eriksson","Skärgårdsalliansen",131.33333333333334,null,3,394,"x",0,0,0,0,0,96,164,134,null,null,null,null,null,null,null,null,null,null,null,null,null,null,null,null,null,null,null,null,null,null,null,null,null,null,null,null,null,null,null,null,null,null,null,null,null,null,null,null,null,null,null,null,null,null,null,null,null,null,null,null,null,null,null,null,null,null,null,null,null,null,null,null,null,null,null,null,null,null,null,null,null,null,null,null,null,null,null,null,null,null,null,null,null,null,null,null,null,null,null,null,null,null,null,null,null,null,null,null,null,null,null,null,null,null,null,94,30,30,null,1,null,null,null,30,null,30,"(94)","(-)"]
["31(30)","Berndt Petersson","Lanternan",131,null,18,2358,null,0,0,0,0,0,125,164,153,154,170,157,99,125,134,82,110,179,116,121,113,146,68,142,null,null,null,null,null,null,null,null,null,null,null,null,null,null,null,null,null,null,null,null,null,null,null,null,null,null,null,null,null,null,null,null,null,null,null,null,null,null,null,null,null,null,null,null,null,null,null,null,null,null,null,null,null,null,null,null,null,null,null,null,null,null,null,null,null,null,null,null,null,null,null,null,null,null,null,null,null,null,null,null,null,null,null,null,null,null,null,null,null,null,null,null,30,31,31,null,1,null,null,null,31,null,31,"(30)","(-)"]
["32(31)","Roy Dahlén","Dynapac",126.36363636363636,null,11,1390,null,0,0,0,0,0,93,119,80,88,158,138,167,115,122,163,147,null,null,null,null,null,null,null,null,null,null,null,null,null,null,null,null,null,null,null,null,null,null,null,null,null,null,null,null,null,null,null,null,null,null,null,null,null,null,null,null,null,null,null,null,null,null,null,null,null,null,null,null,null,null,null,null,null,null,null,null,null,null,null,null,null,null,null,null,null,null,null,null,null,null,null,null,null,null,null,null,null,null,null,null,null,null,null,null,null,null,null,null,null,null,null,null,null,null,null,31,32,32,null,1,null,null,null,32,null,32,"(31)","(-)"]
["33(59)","Fredrik Sandelius","Skärgårdsalliansen",{"$f":"IF(F37>0.5,(G37/F37),0)","v":126.25},null,{"$f":"COUNT(N37:BO37)","v":8},{"$f":"SUM(N37:BO37)","v":1010},null,{"$f":"COUNTIF(BQ37:DR37,2)","v":0},{"$f":"COUNTIF(BQ37:DR37,-2)","v":0},{"$f":"COUNTIF(BQ37:DR37,1)","v":0},{"$f":"COUNTIF(BQ37:DR37,-1)","v":0},{"$f":"IF(F37>0,(I37+K37)/(F37),0)","v":0},84,86,157,108,108,155,196,116,null,null,null,null,null,null,null,null,null,null,null,null,null,null,null,null,null,null,null,null,null,null,null,null,null,null,null,null,null,null,null,null,null,null,null,null,null,null,null,null,null,null,null,null,null,null,null,null,null,null,null,null,null,null,null,null,null,null,null,null,null,null,null,null,null,null,null,null,null,null,null,null,null,null,null,null,null,null,null,null,null,null,null,null,null,null,null,null,null,null,null,null,null,null,null,null,null,null,null,null,null,null,59,33,{"$f":"IF(DX37=1,ROW(33:33),\"-\")","v":33},null,1,null,null,null,33,null,{"$f":"IF(DX37=1,DU37,IF(DX37=\"\",DU37,\"\"))","v":33},{"$f":"IF(DX37=1,\"(\"&DT37&\")\",\"(\"&DV37&\")\")","v":"(59)"},"(-)"]
["34(32)","Dan Hallstan","Växjö Hsk",126,null,9,1134,null,0,0,0,0,0,132,103,86,93,196,128,164,81,151,null,null,null,null,null,null,null,null,null,null,null,null,null,null,null,null,null,null,null,null,null,null,null,null,null,null,null,null,null,null,null,null,null,null,null,null,null,null,null,null,null,null,null,null,null,null,null,null,null,null,null,null,null,null,null,null,null,null,null,null,null,null,null,null,null,null,null,null,null,null,null,null,null,null,null,null,null,null,null,null,null,null,null,null,null,null,null,null,null,null,null,null,null,null,null,null,null,null,null,null,null,32,34,34,null,1,null,null,null,34,null,34,"(32)","(-)"]
["35(33)","Kjell Åkesson","Lanternan",124.66666666666667,null,3,374,null,0,0,0,0,0,120,137,117,null,null,null,null,null,null,null,null,null,null,null,null,null,null,null,null,null,null,null,null,null,null,null,null,null,null,null,null,null,null,null,null,null,null,null,null,null,null,null,null,null,null,null,null,null,null,null,null,null,null,null,null,null,null,null,null,null,null,null,null,null,null,null,null,null,null,null,null,null,null,null,null,null,null,null,null,null,null,null,null,null,null,null,null,null,null,null,null,null,null,null,null,null,null,null,null,null,null,null,null,null,null,null,null,null,null,null,33,35,35,null,1,null,null,null,35,null,35,"(33)","(-)"]
["36(34)","Klara Larsson","Värends Hsk",123.5,null,6,741,null,0,0,0,0,0,75,201,109,106,155,95,null,null,null,null,null,null,null,null,null,null,null,null,null,null,null,null,null,null,null,null,null,null,null,null,null,null,null,null,null,null,null,null,null,null,null,null,null,null,null,null,null,null,null,null,null,null,null,null,null,null,null,null,null,null,null,null,null,null,null,null,null,null,null,null,null,null,null,null,null,null,null,null,null,null,null,null,null,null,null,null,null,null,null,null,null,null,null,null,null,null,null,null,null,null,null,null,null,null,null,null,null,null,null,null,34,36,36,null,1,null,null,null,36,null,36,"(34)","(-)"]
["37(36)","Janne Johansson","Tingsryd",123,null,3,369,null,0,0,0,0,0,104,171,94,null,null,null,null,null,null,null,null,null,null,null,null,null,null,null,null,null,null,null,null,null,null,null,null,null,null,null,null,null,null,null,null,null,null,null,null,null,null,null,null,null,null,null,null,null,null,null,null,null,null,null,null,null,null,null,null,null,null,null,null,null,null,null,null,null,null,null,null,null,null,null,null,null,null,null,null,null,null,null,null,null,null,null,null,null,null,null,null,null,null,null,null,null,null,null,null,null,null,null,null,null,null,null,null,null,null,null,36,37,37,null,1,null,null,null,37,null,37,"(36)","(-)"]
["38(37)","Tomas Lindahl","Korpen Åseda",122.86666666666666,null,15,1843,null,0,0,0,0,0,97,119,115,128,153,107,96,107,98,225,188,84,100,112,114,null,null,null,null,null,null,null,null,null,null,null,null,null,null,null,null,null,null,null,null,null,null,null,null,null,null,null,null,null,null,null,null,null,null,null,null,null,null,null,null,null,null,null,null,null,null,null,null,null,null,null,null,null,null,null,null,null,null,null,null,null,null,null,null,null,null,null,null,null,null,null,null,null,null,null,null,null,null,null,null,null,null,null,null,null,null,null,null,null,null,null,null,null,null,null,37,38,38,null,1,null,null,null,38,null,38,"(37)","(-)"]
["39(38)","Andreas Gundersen","Skärgårdsalliansen",122.66666666666667,null,3,368,null,0,0,0,0,0,131,89,148,null,null,null,null,null,null,null,null,null,null,null,null,null,null,null,null,null,null,null,null,null,null,null,null,null,null,null,null,null,null,null,null,null,null,null,null,null,null,null,null,null,null,null,null,null,null,null,null,null,null,null,null,null,null,null,null,null,null,null,null,null,null,null,null,null,null,null,null,null,null,null,null,null,null,null,null,null,null,null,null,null,null,null,null,null,null,null,null,null,null,null,null,null,null,null,null,null,null,null,null,null,null,null,null,null,null,null,38,{"$f":"IF(AND(D43=D42,D43=D41,D43=D40,D43=D39),ROW(35:35),IF(AND(D43=D42,D43=D41,D43=D40),ROW(36:36),IF(AND(D43=D42,D43=D41),ROW(37:37),IF(D43=D42,ROW(38:38),IF(D43>1,ROW(39:39),\"-\")))))","v":39},39,null,1,null,null,null,39,null,39,"(38)","(-)"]
["40(35)","Malira Eriksson","Skärgårdsalliansen",122.125,null,8,977,null,0,0,0,0,0,110,112,120,163,112,95,116,149,null,null,null,null,null,null,null,null,null,null,null,null,null,null,null,null,null,null,null,null,null,null,null,null,null,null,null,null,null,null,null,null,null,null,null,null,null,null,null,null,null,null,null,null,null,null,null,null,null,null,null,null,null,null,null,null,null,null,null,null,null,null,null,null,null,null,null,null,null,null,null,null,null,null,null,null,null,null,null,null,null,null,null,null,null,null,null,null,null,null,null,null,null,null,null,null,null,null,null,null,null,null,35,40,40,null,1,null,null,null,40,null,40,"(35)","(-)"]
["41(40)","Kristian Jältsäter","Skärgårdsalliansen",121.875,null,8,975,null,0,0,0,0,0,84,123,129,131,190,152,71,95,null,null,null,null,null,null,null,null,null,null,null,null,null,null,null,null,null,null,null,null,null,null,null,null,null,null,null,null,null,null,null,null,null,null,null,null,null,null,null,null,null,null,null,null,null,null,null,null,null,null,null,null,null,null,null,null,null,null,null,null,null,null,null,null,null,null,null,null,null,null,null,null,null,null,null,null,null,null,null,null,null,null,null,null,null,null,null,null,null,null,null,null,null,null,null,null,null,null,null,null,null,null,40,41,41,null,1,null,null,null,41,null,41,"(40)","(-)"]
["42(39)","Göran Olofsson","Korpen Nybro",121.64285714285714,null,14,1703,null,0,0,0,0,0,95,153,84,117,94,169,142,121,101,159,106,153,90,119,null,null,null,null,null,null,null,null,null,null,null,null,null,null,null,null,null,null,null,null,null,null,null,null,null,null,null,null,null,null,null,null,null,null,null,null,null,null,null,null,null,null,null,null,null,null,null,null,null,null,null,null,null,null,null,null,null,null,null,null,null,null,null,null,null,null,null,null,null,null,null,null,null,null,null,null,null,null,null,null,null,null,null,null,null,null,null,null,null,null,null,null,null,null,null,null,39,42,42,null,1,null,null,null,42,null,42,"(39)","(-)"]
["43(41)","Åke Bergkvist","Tingsryd",120.875,null,8,967,null,0,0,0,0,0,97,164,101,97,117,166,116,109,null,null,null,null,null,null,null,null,null,null,null,null,null,null,null,null,null,null,null,null,null,null,null,null,null,null,null,null,null,null,null,null,null,null,null,null,null,null,null,null,null,null,null,null,null,null,null,null,null,null,null,null,null,null,null,null,null,null,null,null,null,null,null,null,null,null,null,null,null,null,null,null,null,null,null,null,null,null,null,null,null,null,null,null,null,null,null,null,null,null,null,null,null,null,null,null,null,null,null,null,null,null,41,43,43,null,1,null,null,null,43,null,43,"(41)","(-)"]
["44(42)","Maire Johansson","Växjö Hsk",120.85714285714286,null,7,846,null,0,0,0,0,0,103,137,133,137,83,176,77,null,null,null,null,null,null,null,null,null,null,null,null,null,null,null,null,null,null,null,null,null,null,null,null,null,null,null,null,null,null,null,null,null,null,null,null,null,null,null,null,null,null,null,null,null,null,null,null,null,null,null,null,null,null,null,null,null,null,null,null,null,null,null,null,null,null,null,null,null,null,null,null,null,null,null,null,null,null,null,null,null,null,null,null,null,null,null,null,null,null,null,null,null,null,null,null,null,null,null,null,null,null,null,42,44,44,null,1,null,null,null,52,null,44,"(42)","(-)"]
["45(43)","Hans Johansson","Tingsryd",120.09090909090909,null,11,1321,null,0,0,0,0,0,88,110,134,116,167,99,157,157,61,88,144,null,null,null,null,null,null,null,null,null,null,null,null,null,null,null,null,null,null,null,null,null,null,null,null,null,null,null,null,null,null,null,null,null,null,null,null,null,null,null,null,null,null,null,null,null,null,null,null,null,null,null,null,null,null,null,null,null,null,null,null,null,null,null,null,null,null,null,null,null,null,null,null,null,null,null,null,null,null,null,null,null,null,null,null,null,null,null,null,null,null,null,null,null,null,null,null,null,null,null,43,45,45,null,1,null,null,null,44,null,45,"(43)","(-)"]
["46(44)","Björn Gabrielsson","Vaxholm Hsk",119.2,null,10,1192,null,0,0,0,0,0,118,107,137,123,90,151,82,159,128,97,null,null,null,null,null,null,null,null,null,null,null,null,null,null,null,null,null,null,null,null,null,null,null,null,null,null,null,null,null,null,null,null,null,null,null,null,null,null,null,null,null,null,null,null,null,null,null,null,null,null,null,null,null,null,null,null,null,null,null,null,null,null,null,null,null,null,null,null,null,null,null,null,null,null,null,null,null,null,null,null,null,null,null,null,null,null,null,null,null,null,null,null,null,null,null,null,null,null,null,null,44,46,46,null,1,null,null,null,45,null,46,"(44)","(-)"]
["47(45)","Erik Smiding","Vaxholm Hsk",118.6,null,10,1186,null,0,0,0,0,0,126,126,79,78,186,119,93,123,129,127,null,null,null,null,null,null,null,null,null,null,null,null,null,null,null,null,null,null,null,null,null,null,null,null,null,null,null,null,null,null,null,null,null,null,null,null,null,null,null,null,null,null,null,null,null,null,null,null,null,null,null,null,null,null,null,null,null,null,null,null,null,null,null,null,null,null,null,null,null,null,null,null,null,null,null,null,null,null,null,null,null,null,null,null,null,null,null,null,null,null,null,null,null,null,null,null,null,null,null,null,45,47,47,null,1,null,null,null,46,null,47,"(45)","(-)"]
["48(46)","Marianne Karlsson","Jämjö Hsk",117.8,null,5,589,null,0,0,0,0,0,107,149,109,91,133,null,null,null,null,null,null,null,null,null,null,null,null,null,null,null,null,null,null,null,null,null,null,null,null,null,null,null,null,null,null,null,null,null,null,null,null,null,null,null,null,null,null,null,null,null,null,null,null,null,null,null,null,null,null,null,null,null,null,null,null,null,null,null,null,null,null,null,null,null,null,null,null,null,null,null,null,null,null,null,null,null,null,null,null,null,null,null,null,null,null,null,null,null,null,null,null,null,null,null,null,null,null,null,null,null,46,48,48,null,1,null,null,null,47,null,48,"(46)","(-)"]
["49(47)","Ingegerd Pettersson","Lanternan",116.6,null,15,1749,null,0,0,0,0,0,116,142,100,91,176,142,85,119,129,65,115,109,111,144,105,null,null,null,null,null,null,null,null,null,null,null,null,null,null,null,null,null,null,null,null,null,null,null,null,null,null,null,null,null,null,null,null,null,null,null,null,null,null,null,null,null,null,null,null,null,null,null,null,null,null,null,null,null,null,null,null,null,null,null,null,null,null,null,null,null,null,null,null,null,null,null,null,null,null,null,null,null,null,null,null,null,null,null,null,null,null,null,null,null,null,null,null,null,null,null,47,49,49,null,1,null,null,null,48,null,49,"(47)","(-)"]
["50(48)","Jan Petersson","Lanternan",116.46666666666667,null,15,1747,null,0,0,0,0,0,80,167,108,123,98,136,90,102,139,112,78,130,76,150,158,null,null,null,null,null,null,null,null,null,null,null,null,null,null,null,null,null,null,null,null,null,null,null,null,null,null,null,null,null,null,null,null,null,null,null,null,null,null,null,null,null,null,null,null,null,null,null,null,null,null,null,null,null,null,null,null,null,null,null,null,null,null,null,null,null,null,null,null,null,null,null,null,null,null,null,null,null,null,null,null,null,null,null,null,null,null,null,null,null,null,null,null,null,null,null,48,50,50,null,1,null,null,null,49,null,50,"(48)","(-)"]
["51(49)","Bengt Fabbeke","Dynapac",116.375,null,16,1862,null,0,0,0,0,0,125,92,132,148,153,118,48,140,202,68,136,137,115,64,86,98,null,null,null,null,null,null,null,null,null,null,null,null,null,null,null,null,null,null,null,null,null,null,null,null,null,null,null,null,null,null,null,null,null,null,null,null,null,null,null,null,null,null,null,null,null,null,null,null,null,null,null,null,null,null,null,null,null,null,null,null,null,null,null,null,null,null,null,null,null,null,null,null,null,null,null,null,null,null,null,null,null,null,null,null,null,null,null,null,null,null,null,null,null,null,49,51,51,null,1,null,null,null,50,null,51,"(49)","(-)"]
["52(50)","Björn Landberg","Vaxholm Hsk",116.16666666666667,null,12,1394,null,0,0,0,0,0,108,83,122,133,88,109,67,105,165,93,153,168,null,null,null,null,null,null,null,null,null,null,null,null,null,null,null,null,null,null,null,null,null,null,null,null,null,null,null,null,null,null,null,null,null,null,null,null,null,null,null,null,null,null,null,null,null,null,null,null,null,null,null,null,null,null,null,null,null,null,null,null,null,null,null,null,null,null,null,null,null,null,null,null,null,null,null,null,null,null,null,null,null,null,null,null,null,null,null,null,null,null,null,null,null,null,null,null,null,null,50,52,52,null,1,null,null,null,51,null,52,"(50)","(-)"]
["53(51)","Pascal Letter","Skärgårdsalliansen",116,null,3,348,null,0,0,0,0,0,103,133,112,null,null,null,null,null,null,null,null,null,null,null,null,null,null,null,null,null,null,null,null,null,null,null,null,null,null,null,null,null,null,null,null,null,null,null,null,null,null,null,null,null,null,null,null,null,null,null,null,null,null,null,null,null,null,null,null,null,null,null,null,null,null,null,null,null,null,null,null,null,null,null,null,null,null,null,null,null,null,null,null,null,null,null,null,null,null,null,null,null,null,null,null,null,null,null,null,null,null,null,null,null,null,null,null,null,null,null,51,53,53,null,1,null,null,null,53,null,53,"(51)","(-)"]
["54(52)","Dan Madayang","Korpen Åseda",115.42857142857143,null,14,1616,null,0,0,0,0,0,159,102,87,163,108,101,168,91,86,101,99,104,91,156,null,null,null,null,null,null,null,null,null,null,null,null,null,null,null,null,null,null,null,null,null,null,null,null,null,null,null,null,null,null,null,null,null,null,null,null,null,null,null,null,null,null,null,null,null,null,null,null,null,null,null,null,null,null,null,null,null,null,null,null,null,null,null,null,null,null,null,null,null,null,null,null,null,null,null,null,null,null,null,null,null,null,null,null,null,null,null,null,null,null,null,null,null,null,null,null,52,54,54,null,1,null,null,null,109,null,54,"(52)","(-)"]
["55(53)","Göran Mårtensson","Jämjö Hsk",114.07692307692308,null,13,1483,null,0,0,0,0,0,133,173,82,142,88,113,135,90,85,105,105,171,61,null,null,null,null,null,null,null,null,null,null,null,null,null,null,null,null,null,null,null,null,null,null,null,null,null,null,null,null,null,null,null,null,null,null,null,null,null,null,null,null,null,null,null,null,null,null,null,null,null,null,null,null,null,null,null,null,null,null,null,null,null,null,null,null,null,null,null,null,null,null,null,null,null,null,null,null,null,null,null,null,null,null,null,null,null,null,null,null,null,null,null,null,null,null,null,null,null,53,55,55,null,1,null,null,null,54,null,55,"(53)","(-)"]
["56(54)","Lars Johannesson","Jämjö Hsk",113.83333333333333,null,12,1366,null,0,0,0,0,0,141,137,37,146,111,78,93,156,145,100,102,120,null,null,null,null,null,null,null,null,null,null,null,null,null,null,null,null,null,null,null,null,null,null,null,null,null,null,null,null,null,null,null,null,null,null,null,null,null,null,null,null,null,null,null,null,null,null,null,null,null,null,null,null,null,null,null,null,null,null,null,null,null,null,null,null,null,null,null,null,null,null,null,null,null,null,null,null,null,null,null,null,null,null,null,null,null,null,null,null,null,null,null,null,null,null,null,null,null,null,54,56,56,null,1,null,null,null,55,null,56,"(54)","(-)"]
["57(55)","Inge Skoglöw","Jämjö Hsk",111.66666666666667,null,9,1005,null,0,0,0,0,0,142,109,93,110,121,138,68,116,108,null,null,null,null,null,null,null,null,null,null,null,null,null,null,null,null,null,null,null,null,null,null,null,null,null,null,null,null,null,null,null,null,null,null,null,null,null,null,null,null,null,null,null,null,null,null,null,null,null,null,null,null,null,null,null,null,null,null,null,null,null,null,null,null,null,null,null,null,null,null,null,null,null,null,null,null,null,null,null,null,null,null,null,null,null,null,null,null,null,null,null,null,null,null,null,null,null,null,null,null,null,55,57,57,null,1,null,null,null,56,null,57,"(55)","(-)"]
["58(57)","Nathalie Sundahl","Carlskrona",109.6,null,5,548,null,0,0,0,0,0,77,104,106,160,101,null,null,null,null,null,null,null,null,null,null,null,null,null,null,null,null,null,null,null,null,null,null,null,null,null,null,null,null,null,null,null,null,null,null,null,null,null,null,null,null,null,null,null,null,null,null,null,null,null,null,null,null,null,null,null,null,null,null,null,null,null,null,null,null,null,null,null,null,null,null,null,null,null,null,null,null,null,null,null,null,null,null,null,null,null,null,null,null,null,null,null,null,null,null,null,null,null,null,null,null,null,null,null,null,null,57,58,58,null,1,null,null,null,57,null,58,"(57)","(-)"]
["59(-)","Martin Anjou","Skärgårdsalliansen",109,null,3,327,"x",0,0,0,0,0,100,128,99,null,null,null,null,null,null,null,null,null,null,null,null,null,null,null,null,null,null,null,null,null,null,null,null,null,null,null,null,null,null,null,null,null,null,null,null,null,null,null,null,null,null,null,null,null,null,null,null,null,null,null,null,null,null,null,null,null,null,null,null,null,null,null,null,null,null,null,null,null,null,null,null,null,null,null,null,null,null,null,null,null,null,null,null,null,null,null,null,null,null,null,null,null,null,null,null,null,null,null,null,null,null,null,null,null,null,null,95,59,59,null,1,null,null,null,58,null,59,"(95)","(-)"]
["60(58)","Sandra Rydell","Värends Hsk",108.76923076923077,null,13,1414,null,0,0,0,0,0,79,119,105,96,114,118,70,129,122,114,140,102,106,null,null,null,null,null,null,null,null,null,null,null,null,null,null,null,null,null,null,null,null,null,null,null,null,null,null,null,null,null,null,null,null,null,null,null,null,null,null,null,null,null,null,null,null,null,null,null,null,null,null,null,null,null,null,null,null,null,null,null,null,null,null,null,null,null,null,null,null,null,null,null,null,null,null,null,null,null,null,null,null,null,null,null,null,null,null,null,null,null,null,null,null,null,null,null,null,null,58,60,60,null,1,null,null,null,59,null,60,"(58)","(-)"]
["61(60)","Ronny Lundberg","Lanternan",107.81818181818181,null,11,1186,null,0,0,0,0,0,92,126,48,115,88,150,121,113,103,109,121,null,null,null,null,null,null,null,null,null,null,null,null,null,null,null,null,null,null,null,null,null,null,null,null,null,null,null,null,null,null,null,null,null,null,null,null,null,null,null,null,null,null,null,null,null,null,null,null,null,null,null,null,null,null,null,null,null,null,null,null,null,null,null,null,null,null,null,null,null,null,null,null,null,null,null,null,null,null,null,null,null,null,null,null,null,null,null,null,null,null,null,null,null,null,null,null,null,null,null,60,61,61,null,1,null,null,null,60,null,61,"(60)","(-)"]
[{"$f":"IF(H66=\"x\",DU66&\" (\"&EF66&\")\",DU66&\" (\"&DT66&\")\")","v":"62 (56)"},"Bo Petersson","Korpen Nybro",107.5,null,14,1505,null,0,0,0,0,0,118,110,93,73,103,48,112,156,83,167,152,104,134,52,null,null,null,null,null,null,null,null,null,null,null,null,null,null,null,null,null,null,null,null,null,null,null,null,null,null,null,null,null,null,null,null,null,null,null,null,null,null,null,null,null,null,null,null,null,null,null,null,null,null,null,null,null,null,null,null,null,null,null,null,null,null,null,null,null,null,null,null,null,null,null,null,null,null,null,null,null,null,null,null,null,null,null,null,null,null,null,null,null,null,null,null,null,null,null,null,56,62,62,null,1,null,null,null,61,null,62,"(56)","(-)"]
["63 (61)","Bengt Andersson","Växjö Hsk",107.44444444444444,null,9,967,null,0,0,0,0,0,118,128,106,103,126,69,125,94,98,null,null,null,null,null,null,null,null,null,null,null,null,null,null,null,null,null,null,null,null,null,null,null,null,null,null,null,null,null,null,null,null,null,null,null,null,null,null,null,null,null,null,null,null,null,null,null,null,null,null,null,null,null,null,null,null,null,null,null,null,null,null,null,null,null,null,null,null,null,null,null,null,null,null,null,null,null,null,null,null,null,null,null,null,null,null,null,null,null,null,null,null,null,null,null,null,null,null,null,null,null,61,63,63,null,1,null,null,null,62,null,63,"(61)","(-)"]
["64 (62)","Ann-Marie Larsson","Tingsryd",107,null,3,321,null,0,0,0,0,0,136,93,92,null,null,null,null,null,null,null,null,null,null,null,null,null,null,null,null,null,null,null,null,null,null,null,null,null,null,null,null,null,null,null,null,null,null,null,null,null,null,null,null,null,null,null,null,null,null,null,null,null,null,null,null,null,null,null,null,null,null,null,null,null,null,null,null,null,null,null,null,null,null,null,null,null,null,null,null,null,null,null,null,null,null,null,null,null,null,null,null,null,null,null,null,null,null,null,null,null,null,null,null,null,null,null,null,null,null,null,62,64,64,null,1,null,null,null,64,null,64,"(62)","(-)"]
["65 (63)","Martin Antic","Värends Hsk",{"$f":"IF(F69>0.5,(G69/F69),0)","v":106},null,{"$f":"COUNT(N69:BO69)","v":3},{"$f":"SUM(N69:BO69)","v":318},null,{"$f":"COUNTIF(BQ69:DR69,2)","v":0},{"$f":"COUNTIF(BQ69:DR69,-2)","v":0},{"$f":"COUNTIF(BQ69:DR69,1)","v":0},{"$f":"COUNTIF(BQ69:DR69,-1)","v":0},{"$f":"IF(F69>0,(I69+K69)/(F69),0)","v":0},71,134,113,null,null,null,null,null,null,null,null,null,null,null,null,null,null,null,null,null,null,null,null,null,null,null,null,null,null,null,null,null,null,null,null,null,null,null,null,null,null,null,null,null,null,null,null,null,null,null,null,null,null,null,null,null,null,null,null,null,null,null,null,null,null,null,null,null,null,null,null,null,null,null,null,null,null,null,null,null,null,null,null,null,null,null,null,null,null,null,null,null,null,null,null,null,null,null,null,null,null,null,null,null,null,null,null,null,null,null,63,65,{"$f":"IF(DX69=1,ROW(65:65),\"-\")","v":65},null,1,null,null,null,65,null,{"$f":"IF(DX69=1,DU69,IF(DX69=\"\",DU69,\"\"))","v":65},{"$f":"IF(DX69=1,\"(\"&DT69&\")\",\"(\"&DV69&\")\")","v":"(63)"},"(-)"]
[{"$f":"IF(H70=\"x\",DU70&\" (\"&EF70&\")\",DU70&\" (\"&DT70&\")\")","v":"65 (63)"},"Kerstin Svensson","Växjö Hsk",106,null,2,212,null,0,0,0,0,0,84,128,null,null,null,null,null,null,null,null,null,null,null,null,null,null,null,null,null,null,null,null,null,null,null,null,null,null,null,null,null,null,null,null,null,null,null,null,null,null,null,null,null,null,null,null,null,null,null,null,null,null,null,null,null,null,null,null,null,null,null,null,null,null,null,null,null,null,null,null,null,null,null,null,null,null,null,null,null,null,null,null,null,null,null,null,null,null,null,null,null,null,null,null,null,null,null,null,null,null,null,null,null,null,null,null,null,null,null,null,63,65,66,null,1,null,null,null,66,null,65,"(63)","(-)"]
["67 (65)","Lisbeth Blihd","Lanternan",105.625,null,8,845,null,0,0,0,0,0,136,75,92,130,122,99,109,82,null,null,null,null,null,null,null,null,null,null,null,null,null,null,null,null,null,null,null,null,null,null,null,null,null,null,null,null,null,null,null,null,null,null,null,null,null,null,null,null,null,null,null,null,null,null,null,null,null,null,null,null,null,null,null,null,null,null,null,null,null,null,null,null,null,null,null,null,null,null,null,null,null,null,null,null,null,null,null,null,null,null,null,null,null,null,null,null,null,null,null,null,null,null,null,null,null,null,null,null,null,null,65,67,67,null,1,null,null,null,67,null,67,"(65)","(-)"]
["68 (66)","Christian Balsiger","Värends Hsk",104.90909090909091,null,11,1154,null,0,0,0,0,0,40,89,108,134,101,82,142,66,113,140,139,null,null,null,null,null,null,null,null,null,null,null,null,null,null,null,null,null,null,null,null,null,null,null,null,null,null,null,null,null,null,null,null,null,null,null,null,null,null,null,null,null,null,null,null,null,null,null,null,null,null,null,null,null,null,null,null,null,null,null,null,null,null,null,null,null,null,null,null,null,null,null,null,null,null,null,null,null,null,null,null,null,null,null,null,null,null,null,null,null,null,null,null,null,null,null,null,null,null,null,66,68,68,null,1,null,null,null,68,null,68,"(66)","(-)"]
["69 (67)","Daniel Mårtensson","Jämjö Hsk",104.53333333333333,null,15,1568,null,0,0,0,0,0,149,90,104,129,161,97,104,82,104,114,71,82,102,68,111,null,null,null,null,null,null,null,null,null,null,null,null,null,null,null,null,null,null,null,null,null,null,null,null,null,null,null,null,null,null,null,null,null,null,null,null,null,null,null,null,null,null,null,null,null,null,null,null,null,null,null,null,null,null,null,null,null,null,null,null,null,null,null,null,null,null,null,null,null,null,null,null,null,null,null,null,null,null,null,null,null,null,null,null,null,null,null,null,null,null,null,null,null,null,null,67,69,69,null,1,null,null,null,69,null,69,"(67)","(-)"]
["70 (68)","Carina Gneupel","Sibbamåla",104.375,null,8,835,null,0,0,0,0,0,134,153,113,99,102,91,58,85,null,null,null,null,null,null,null,null,null,null,null,null,null,null,null,null,null,null,null,null,null,null,null,null,null,null,null,null,null,null,null,null,null,null,null,null,null,null,null,null,null,null,null,null,null,null,null,null,null,null,null,null,null,null,null,null,null,null,null,null,null,null,null,null,null,null,null,null,null,null,null,null,null,null,null,null,null,null,null,null,null,null,null,null,null,null,null,null,null,null,null,null,null,null,null,null,null,null,null,null,null,null,68,70,70,null,1,null,null,null,70,null,70,"(68)","(-)"]
["71 (69)","Mikael Klaving","Skärgårdsalliansen",102.5,null,2,205,null,0,0,0,0,0,98,107,null,null,null,null,null,null,null,null,null,null,null,null,null,null,null,null,null,null,null,null,null,null,null,null,null,null,null,null,null,null,null,null,null,null,null,null,null,null,null,null,null,null,null,null,null,null,null,null,null,null,null,null,null,null,null,null,null,null,null,null,null,null,null,null,null,null,null,null,null,null,null,null,null,null,null,null,null,null,null,null,null,null,null,null,null,null,null,null,null,null,null,null,null,null,null,null,null,null,null,null,null,null,null,null,null,null,null,null,69,{"$f":"IF(AND(D75=D74,D75=D73,D75=D72,D75=D71),ROW(67:67),IF(AND(D75=D74,D75=D73,D75=D72),ROW(68:68),IF(AND(D75=D74,D75=D73),ROW(69:69),IF(D75=D74,ROW(70:70),IF(D75>1,ROW(71:71),\"-\")))))","v":71},71,null,1,null,null,null,114,null,71,"(69)","(-)"]
["72 (70)","Gilbert Pettersson","Lanternan",101.8,null,5,509,null,0,0,0,0,0,115,112,87,78,117,null,null,null,null,null,null,null,null,null,null,null,null,null,null,null,null,null,null,null,null,null,null,null,null,null,null,null,null,null,null,null,null,null,null,null,null,null,null,null,null,null,null,null,null,null,null,null,null,null,null,null,null,null,null,null,null,null,null,null,null,null,null,null,null,null,null,null,null,null,null,null,null,null,null,null,null,null,null,null,null,null,null,null,null,null,null,null,null,null,null,null,null,null,null,null,null,null,null,null,null,null,null,null,null,null,70,72,72,null,1,null,null,null,71,null,72,"(70)","(-)"]
["73 (71)","Mikael Grönskog","Sibbamåla",100,null,2,200,null,0,0,0,0,0,101,99,null,null,null,null,null,null,null,null,null,null,null,null,null,null,null,null,null,null,null,null,null,null,null,null,null,null,null,null,null,null,null,null,null,null,null,null,null,null,null,null,null,null,null,null,null,null,null,null,null,null,null,null,null,null,null,null,null,null,null,null,null,null,null,null,null,null,null,null,null,null,null,null,null,null,null,null,null,null,null,null,null,null,null,null,null,null,null,null,null,null,null,null,null,null,null,null,null,null,null,null,null,null,null,null,null,null,null,null,71,73,73,null,1,null,null,null,111,null,73,"(71)","(-)"]
["74 (72)","Sebastian Israelsson","Sibbamåla",98.571428571428569,null,7,690,null,0,0,0,0,0,126,109,72,70,161,95,57,null,null,null,null,null,null,null,null,null,null,null,null,null,null,null,null,null,null,null,null,null,null,null,null,null,null,null,null,null,null,null,null,null,null,null,null,null,null,null,null,null,null,null,null,null,null,null,null,null,null,null,null,null,null,null,null,null,null,null,null,null,null,null,null,null,null,null,null,null,null,null,null,null,null,null,null,null,null,null,null,null,null,null,null,null,null,null,null,null,null,null,null,null,null,null,null,null,null,null,null,null,null,null,72,74,74,null,1,null,null,null,72,null,74,"(72)","(-)"]
["75 (73)","Lasse Brincner","Värends Hsk",96.888888888888886,null,9,872,null,0,0,0,0,0,87,81,115,91,99,126,67,77,129,null,null,null,null,null,null,null,null,null,null,null,null,null,null,null,null,null,null,null,null,null,null,null,null,null,null,null,null,null,null,null,null,null,null,null,null,null,null,null,null,null,null,null,null,null,null,null,null,null,null,null,null,null,null,null,null,null,null,null,null,null,null,null,null,null,null,null,null,null,null,null,null,null,null,null,null,null,null,null,null,null,null,null,null,null,null,null,null,null,null,null,null,null,null,null,null,null,null,null,null,null,73,75,75,null,1,null,null,null,73,null,75,"(73)","(-)"]
["76 (74)","Christer Lööv","Värends Hsk",95.75,null,4,383,null,0,0,0,0,0,85,118,91,89,null,null,null,null,null,null,null,null,null,null,null,null,null,null,null,null,null,null,null,null,null,null,null,null,null,null,null,null,null,null,null,null,null,null,null,null,null,null,null,null,null,null,null,null,null,null,null,null,null,null,null,null,null,null,null,null,null,null,null,null,null,null,null,null,null,null,null,null,null,null,null,null,null,null,null,null,null,null,null,null,null,null,null,null,null,null,null,null,null,null,null,null,null,null,null,null,null,null,null,null,null,null,null,null,null,null,74,76,76,null,1,null,null,null,74,null,76,"(74)","(-)"]
["77 (75)","Irene Petersson","Lanternan",95.5,null,4,382,null,0,0,0,0,0,100,104,95,83,null,null,null,null,null,null,null,null,null,null,null,null,null,null,null,null,null,null,null,null,null,null,null,null,null,null,null,null,null,null,null,null,null,null,null,null,null,null,null,null,null,null,null,null,null,null,null,null,null,null,null,null,null,null,null,null,null,null,null,null,null,null,null,null,null,null,null,null,null,null,null,null,null,null,null,null,null,null,null,null,null,null,null,null,null,null,null,null,null,null,null,null,null,null,null,null,null,null,null,null,null,null,null,null,null,null,75,77,77,null,1,null,null,null,75,null,77,"(75)","(-)"]
["78 (76)","Hernan Hernandez","Jämjö Hsk",92.333333333333329,null,9,831,null,0,0,0,0,0,72,159,50,72,110,75,130,108,55,null,null,null,null,null,null,null,null,null,null,null,null,null,null,null,null,null,null,null,null,null,null,null,null,null,null,null,null,null,null,null,null,null,null,null,null,null,null,null,null,null,null,null,null,null,null,null,null,null,null,null,null,null,null,null,null,null,null,null,null,null,null,null,null,null,null,null,null,null,null,null,null,null,null,null,null,null,null,null,null,null,null,null,null,null,null,null,null,null,null,null,null,null,null,null,null,null,null,null,null,null,76,78,78,null,1,null,null,null,76,null,78,"(76)","(-)"]
["78 (76)","Thomas Dahl","Växjö Hsk",92.333333333333329,null,3,277,null,0,0,0,0,0,68,101,108,null,null,null,null,null,null,null,null,null,null,null,null,null,null,null,null,null,null,null,null,null,null,null,null,null,null,null,null,null,null,null,null,null,null,null,null,null,null,null,null,null,null,null,null,null,null,null,null,null,null,null,null,null,null,null,null,null,null,null,null,null,null,null,null,null,null,null,null,null,null,null,null,null,null,null,null,null,null,null,null,null,null,null,null,null,null,null,null,null,null,null,null,null,null,null,null,null,null,null,null,null,null,null,null,null,null,null,76,78,79,null,1,null,null,null,77,null,78,"(76)","(-)"]
["78 (76)","Jonny Åberg","Skärgårdsalliansen",92.333333333333329,null,3,277,null,0,0,0,0,0,92,33,152,null,null,null,null,null,null,null,null,null,null,null,null,null,null,null,null,null,null,null,null,null,null,null,null,null,null,null,null,null,null,null,null,null,null,null,null,null,null,null,null,null,null,null,null,null,null,null,null,null,null,null,null,null,null,null,null,null,null,null,null,null,null,null,null,null,null,null,null,null,null,null,null,null,null,null,null,null,null,null,null,null,null,null,null,null,null,null,null,null,null,null,null,null,null,null,null,null,null,null,null,null,null,null,null,null,null,null,76,78,80,null,1,null,null,null,78,null,78,"(76)","(-)"]
["81 (79)","Anders Bergqvist","Tingsryd",91.625,null,8,733,null,0,0,0,0,0,68,88,101,108,67,115,88,98,null,null,null,null,null,null,null,null,null,null,null,null,null,null,null,null,null,null,null,null,null,null,null,null,null,null,null,null,null,null,null,null,null,null,null,null,null,null,null,null,null,null,null,null,null,null,null,null,null,null,null,null,null,null,null,null,null,null,null,null,null,null,null,null,null,null,null,null,null,null,null,null,null,null,null,null,null,null,null,null,null,null,null,null,null,null,null,null,null,null,null,null,null,null,null,null,null,null,null,null,null,null,79,81,81,null,1,null,null,null,79,null,81,"(79)","(-)"]
["82 (80)","Johan Ullgren","Skärgårdsalliansen",91.5,null,4,366,null,0,0,0,0,0,80,123,69,94,null,null,null,null,null,null,null,null,null,null,null,null,null,null,null,null,null,null,null,null,null,null,null,null,null,null,null,null,null,null,null,null,null,null,null,null,null,null,null,null,null,null,null,null,null,null,null,null,null,null,null,null,null,null,null,null,null,null,null,null,null,null,null,null,null,null,null,null,null,null,null,null,null,null,null,null,null,null,null,null,null,null,null,null,null,null,null,null,null,null,null,null,null,null,null,null,null,null,null,null,null,null,null,null,null,null,80,82,82,null,1,null,null,null,80,null,82,"(80)","(-)"]
["83 (81)","Anders Karlsson","Värends Hsk",90,null,2,180,null,0,0,0,0,0,105,75,null,null,null,null,null,null,null,null,null,null,null,null,null,null,null,null,null,null,null,null,null,null,null,null,null,null,null,null,null,null,null,null,null,null,null,null,null,null,null,null,null,null,null,null,null,null,null,null,null,null,null,null,null,null,null,null,null,null,null,null,null,null,null,null,null,null,null,null,null,null,null,null,null,null,null,null,null,null,null,null,null,null,null,null,null,null,null,null,null,null,null,null,null,null,null,null,null,null,null,null,null,null,null,null,null,null,null,null,81,83,83,null,1,null,null,null,81,null,83,"(81)","(-)"]
["84 (82)","Astrid Martinez","Jämjö Hsk",87.272727272727266,null,11,960,null,0,0,0,0,0,158,82,56,72,92,98,46,116,107,90,43,null,null,null,null,null,null,null,null,null,null,null,null,null,null,null,null,null,null,null,null,null,null,null,null,null,null,null,null,null,null,null,null,null,null,null,null,null,null,null,null,null,null,null,null,null,null,null,null,null,null,null,null,null,null,null,null,null,null,null,null,null,null,null,null,null,null,null,null,null,null,null,null,null,null,null,null,null,null,null,null,null,null,null,null,null,null,null,null,null,null,null,null,null,null,null,null,null,null,null,82,84,84,null,1,null,null,null,82,null,84,"(82)","(-)"]
["85 (83)","Ulrika Rydell","Värends Hsk",85.666666666666671,null,6,514,null,0,0,0,0,0,77,81,58,92,91,115,null,null,null,null,null,null,null,null,null,null,null,null,null,null,null,null,null,null,null,null,null,null,null,null,null,null,null,null,null,null,null,null,null,null,null,null,null,null,null,null,null,null,null,null,null,null,null,null,null,null,null,null,null,null,null,null,null,null,null,null,null,null,null,null,null,null,null,null,null,null,null,null,null,null,null,null,null,null,null,null,null,null,null,null,null,null,null,null,null,null,null,null,null,null,null,null,null,null,null,null,null,null,null,null,83,85,85,null,1,null,null,null,83,null,85,"(83)","(-)"]
["86 (84)","Arne Blidh","Lanternan",77.857142857142861,null,7,545,null,0,0,0,0,0,71,55,55,142,90,101,31,null,null,null,null,null,null,null,null,null,null,null,null,null,null,null,null,null,null,null,null,null,null,null,null,null,null,null,null,null,null,null,null,null,null,null,null,null,null,null,null,null,null,null,null,null,null,null,null,null,null,null,null,null,null,null,null,null,null,null,null,null,null,null,null,null,null,null,null,null,null,null,null,null,null,null,null,null,null,null,null,null,null,null,null,null,null,null,null,null,null,null,null,null,null,null,null,null,null,null,null,null,null,null,84,86,86,null,1,null,null,null,84,null,86,"(84)","(-)"]
["87 (85)","Gunnar Lundbeck","Tingsryd",72.2,null,5,361,null,0,0,0,0,0,122,51,78,38,72,null,null,null,null,null,null,null,null,null,null,null,null,null,null,null,null,null,null,null,null,null,null,null,null,null,null,null,null,null,null,null,null,null,null,null,null,null,null,null,null,null,null,null,null,null,null,null,null,null,null,null,null,null,null,null,null,null,null,null,null,null,null,null,null,null,null,null,null,null,null,null,null,null,null,null,null,null,null,null,null,null,null,null,null,null,null,null,null,null,null,null,null,null,null,null,null,null,null,null,null,null,null,null,null,null,85,87,87,null,1,null,null,null,85,null,87,"(85)","(-)"]
["88 (86)","Hanna Karlberg","Jämjö Hsk",69.375,null,8,555,null,0,0,0,0,0,56,70,57,55,95,110,50,62,null,null,null,null,null,null,null,null,null,null,null,null,null,null,null,null,null,null,null,null,null,null,null,null,null,null,null,null,null,null,null,null,null,null,null,null,null,null,null,null,null,null,null,null,null,null,null,null,null,null,null,null,null,null,null,null,null,null,null,null,null,null,null,null,null,null,null,null,null,null,null,null,null,null,null,null,null,null,null,null,null,null,null,null,null,null,null,null,null,null,null,null,null,null,null,null,null,null,null,null,null,null,86,88,88,null,1,null,null,null,86,null,88,"(86)","(-)"]
["89 (87)","Göran Örjebo","Skärgårdsalliansen",65,null,3,195,null,0,0,0,0,0,82,77,36,null,null,null,null,null,null,null,null,null,null,null,null,null,null,null,null,null,null,null,null,null,null,null,null,null,null,null,null,null,null,null,null,null,null,null,null,null,null,null,null,null,null,null,null,null,null,null,null,null,null,null,null,null,null,null,null,null,null,null,null,null,null,null,null,null,null,null,null,null,null,null,null,null,null,null,null,null,null,null,null,null,null,null,null,null,null,null,null,null,null,null,null,null,null,null,null,null,null,null,null,null,null,null,null,null,null,null,87,89,89,null,1,null,null,null,87,null,89,"(87)","(-)"]
["90 (88)","Karin Gullbrand","Värends Hsk",64,null,2,128,null,0,0,0,0,0,80,48,null,null,null,null,null,null,null,null,null,null,null,null,null,null,null,null,null,null,null,null,null,null,null,null,null,null,null,null,null,null,null,null,null,null,null,null,null,null,null,null,null,null,null,null,null,null,null,null,null,null,null,null,null,null,null,null,null,null,null,null,null,null,null,null,null,null,null,null,null,null,null,null,null,null,null,null,null,null,null,null,null,null,null,null,null,null,null,null,null,null,null,null,null,null,null,null,null,null,null,null,null,null,null,null,null,null,null,null,88,90,90,null,1,null,null,null,88,null,90,"(88)","(-)"]
["91 (89)","Thomas Marklund","Värends Hsk",59.5,null,2,119,null,0,0,0,0,0,55,64,null,null,null,null,null,null,null,null,null,null,null,null,null,null,null,null,null,null,null,null,null,null,null,null,null,null,null,null,null,null,null,null,null,null,null,null,null,null,null,null,null,null,null,null,null,null,null,null,null,null,null,null,null,null,null,null,null,null,null,null,null,null,null,null,null,null,null,null,null,null,null,null,null,null,null,null,null,null,null,null,null,null,null,null,null,null,null,null,null,null,null,null,null,null,null,null,null,null,null,null,null,null,null,null,null,null,null,null,89,91,91,null,1,null,null,null,89,null,91,"(89)","(-)"]
["92 (90)","Roger Eriksson","Skärgårdsalliansen",52.5,null,2,105,null,0,0,0,0,0,17,88,null,null,null,null,null,null,null,null,null,null,null,null,null,null,null,null,null,null,null,null,null,null,null,null,null,null,null,null,null,null,null,null,null,null,null,null,null,null,null,null,null,null,null,null,null,null,null,null,null,null,null,null,null,null,null,null,null,null,null,null,null,null,null,null,null,null,null,null,null,null,null,null,null,null,null,null,null,null,null,null,null,null,null,null,null,null,null,null,null,null,null,null,null,null,null,null,null,null,null,null,null,null,null,null,null,null,null,null,90,92,92,null,1,null,null,null,112,null,92,"(90)","(-)"]
["93 (91)","Roland Sjöstrand","Tingsryd",47.6,null,5,238,null,0,0,0,0,0,0,36,70,79,53,null,null,null,null,null,null,null,null,null,null,null,null,null,null,null,null,null,null,null,null,null,null,null,null,null,null,null,null,null,null,null,null,null,null,null,null,null,null,null,null,null,null,null,null,null,null,null,null,null,null,null,null,null,null,null,null,null,null,null,null,null,null,null,null,null,null,null,null,null,null,null,null,null,null,null,null,null,null,null,null,null,null,null,null,null,null,null,null,null,null,null,null,null,null,null,null,null,null,null,null,null,null,null,null,null,91,93,93,null,1,null,null,null,90,null,93,"(91)","(-)"]
["94 (92)","Hanna Karlsson","Jämjö Hsk",31.666666666666668,null,3,95,null,0,0,0,0,0,7,57,31,null,null,null,null,null,null,null,null,null,null,null,null,null,null,null,null,null,null,null,null,null,null,null,null,null,null,null,null,null,null,null,null,null,null,null,null,null,null,null,null,null,null,null,null,null,null,null,null,null,null,null,null,null,null,null,null,null,null,null,null,null,null,null,null,null,null,null,null,null,null,null,null,null,null,null,null,null,null,null,null,null,null,null,null,null,null,null,null,null,null,null,null,null,null,null,null,null,null,null,null,null,null,null,null,null,null,null,92,94,94,null,1,null,null,null,91,null,94,"(92)","(-)"]
["- ((-))","Gebriela Kostantinos","Korpen Åseda",0,null,0,0,"x",0,0,0,0,0,null,null,null,null,null,null,null,null,null,null,null,null,null,null,null,null,null,null,null,null,null,null,null,null,null,null,null,null,null,null,null,null,null,null,null,null,null,null,null,null,null,null,null,null,null,null,null,null,null,null,null,null,null,null,null,null,null,null,null,null,null,null,null,null,null,null,null,null,null,null,null,null,null,null,null,null,null,null,null,null,null,null,null,null,null,null,null,null,null,null,null,null,null,null,null,null,null,null,null,null,null,null,null,null,null,null,null,null,null,null,"-","-",95,null,1,null,null,null,92,null,"-","(-)","(-)"]
["95 ((-))","Fredrik Lundin","Lanternan",0,null,0,0,"x",0,0,0,0,0,null,null,null,null,null,null,null,null,null,null,null,null,null,null,null,null,null,null,null,null,null,null,null,null,null,null,null,null,null,null,null,null,null,null,null,null,null,null,null,null,null,null,null,null,null,null,null,null,null,null,null,null,null,null,null,null,null,null,null,null,null,null,null,null,null,null,null,null,null,null,null,null,null,null,null,null,null,null,null,null,null,null,null,null,null,null,null,null,null,null,null,null,null,null,null,null,null,null,null,null,null,null,null,null,null,null,null,null,null,null,"-",95,96,null,1,null,null,null,63,null,95,"(-)","(-)"]
["95 ((-))","Emil Rehn","Korpen Åseda",{"$f":"IF(F101>0.5,(G101/F101),0)","v":0},null,{"$f":"COUNT(N101:BO101)","v":0},{"$f":"SUM(N101:BO101)","v":0},"x",{"$f":"COUNTIF(BQ101:DR101,2)","v":0},{"$f":"COUNTIF(BQ101:DR101,-2)","v":0},{"$f":"COUNTIF(BQ101:DR101,1)","v":0},{"$f":"COUNTIF(BQ101:DR101,-1)","v":0},{"$f":"IF(F101>0,(I101+K101)/(F101),0)","v":0},null,null,null,null,null,null,null,null,null,null,null,null,null,null,null,null,null,null,null,null,null,null,null,null,null,null,null,null,null,null,null,null,null,null,null,null,null,null,null,null,null,null,null,null,null,null,null,null,null,null,null,null,null,null,null,null,null,null,null,null,null,null,null,null,null,null,null,null,null,null,null,null,null,null,null,null,null,null,null,null,null,null,null,null,null,null,null,null,null,null,null,null,null,null,null,null,null,null,null,null,null,null,null,null,null,null,null,null,null,null,96,95,{"$f":"IF(DX101=1,ROW(97:97),\"-\")","v":97},null,1,null,null,null,93,null,{"$f":"IF(DX101=1,DU101,IF(DX101=\"\",DU101,\"\"))","v":95},{"$f":"IF(DX101=1,\"(\"&DT101&\")\",\"(\"&DV101&\")\")","v":"(96)"},"(-)"]
["95 ((-))","Thomas Diedrichs","Vaxholm Hsk",0,null,0,0,"x",0,0,0,0,0,null,null,null,null,null,null,null,null,null,null,null,null,null,null,null,null,null,null,null,null,null,null,null,null,null,null,null,null,null,null,null,null,null,null,null,null,null,null,null,null,null,null,null,null,null,null,null,null,null,null,null,null,null,null,null,null,null,null,null,null,null,null,null,null,null,null,null,null,null,null,null,null,null,null,null,null,null,null,null,null,null,null,null,null,null,null,null,null,null,null,null,null,null,null,null,null,null,null,null,null,null,null,null,null,null,null,null,null,null,null,96,95,98,null,1,null,null,null,94,null,95,"(96)","(-)"]
["95 ((-))","Christoffer Cederholm","Tingsryd",0,null,0,0,"x",0,0,0,0,0,null,null,null,null,null,null,null,null,null,null,null,null,null,null,null,null,null,null,null,null,null,null,null,null,null,null,null,null,null,null,null,null,null,null,null,null,null,null,null,null,null,null,null,null,null,null,null,null,null,null,null,null,null,null,null,null,null,null,null,null,null,null,null,null,null,null,null,null,null,null,null,null,null,null,null,null,null,null,null,null,null,null,null,null,null,null,null,null,null,null,null,null,null,null,null,null,null,null,null,null,null,null,null,null,null,null,null,null,null,null,96,95,99,null,1,null,null,null,95,null,95,"(96)","(-)"]
["96 ((-))","Maj-Britt Jarl","Växjö Hsk",0,null,0,0,"x",0,0,0,0,0,null,null,null,null,null,null,null,null,null,null,null,null,null,null,null,null,null,null,null,null,null,null,null,null,null,null,null,null,null,null,null,null,null,null,null,null,null,null,null,null,null,null,null,null,null,null,null,null,null,null,null,null,null,null,null,null,null,null,null,null,null,null,null,null,null,null,null,null,null,null,null,null,null,null,null,null,null,null,null,null,null,null,null,null,null,null,null,null,null,null,null,null,null,null,null,null,null,null,null,null,null,null,null,null,null,null,null,null,null,null,96,96,100,null,1,null,null,null,96,null,96,"(96)","(-)"]
["97 ((-))","Björn Hansson","Vaxholm Hsk",0,null,0,0,"x",0,0,0,0,0,null,null,null,null,null,null,null,null,null,null,null,null,null,null,null,null,null,null,null,null,null,null,null,null,null,null,null,null,null,null,null,null,null,null,null,null,null,null,null,null,null,null,null,null,null,null,null,null,null,null,null,null,null,null,null,null,null,null,null,null,null,null,null,null,null,null,null,null,null,null,null,null,null,null,null,null,null,null,null,null,null,null,null,null,null,null,null,null,null,null,null,null,null,null,null,null,null,null,null,null,null,null,null,null,null,null,null,null,null,null,97,97,101,null,1,null,null,null,97,null,97,"(97)","(-)"]
["98 ((-))","Bela Bodi","Växjö Hsk",0,null,0,0,"x",0,0,0,0,0,null,null,null,null,null,null,null,null,null,null,null,null,null,null,null,null,null,null,null,null,null,null,null,null,null,null,null,null,null,null,null,null,null,null,null,null,null,null,null,null,null,null,null,null,null,null,null,null,null,null,null,null,null,null,null,null,null,null,null,null,null,null,null,null,null,null,null,null,null,null,null,null,null,null,null,null,null,null,null,null,null,null,null,null,null,null,null,null,null,null,null,null,null,null,null,null,null,null,null,null,null,null,null,null,null,null,null,null,null,null,98,98,102,null,1,null,null,null,98,null,98,"(98)","(-)"]
["99 ((-))","Christer Blomgren","Lanternan",0,null,0,0,"x",0,0,0,0,0,null,null,null,null,null,null,null,null,null,null,null,null,null,null,null,null,null,null,null,null,null,null,null,null,null,null,null,null,null,null,null,null,null,null,null,null,null,null,null,null,null,null,null,null,null,null,null,null,null,null,null,null,null,null,null,null,null,null,null,null,null,null,null,null,null,null,null,null,null,null,null,null,null,null,null,null,null,null,null,null,null,null,null,null,null,null,null,null,null,null,null,null,null,null,null,null,null,null,null,null,null,null,null,null,null,null,null,null,null,null,99,{"$f":"IF(AND(D107=D106,D107=D105,D107=D104,D107=D103),ROW(99:99),IF(AND(D107=D106,D107=D105,D107=D104),ROW(100:100),IF(AND(D107=D106,D107=D105),ROW(101:101),IF(D107=D106,ROW(102:102),IF(D107>1,ROW(103:103),\"-\")))))","v":99},103,null,1,null,null,null,99,null,99,"(99)","(-)"]
["100 ((-))","Bernt Olsson","Jämjö Hsk",0,null,0,0,"x",0,0,0,0,0,null,null,null,null,null,null,null,null,null,null,null,null,null,null,null,null,null,null,null,null,null,null,null,null,null,null,null,null,null,null,null,null,null,null,null,null,null,null,null,null,null,null,null,null,null,null,null,null,null,null,null,null,null,null,null,null,null,null,null,null,null,null,null,null,null,null,null,null,null,null,null,null,null,null,null,null,null,null,null,null,null,null,null,null,null,null,null,null,null,null,null,null,null,null,null,null,null,null,null,null,null,null,null,null,null,null,null,null,null,null,100,100,104,null,1,null,null,null,100,null,100,"(100)","(-)"]
["101 ((-))","Marcus Karlsson","Jämjö Hsk",0,null,0,0,"x",0,0,0,0,0,null,null,null,null,null,null,null,null,null,null,null,null,null,null,null,null,null,null,null,null,null,null,null,null,null,null,null,null,null,null,null,null,null,null,null,null,null,null,null,null,null,null,null,null,null,null,null,null,null,null,null,null,null,null,null,null,null,null,null,null,null,null,null,null,null,null,null,null,null,null,null,null,null,null,null,null,null,null,null,null,null,null,null,null,null,null,null,null,null,null,null,null,null,null,null,null,null,null,null,null,null,null,null,null,null,null,null,null,null,null,101,101,105,null,1,null,null,null,101,null,101,"(101)","(-)"]
["102 ((-))","Lukas Bern","Dynapac",0,null,0,0,"x",0,0,0,0,0,null,null,null,null,null,null,null,null,null,null,null,null,null,null,null,null,null,null,null,null,null,null,null,null,null,null,null,null,null,null,null,null,null,null,null,null,null,null,null,null,null,null,null,null,null,null,null,null,null,null,null,null,null,null,null,null,null,null,null,null,null,null,null,null,null,null,null,null,null,null,null,null,null,null,null,null,null,null,null,null,null,null,null,null,null,null,null,null,null,null,null,null,null,null,null,null,null,null,null,null,null,null,null,null,null,null,null,null,null,null,102,102,106,null,1,null,null,null,102,null,102,"(102)","(-)"]
["103 ((-))","Leif Sundahl","Carlskrona",0,null,0,0,"x",0,0,0,0,0,null,null,null,null,null,null,null,null,null,null,null,null,null,null,null,null,null,null,null,null,null,null,null,null,null,null,null,null,null,null,null,null,null,null,null,null,null,null,null,null,null,null,null,null,null,null,null,null,null,null,null,null,null,null,null,null,null,null,null,null,null,null,null,null,null,null,null,null,null,null,null,null,null,null,null,null,null,null,null,null,null,null,null,null,null,null,null,null,null,null,null,null,null,null,null,null,null,null,null,null,null,null,null,null,null,null,null,null,null,null,103,103,107,null,1,null,null,null,110,null,103,"(103)","(-)"]
["104 ((-))","Annika K. Milsten","Tingsryd",0,null,0,0,"x",0,0,0,0,0,null,null,null,null,null,null,null,null,null,null,null,null,null,null,null,null,null,null,null,null,null,null,null,null,null,null,null,null,null,null,null,null,null,null,null,null,null,null,null,null,null,null,null,null,null,null,null,null,null,null,null,null,null,null,null,null,null,null,null,null,null,null,null,null,null,null,null,null,null,null,null,null,null,null,null,null,null,null,null,null,null,null,null,null,null,null,null,null,null,null,null,null,null,null,null,null,null,null,null,null,null,null,null,null,null,null,null,null,null,null,104,104,108,null,1,null,null,null,103,null,104,"(104)","(-)"]
["105 ((-))","Christer Eriksson","Korpen Nybro",0,null,0,0,"x",0,0,0,0,0,null,null,null,null,null,null,null,null,null,null,null,null,null,null,null,null,null,null,null,null,null,null,null,null,null,null,null,null,null,null,null,null,null,null,null,null,null,null,null,null,null,null,null,null,null,null,null,null,null,null,null,null,null,null,null,null,null,null,null,null,null,null,null,null,null,null,null,null,null,null,null,null,null,null,null,null,null,null,null,null,null,null,null,null,null,null,null,null,null,null,null,null,null,null,null,null,null,null,null,null,null,null,null,null,null,null,null,null,null,null,105,105,109,null,1,null,null,null,104,null,105,"(105)","(-)"]
["106 ((-))","Kerstin Petersen","Växjö Hsk",0,null,0,0,"x",0,0,0,0,0,null,null,null,null,null,null,null,null,null,null,null,null,null,null,null,null,null,null,null,null,null,null,null,null,null,null,null,null,null,null,null,null,null,null,null,null,null,null,null,null,null,null,null,null,null,null,null,null,null,null,null,null,null,null,null,null,null,null,null,null,null,null,null,null,null,null,null,null,null,null,null,null,null,null,null,null,null,null,null,null,null,null,null,null,null,null,null,null,null,null,null,null,null,null,null,null,null,null,null,null,null,null,null,null,null,null,null,null,null,null,106,106,110,null,1,null,null,null,105,null,106,"(106)","(-)"]
["107 ((-))","Laila Johansson","Tingsryd",0,null,0,0,"x",0,0,0,0,0,null,null,null,null,null,null,null,null,null,null,null,null,null,null,null,null,null,null,null,null,null,null,null,null,null,null,null,null,null,null,null,null,null,null,null,null,null,null,null,null,null,null,null,null,null,null,null,null,null,null,null,null,null,null,null,null,null,null,null,null,null,null,null,null,null,null,null,null,null,null,null,null,null,null,null,null,null,null,null,null,null,null,null,null,null,null,null,null,null,null,null,null,null,null,null,null,null,null,null,null,null,null,null,null,null,null,null,null,null,null,107,107,111,null,1,null,null,null,106,null,107,"(107)","(-)"]
["108 ((-))","Julius Gneupel","Sibbamåla",0,null,0,0,"x",0,0,0,0,0,null,null,null,null,null,null,null,null,null,null,null,null,null,null,null,null,null,null,null,null,null,null,null,null,null,null,null,null,null,null,null,null,null,null,null,null,null,null,null,null,null,null,null,null,null,null,null,null,null,null,null,null,null,null,null,null,null,null,null,null,null,null,null,null,null,null,null,null,null,null,null,null,null,null,null,null,null,null,null,null,null,null,null,null,null,null,null,null,null,null,null,null,null,null,null,null,null,null,null,null,null,null,null,null,null,null,null,null,null,null,108,108,112,null,1,null,null,null,107,null,108,"(108)","(-)"]
["109 ((-))","Peter Edlund","Dynapac",0,null,0,0,"x",0,0,0,0,0,null,null,null,null,null,null,null,null,null,null,null,null,null,null,null,null,null,null,null,null,null,null,null,null,null,null,null,null,null,null,null,null,null,null,null,null,null,null,null,null,null,null,null,null,null,null,null,null,null,null,null,null,null,null,null,null,null,null,null,null,null,null,null,null,null,null,null,null,null,null,null,null,null,null,null,null,null,null,null,null,null,null,null,null,null,null,null,null,null,null,null,null,null,null,null,null,null,null,null,null,null,null,null,null,null,null,null,null,null,null,109,109,113,null,1,null,null,null,108,null,109,"(109)","(-)"]
["110 ((-))","Bertil Westergren","Växjö Hsk",0,null,0,0,"x",0,0,0,0,0,null,null,null,null,null,null,null,null,null,null,null,null,null,null,null,null,null,null,null,null,null,null,null,null,null,null,null,null,null,null,null,null,null,null,null,null,null,null,null,null,null,null,null,null,null,null,null,null,null,null,null,null,null,null,null,null,null,null,null,null,null,null,null,null,null,null,null,null,null,null,null,null,null,null,null,null,null,null,null,null,null,null,null,null,null,null,null,null,null,null,null,null,null,null,null,null,null,null,null,null,null,null,null,null,null,null,null,null,null,null,110,110,114,null,1,null,null,null,109,null,110,"(110)","(-)"]
["111 ((-))","Alf Svensson","Korpen Åseda",0,null,0,0,"x",0,0,0,0,0,null,null,null,null,null,null,null,null,null,null,null,null,null,null,null,null,null,null,null,null,null,null,null,null,null,null,null,null,null,null,null,null,null,null,null,null,null,null,null,null,null,null,null,null,null,null,null,null,null,null,null,null,null,null,null,null,null,null,null,null,null,null,null,null,null,null,null,null,null,null,null,null,null,null,null,null,null,null,null,null,null,null,null,null,null,null,null,null,null,null,null,null,null,null,null,null,null,null,null,null,null,null,null,null,null,null,null,null,null,null,111,111,115,null,1,null,null,null,112,null,111,"(111)","(-)"]
["112 ((-))","Eva Åkesson","Lanternan",0,null,0,0,"x",0,0,0,0,0,null,null,null,null,null,null,null,null,null,null,null,null,null,null,null,null,null,null,null,null,null,null,null,null,null,null,null,null,null,null,null,null,null,null,null,null,null,null,null,null,null,null,null,null,null,null,null,null,null,null,null,null,null,null,null,null,null,null,null,null,null,null,null,null,null,null,null,null,null,null,null,null,null,null,null,null,null,null,null,null,null,null,null,null,null,null,null,null,null,null,null,null,null,null,null,null,null,null,null,null,null,null,null,null,null,null,null,null,null,null,112,112,116,null,1,null,null,null,110,null,112,"(112)","(-)"]
["113 ((-))","Victor Bengtsson","Vaxholm Hsk",0,null,0,0,"x",0,0,0,0,0,null,null,null,null,null,null,null,null,null,null,null,null,null,null,null,null,null,null,null,null,null,null,null,null,null,null,null,null,null,null,null,null,null,null,null,null,null,null,null,null,null,null,null,null,null,null,null,null,null,null,null,null,null,null,null,null,null,null,null,null,null,null,null,null,null,null,null,null,null,null,null,null,null,null,null,null,null,null,null,null,null,null,null,null,null,null,null,null,null,null,null,null,null,null,null,null,null,null,null,null,null,null,null,null,null,null,null,null,null,null,113,{"$f":"IF(AND(D121=D120,D121=D119,D121=D118,D121=D117),ROW(113:113),IF(AND(D121=D120,D121=D119,D121=D118),ROW(114:114),IF(AND(D121=D120,D121=D119),ROW(115:115),IF(D121=D120,ROW(116:116),IF(D121>1,ROW(117:117),\"-\")))))","v":113},{"$f":"IF(DX121=1,ROW(117:117),\"-\")","v":117},null,1,null,null,null,111,null,{"$f":"IF(DX121=1,DU121,IF(DX121=\"\",DU121,\"\"))","v":113},{"$f":"IF(DX121=1,\"(\"&DT121&\")\",\"(\"&DV121&\")\")","v":"(113)"},"(-)"]
["114 ((-))","Tommy Svensson","Värends Hsk",0,null,0,0,"x",0,0,0,0,0,null,null,null,null,null,null,null,null,null,null,null,null,null,null,null,null,null,null,null,null,null,null,null,null,null,null,null,null,null,null,null,null,null,null,null,null,null,null,null,null,null,null,null,null,null,null,null,null,null,null,null,null,null,null,null,null,null,null,null,null,null,null,null,null,null,null,null,null,null,null,null,null,null,null,null,null,null,null,null,null,null,null,null,null,null,null,null,null,null,null,null,null,null,null,null,null,null,null,null,null,null,null,null,null,null,null,null,null,null,null,114,{"$f":"IF(AND(D122=D121,D122=D120,D122=D119,D122=D118),ROW(114:114),IF(AND(D122=D121,D122=D120,D122=D119),ROW(115:115),IF(AND(D122=D121,D122=D120),ROW(116:116),IF(D122=D121,ROW(117:117),IF(D122>1,ROW(118:118),\"-\")))))","v":114},{"$f":"IF(DX122=1,ROW(118:118),\"-\")","v":118},null,1,null,null,null,113,null,{"$f":"IF(DX122=1,DU122,IF(DX122=\"\",DU122,\"\"))","v":114},{"$f":"IF(DX122=1,\"(\"&DT122&\")\",\"(\"&DV122&\")\")","v":"(114)"},"(-)"]
["115 ((-))","Christer Brincner","Värends Hsk",0,null,0,0,"x",0,0,0,0,0,null,null,null,null,null,null,null,null,null,null,null,null,null,null,null,null,null,null,null,null,null,null,null,null,null,null,null,null,null,null,null,null,null,null,null,null,null,null,null,null,null,null,null,null,null,null,null,null,null,null,null,null,null,null,null,null,null,null,null,null,null,null,null,null,null,null,null,null,null,null,null,null,null,null,null,null,null,null,null,null,null,null,null,null,null,null,null,null,null,null,null,null,null,null,null,null,null,null,null,null,null,null,null,null,null,null,null,null,null,null,115,{"$f":"IF(AND(D123=D122,D123=D121,D123=D120,D123=D119),ROW(115:115),IF(AND(D123=D122,D123=D121,D123=D120),ROW(116:116),IF(AND(D123=D122,D123=D121),ROW(117:117),IF(D123=D122,ROW(118:118),IF(D123>1,ROW(119:119),\"-\")))))","v":115},{"$f":"IF(DX123=1,ROW(119:119),\"-\")","v":119},null,1,null,null,null,113,null,{"$f":"IF(DX123=1,DU123,IF(DX123=\"\",DU123,\"\"))","v":115},{"$f":"IF(DX123=1,\"(\"&DT123&\")\",\"(\"&DV123&\")\")","v":"(115)"},"(-)"]